Workbook

Sheet Main
B10: 2019-03-11
B12: Sheet No. | C12: Template Name | D12: Summary
B13: 1 | C13: Future Intra | D13: For Intraday trading in F&O segment
B14: 2 | C14: Cash Intra | D14: For Intraday trading in cash market segment
B15: 3 | C15: Mid-cap Intra | D15: For Intraday trading in Mid-cap stocks
B16: 4 | C16: Bulk Deals | D16: Reveals Bulk Deals carried on NSE & BSE
B17: 5 | C17: Call Tracker

Sheet Future Intra
M5: Back to Main Page
A6: FOR INTRA DAY TRADING | L6: =Main!B10 -> 2019-03-11
A9: Sr.no | B9: Sector | C9: Scrip | D9: CLOSE RATE | E9: Pivot Point | F9: Supports | I9: Resistances
B10: Sector | D10: Point | E10: Point | F10: S1 | G10: S2 | H10: S3 | I10: R1 | J10: R2 | K10: R3 | L10: HIGH | M10: LOW | N10: OI | O10: % Change in OI
A11: 1 | B11: Index | C11: BANKNIFTY | D11: 27883.15 | E11: 27837.72 | F11: 27755.43 | G11: 27627.72 | H11: 27545.43 | I11: 27965.43 | J11: 28047.72 | K11: 28175.43 | L11: 27920 | M11: 27710 | N11: 2133460 | O11: 0.81%
A12: 2 | B12: Index | C12: NIFTY | D12: 11076.05 | E12: 11064.37 | F12: 11044.88 | G12: 11013.72 | H12: 10994.23 | I12: 11095.53 | J12: 11115.02 | K12: 11146.18 | L12: 11083.85 | M12: 11033.2 | N12: 15595650 | O12: 0.17%
A13: 3 | B13: Index | C13: NIFTYIT | D13: 15488.00 | E13: 15543.67 | F13: 15419.33 | G13: 15350.67 | H13: 15226.33 | I13: 15612.33 | J13: 15736.67 | K13: 15805.33 | L13: 15668 | M13: 15475 | N13: 19800 | O13: 9.09%
A14: 4 | B14: Cement | C14: ACC | D14: 1584.00 | E14: 1574.83 | F14: 1560.17 | G14: 1536.33 | H14: 1521.67 | I14: 1598.67 | J14: 1613.33 | K14: 1637.17 | L14: 1589.5 | M14: 1551 | N14: 2326000 | O14: 1.41%
A15: 5 | B15: Others | C15: ADANIENT | D15: 138.75 | E15: 138.13 | F15: 136.37 | G15: 133.98 | H15: 132.22 | I15: 140.52 | J15: 142.28 | K15: 144.67 | L15: 139.9 | M15: 135.75 | N15: 40360000 | O15: 0.60%
A16: 6 | B16: Others | C16: ADANIPORTS | D16: 344.25 | E16: 342.92 | F16: 340.78 | G16: 337.32 | H16: 335.18 | I16: 346.38 | J16: 348.52 | K16: 351.98 | L16: 345.05 | M16: 339.45 | N16: 24657500 | O16: -0.55%
A17: 7 | B17: Power | C17: ADANIPOWER | D17: 50.20 | E17: 50.22 | F17: 49.53 | G17: 48.87 | H17: 48.18 | I17: 50.88 | J17: 51.57 | K17: 52.23 | L17: 50.9 | M17: 49.55 | N17: 160060000 | O17: 1.21%
A18: 8 | B18: Pharma | C18: AJANTPHARM | D18: 958.60 | E18: 956.92 | F18: 945.88 | G18: 933.17 | H18: 922.13 | I18: 969.63 | J18: 980.67 | K18: 993.38 | L18: 967.95 | M18: 944.2 | N18: 1008500 | O18: 4.18%
A19: 9 | B19: Banking | C19: ALBK | D19: 54.00 | E19: 53.67 | F19: 52.43 | G19: 50.87 | H19: 49.63 | I19: 55.23 | J19: 56.47 | K19: 58.03 | L19: 54.9 | M19: 52.1 | N19: 26923000 | O19: 2.63%
A20: 10 | B20: Automobile | C20: AMARAJABAT | D20: 743.80 | E20: 743.38 | F20: 736.57 | G20: 729.33 | H20: 722.52 | I20: 750.62 | J20: 757.43 | K20: 764.67 | L20: 750.2 | M20: 736.15 | N20: 735700 | O20: -0.85%
A21: 11 | B21: Cement | C21: AMBUJACEM | D21: 227.05 | E21: 225.48 | F21: 222.92 | G21: 218.78 | H21: 216.22 | I21: 229.62 | J21: 232.18 | K21: 236.32 | L21: 228.05 | M21: 221.35 | N21: 14522500 | O21: 0.89%
A22: 12 | B22: Others | C22: APOLLOHOSP | D22: 1177.95 | E22: 1181.92 | F22: 1169.03 | G22: 1160.12 | H22: 1147.23 | I22: 1190.83 | J22: 1203.72 | K22: 1212.63 | L22: 1194.8 | M22: 1173 | N22: 1281000 | O22: 0.67%
A23: 13 | B23: Automobile | C23: APOLLOTYRE | D23: 213.35 | E23: 214.65 | F23: 211.10 | G23: 208.85 | H23: 205.30 | I23: 216.90 | J23: 220.45 | K23: 222.70 | L23: 218.2 | M23: 212.4 | N23: 12747000 | O23: 7.52%
A24: 14 | B24: Textile | C24: ARVIND | D24: 84.40 | E24: 85.92 | F24: 81.08 | G24: 77.77 | H24: 72.93 | I24: 89.23 | J24: 94.07 | K24: 97.38 | L24: 90.75 | M24: 82.6 | N24: 7660000 | O24: 11.96%
A25: 15 | B25: Automobile | C25: ASHOKLEY | D25: 90.15 | E25: 90.32 | F25: 89.28 | G25: 88.42 | H25: 87.38 | I25: 91.18 | J25: 92.22 | K25: 93.08 | L25: 91.35 | M25: 89.45 | N25: 67088000 | O25: -0.68%
A26: 16 | B26: FMCG | C26: ASIANPAINT | D26: 1391.80 | E26: 1393.73 | F26: 1386.17 | G26: 1380.53 | H26: 1372.97 | I26: 1399.37 | J26: 1406.93 | K26: 1412.57 | L26: 1401.3 | M26: 1388.1 | N26: 5431800 | O26: -0.58%
A27: 17 | B27: Pharma | C27: AUROPHARMA | D27: 738.40 | E27: 732.08 | F27: 724.37 | G27: 710.33 | H27: 702.62 | I27: 746.12 | J27: 753.83 | K27: 767.87 | L27: 739.8 | M27: 718.05 | N27: 18073000 | O27: -3.15%
A28: 18 | B28: Banking | C28: AXISBANK | D28: 736.60 | E28: 735.30 | F28: 731.50 | G28: 726.40 | H28: 722.60 | I28: 740.40 | J28: 744.20 | K28: 749.30 | L28: 739.1 | M28: 730.2 | N28: 33477600 | O28: -1.50%
A29: 19 | B29: Automobile | C29: BAJAJ-AUTO | D29: 2954.50 | E29: 2939.12 | F29: 2915.33 | G29: 2876.17 | H29: 2852.38 | I29: 2978.28 | J29: 3002.07 | K29: 3041.23 | L29: 2962.9 | M29: 2899.95 | N29: 2792000 | O29: 6.62%
A30: 20 | B30: Others | C30: BAJAJFINSV | D30: 6663.30 | E30: 6639.13 | F30: 6601.27 | G30: 6539.23 | H30: 6501.37 | I30: 6701.17 | J30: 6739.03 | K30: 6801.07 | L30: 6677 | M30: 6577.1 | N30: 673750 | O30: 3.12%
A31: 21 | B31: Finance | C31: BAJFINANCE | D31: 2785.30 | E31: 2768.97 | F31: 2742.93 | G31: 2700.57 | H31: 2674.53 | I31: 2811.33 | J31: 2837.37 | K31: 2879.73 | L31: 2795 | M31: 2726.6 | N31: 5834500 | O31: 1.19%
A32: 22 | B32: Others | C32: BALKRISIND | D32: 906.50 | E32: 911.35 | F32: 898.45 | G32: 890.40 | H32: 877.50 | I32: 919.40 | J32: 932.30 | K32: 940.35 | L32: 924.25 | M32: 903.3 | N32: 1828000 | O32: 3.58%
A33: 23 | B33: Banking | C33: BANKBARODA | D33: 114.15 | E33: 114.95 | F33: 112.85 | G33: 111.55 | H33: 109.45 | I33: 116.25 | J33: 118.35 | K33: 119.65 | L33: 117.05 | M33: 113.65 | N33: 60856000 | O33: -1.00%
A34: 24 | B34: Banking | C34: BANKINDIA | D34: 89.05 | E34: 89.83 | F34: 87.92 | G34: 86.78 | H34: 84.87 | I34: 90.97 | J34: 92.88 | K34: 94.02 | L34: 91.75 | M34: 88.7 | N34: 23970000 | O34: 2.10%
A35: 25 | B35: FMCG | C35: BATAINDIA | D35: 1329.80 | E35: 1332.90 | F35: 1323.30 | G35: 1316.80 | H35: 1307.20 | I35: 1339.40 | J35: 1349.00 | K35: 1355.50 | L35: 1342.5 | M35: 1326.4 | N35: 2315500 | O35: -3.53%
A36: 26 | B36: Capital_Goods | C36: BEL | D36: 86.35 | E36: 86.87 | F36: 85.38 | G36: 84.42 | H36: 82.93 | I36: 87.83 | J36: 89.32 | K36: 90.28 | L36: 88.35 | M36: 85.9 | N36: 38022000 | O36: 6.70%
A37: 27 | B37: Infrastructure | C37: BEML | D37: 902.80 | E37: 900.52 | F37: 883.38 | G37: 863.97 | H37: 846.83 | I37: 919.93 | J37: 937.07 | K37: 956.48 | L37: 917.65 | M37: 881.1 | N37: 1656900 | O37: 8.38%
A38: 28 | B38: Others | C38: BERGEPAINT | D38: 303.60 | E38: 301.90 | F38: 299.05 | G38: 294.50 | H38: 291.65 | I38: 306.45 | J38: 309.30 | K38: 313.85 | L38: 304.75 | M38: 297.35 | N38: 3616800 | O38: -3.18%
A39: 29 | B39: Finance | C39: BHARATFIN | D39: 958.75 | E39: 959.13 | F39: 952.62 | G39: 946.48 | H39: 939.97 | I39: 965.27 | J39: 971.78 | K39: 977.92 | L39: 965.65 | M39: 953 | N39: 4831500 | O39: 0.10%
A40: 30 | B40: Automobile | C40: BHARATFORG | D40: 510.90 | E40: 511.52 | F40: 503.93 | G40: 496.97 | H40: 489.38 | I40: 518.48 | J40: 526.07 | K40: 533.03 | L40: 519.1 | M40: 504.55 | N40: 10621200 | O40: -0.28%
A41: 31 | B41: Telecom | C41: BHARTIARTL | D41: 310.30 | E41: 310.78 | F41: 308.67 | G41: 307.03 | H41: 304.92 | I41: 312.42 | J41: 314.53 | K41: 316.17 | L41: 312.9 | M41: 309.15 | N41: 38100400 | O41: -0.93%
A42: 32 | B42: Capital_Goods | C42: BHEL | D42: 67.35 | E42: 67.48 | F42: 66.72 | G42: 66.08 | H42: 65.32 | I42: 68.12 | J42: 68.88 | K42: 69.52 | L42: 68.25 | M42: 66.85 | N42: 32422500 | O42: 1.91%
A43: 33 | B43: Pharma | C43: BIOCON | D43: 617.65 | E43: 617.62 | F43: 613.88 | G43: 610.12 | H43: 606.38 | I43: 621.38 | J43: 625.12 | K43: 628.88 | L43: 621.35 | M43: 613.85 | N43: 5523300 | O43: -0.90%
A44: 34 | B44: Automobile | C44: BOSCHLTD | D44: 18563.05 | E44: 18514.62 | F44: 18399.48 | G44: 18235.92 | H44: 18120.78 | I44: 18678.18 | J44: 18793.32 | K44: 18956.88 | L44: 18629.75 | M44: 18351.05 | N44: 141870 | O44: 0.53%
A45: 35 | B45: Oil_Gas | C45: BPCL | D45: 369.40 | E45: 369.18 | F45: 366.37 | G45: 363.33 | H45: 360.52 | I45: 372.22 | J45: 375.03 | K45: 378.07 | L45: 372 | M45: 366.15 | N45: 6710400 | O45: 3.56%
A46: 36 | B46: FMCG | C46: BRITANNIA | D46: 3083.70 | E46: 3070.45 | F46: 3051.25 | G46: 3018.80 | H46: 2999.60 | I46: 3102.90 | J46: 3122.10 | K46: 3154.55 | L46: 3089.65 | M46: 3038 | N46: 3039600 | O46: -0.69%
A47: 37 | B47: Pharma | C47: CADILAHC | D47: 326.85 | E47: 327.82 | F47: 325.28 | G47: 323.72 | H47: 321.18 | I47: 329.38 | J47: 331.92 | K47: 333.48 | L47: 330.35 | M47: 326.25 | N47: 11152000 | O47: 0.22%
A48: 38 | B48: Banking | C48: CANBK | D48: 255.10 | E48: 256.07 | F48: 252.43 | G48: 249.77 | H48: 246.13 | I48: 258.73 | J48: 262.37 | K48: 265.03 | L48: 259.7 | M48: 253.4 | N48: 10452000 | O48: -3.31%
A49: 39 | B49: Others | C49: CANFINHOME | D49: 289.25 | E49: 290.42 | F49: 285.23 | G49: 281.22 | H49: 276.03 | I49: 294.43 | J49: 299.62 | K49: 303.63 | L49: 295.6 | M49: 286.4 | N49: 5121000 | O49: -1.22%
A50: 40 | B50: Oil_Gas | C50: CASTROLIND | D50: 162.60 | E50: 162.97 | F50: 161.43 | G50: 160.27 | H50: 158.73 | I50: 164.13 | J50: 165.67 | K50: 166.83 | L50: 164.5 | M50: 161.8 | N50: 5372000 | O50: -2.41%
A51: 41 | B51: Automobile | C51: CEATLTD | D51: 1122.80 | E51: 1122.22 | F51: 1111.63 | G51: 1100.47 | H51: 1089.88 | I51: 1133.38 | J51: 1143.97 | K51: 1155.13 | L51: 1132.8 | M51: 1111.05 | N51: 1101200 | O51: 0.07%
A52: 42 | B52: Textile | C52: CENTURYTEX | D52: 860.00 | E52: 856.65 | F52: 849.20 | G52: 838.40 | H52: 830.95 | I52: 867.45 | J52: 874.90 | K52: 885.70 | L52: 864.1 | M52: 845.85 | N52: 4613400 | O52: -0.65%
A53: 43 | B53: Power | C53: CESC | D53: 692.65 | E53: 695.88 | F53: 683.77 | G53: 674.88 | H53: 662.77 | I53: 704.77 | J53: 716.88 | K53: 725.77 | L53: 708 | M53: 687 | N53: 1323850 | O53: 3.97%
A54: 44 | B54: Power | C54: CGPOWER | D54: 36.45 | E54: 36.45 | F54: 35.85 | G54: 35.25 | H54: 34.65 | I54: 37.05 | J54: 37.65 | K54: 38.25 | L54: 37.05 | M54: 35.85 | N54: 47748000 | O54: -1.61%
A55: 45 | B55: Others | C55: CHENNPETRO | D55: 254.45 | E55: 254.77 | F55: 250.68 | G55: 246.92 | H55: 242.83 | I55: 258.53 | J55: 262.62 | K55: 266.38 | L55: 258.85 | M55: 251 | N55: 1369800 | O55: 1.47%
A56: 46 | B56: Others | C56: CHOLAFIN | D56: 1295.85 | E56: 1302.07 | F56: 1286.33 | G56: 1276.82 | H56: 1261.08 | I56: 1311.58 | J56: 1327.32 | K56: 1336.83 | L56: 1317.8 | M56: 1292.55 | N56: 858500 | O56: -0.46%
A57: 47 | B57: Pharma | C57: CIPLA | D57: 542.45 | E57: 543.12 | F57: 540.08 | G57: 537.72 | H57: 534.68 | I57: 545.48 | J57: 548.52 | K57: 550.88 | L57: 546.15 | M57: 540.75 | N57: 8198000 | O57: -4.91%
A58: 48 | B58: Others | C58: COALINDIA | D58: 226.30 | E58: 225.48 | F58: 222.47 | G58: 218.63 | H58: 215.62 | I58: 229.32 | J58: 232.33 | K58: 236.17 | L58: 228.5 | M58: 221.65 | N58: 23306800 | O58: 12.77%
A59: 49 | B59: FMCG | C59: COLPAL | D59: 1257.85 | E59: 1258.52 | F59: 1248.08 | G59: 1238.32 | H59: 1227.88 | I59: 1268.28 | J59: 1278.72 | K59: 1288.48 | L59: 1268.95 | M59: 1248.75 | N59: 1706600 | O59: -0.49%
A60: 50 | B60: Others | C60: CONCOR | D60: 485.75 | E60: 483.48 | F60: 478.32 | G60: 470.88 | H60: 465.72 | I60: 490.92 | J60: 496.08 | K60: 503.52 | L60: 488.65 | M60: 476.05 | N60: 1775568 | O60: -3.32%
A61: 51 | B61: Capital_Goods | C61: CUMMINSIND | D61: 734.45 | E61: 739.83 | F61: 727.47 | G61: 720.48 | H61: 708.12 | I61: 746.82 | J61: 759.18 | K61: 766.17 | L61: 752.2 | M61: 732.85 | N61: 1207500 | O61: -1.60%
A62: 52 | B62: FMCG | C62: DABUR | D62: 434.70 | E62: 435.25 | F62: 432.80 | G62: 430.90 | H62: 428.45 | I62: 437.15 | J62: 439.60 | K62: 441.50 | L62: 437.7 | M62: 433.35 | N62: 9953750 | O62: -0.78%
A63: 53 | B63: Banking | C63: DCBBANK | D63: 197.35 | E63: 197.18 | F63: 195.92 | G63: 194.48 | H63: 193.22 | I63: 198.62 | J63: 199.88 | K63: 201.32 | L63: 198.45 | M63: 195.75 | N63: 3708000 | O63: 0.00%
A64: 54 | B64: Finance | C64: DHFL | D64: 140.50 | E64: 141.70 | F64: 138.35 | G64: 136.20 | H64: 132.85 | I64: 143.85 | J64: 147.20 | K64: 149.35 | L64: 145.05 | M64: 139.55 | N64: 20407500 | O64: -1.51%
A65: 55 | B65: Media | C65: DISHTV | D65: 37.60 | E65: 37.87 | F65: 36.93 | G65: 36.27 | H65: 35.33 | I65: 38.53 | J65: 39.47 | K65: 40.13 | L65: 38.8 | M65: 37.2 | N65: 56864000 | O65: 2.51%
A66: 56 | B66: Pharma | C66: DIVISLAB | D66: 1657.55 | E66: 1658.27 | F66: 1644.13 | G66: 1630.72 | H66: 1616.58 | I66: 1671.68 | J66: 1685.82 | K66: 1699.23 | L66: 1672.4 | M66: 1644.85 | N66: 2910000 | O66: 0.64%
A67: 57 | B67: Realty | C67: DLF | D67: 175.90 | E67: 175.52 | F67: 173.93 | G67: 171.97 | H67: 170.38 | I67: 177.48 | J67: 179.07 | K67: 181.03 | L67: 177.1 | M67: 173.55 | N67: 21169200 | O67: -0.45%
A68: 58 | B68: Pharma | C68: DRREDDY | D68: 2632.75 | E68: 2649.33 | F68: 2606.67 | G68: 2580.58 | H68: 2537.92 | I68: 2675.42 | J68: 2718.08 | K68: 2744.17 | L68: 2692 | M68: 2623.25 | N68: 4075000 | O68: 2.15%
A69: 59 | B69: Automobile | C69: EICHERMOT | D69: 21738.50 | E69: 21658.18 | F69: 21346.52 | G69: 20954.53 | H69: 20642.87 | I69: 22050.17 | J69: 22361.83 | K69: 22753.82 | L69: 21969.85 | M69: 21266.2 | N69: 404675 | O69: 2.37%
A70: 60 | B70: Infrastructure | C70: ENGINERSIN | D70: 111.05 | E70: 111.48 | F70: 109.27 | G70: 107.48 | H70: 105.27 | I70: 113.27 | J70: 115.48 | K70: 117.27 | L70: 113.7 | M70: 109.7 | N70: 7810500 | O70: -3.00%
A71: 61 | B71: Finance | C71: EQUITAS | D71: 125.45 | E71: 125.88 | F71: 123.47 | G71: 121.48 | H71: 119.07 | I71: 127.87 | J71: 130.28 | K71: 132.27 | L71: 128.3 | M71: 123.9 | N71: 13264000 | O71: -3.04%
A72: 62 | B72: Automobile | C72: ESCORTS | D72: 733.65 | E72: 732.60 | F72: 727.20 | G72: 720.75 | H72: 715.35 | I72: 739.05 | J72: 744.45 | K72: 750.90 | L72: 738 | M72: 726.15 | N72: 3151500 | O72: 5.80%
A73: 63 | B73: Automobile | C73: EXIDEIND | D73: 225.25 | E73: 224.62 | F73: 221.98 | G73: 218.72 | H73: 216.08 | I73: 227.88 | J73: 230.52 | K73: 233.78 | L73: 227.25 | M73: 221.35 | N73: 7572000 | O73: -1.94%
A74: 64 | B74: Banking | C74: FEDERALBNK | D74: 87.90 | E74: 88.10 | F74: 87.00 | G74: 86.10 | H74: 85.00 | I74: 89.00 | J74: 90.10 | K74: 91.00 | L74: 89.2 | M74: 87.2 | N74: 50771000 | O74: -1.72%
A75: 65 | B75: Oil_Gas | C75: GAIL | D75: 350.45 | E75: 348.28 | F75: 344.57 | G75: 338.68 | H75: 334.97 | I75: 354.17 | J75: 357.88 | K75: 363.77 | L75: 352 | M75: 342.4 | N75: 9571863 | O75: 0.20%
A76: 66 | B76: Pharma | C76: GLENMARK | D76: 599.90 | E76: 603.93 | F76: 593.27 | G76: 586.63 | H76: 575.97 | I76: 610.57 | J76: 621.23 | K76: 627.87 | L76: 614.6 | M76: 597.3 | N76: 4305000 | O76: 9.71%
A77: 67 | B77: Infrastructure | C77: GMRINFRA | D77: 16.95 | E77: 16.93 | F77: 16.77 | G77: 16.58 | H77: 16.42 | I77: 17.12 | J77: 17.28 | K77: 17.47 | L77: 17.1 | M77: 16.75 | N77: 144045000 | O77: -1.33%
A78: 68 | B78: Others | C78: GODFRYPHLP | D78: 944.75 | E78: 945.08 | F78: 925.32 | G78: 905.88 | H78: 886.12 | I78: 964.52 | J78: 984.28 | K78: 1003.72 | L78: 964.85 | M78: 925.65 | N78: 498400 | O78: 11.95%
A79: 69 | B79: FMCG | C79: GODREJCP | D79: 711.25 | E79: 710.33 | F79: 705.12 | G79: 698.98 | H79: 693.77 | I79: 716.47 | J79: 721.68 | K79: 727.82 | L79: 715.55 | M79: 704.2 | N79: 6008400 | O79: -1.42%
A80: 70 | B80: FMCG | C80: GODREJIND | D80: 513.35 | E80: 513.07 | F80: 509.53 | G80: 505.72 | H80: 502.18 | I80: 516.88 | J80: 520.42 | K80: 524.23 | L80: 516.6 | M80: 509.25 | N80: 1267500 | O80: -2.65%
A81: 71 | B81: Cement | C81: GRASIM | D81: 812.40 | E81: 810.62 | F81: 803.93 | G81: 795.47 | H81: 788.78 | I81: 819.08 | J81: 825.77 | K81: 834.23 | L81: 817.3 | M81: 802.15 | N81: 12349500 | O81: 3.42%
A82: 72 | B82: Others | C82: GSFC | D82: 99.25 | E82: 98.67 | F82: 97.78 | G82: 96.32 | H82: 95.43 | I82: 100.13 | J82: 101.02 | K82: 102.48 | L82: 99.55 | M82: 97.2 | N82: 11026200 | O82: -0.93%
A83: 73 | B83: Others | C83: HAVELLS | D83: 730.35 | E83: 727.55 | F83: 723.05 | G83: 715.75 | H83: 711.25 | I83: 734.85 | J83: 739.35 | K83: 746.65 | L83: 732.05 | M83: 720.25 | N83: 5373000 | O83: -0.07%
A84: 74 | B84: Technology | C84: HCLTECH | D84: 1015.00 | E84: 1021.07 | F84: 1006.13 | G84: 997.27 | H84: 982.33 | I84: 1029.93 | J84: 1044.87 | K84: 1053.73 | L84: 1036 | M84: 1012.2 | N84: 9051000 | O84: 4.29%
A85: 75 | B85: Finance | C85: HDFC | D85: 1891.90 | E85: 1888.12 | F85: 1881.23 | G85: 1870.57 | H85: 1863.68 | I85: 1898.78 | J85: 1905.67 | K85: 1916.33 | L85: 1895 | M85: 1877.45 | N85: 27707000 | O85: -1.72%
A86: 76 | B86: Banking | C86: HDFCBANK | D86: 2137.65 | E86: 2129.97 | F86: 2119.73 | G86: 2101.82 | H86: 2091.58 | I86: 2147.88 | J86: 2158.12 | K86: 2176.03 | L86: 2140.2 | M86: 2112.05 | N86: 12026000 | O86: 0.66%
A87: 77 | B87: Automobile | C87: HEROMOTOCO | D87: 2759.95 | E87: 2750.33 | F87: 2724.67 | G87: 2689.38 | H87: 2663.72 | I87: 2785.62 | J87: 2811.28 | K87: 2846.57 | L87: 2776 | M87: 2715.05 | N87: 2123000 | O87: -0.04%
A88: 78 | B88: Technology | C88: HEXAWARE | D88: 347.70 | E88: 347.08 | F88: 342.72 | G88: 337.73 | H88: 333.37 | I88: 352.07 | J88: 356.43 | K88: 361.42 | L88: 351.45 | M88: 342.1 | N88: 2937000 | O88: 1.08%
A89: 79 | B89: Metals | C89: HINDALCO | D89: 196.25 | E89: 196.50 | F89: 194.00 | G89: 191.75 | H89: 189.25 | I89: 198.75 | J89: 201.25 | K89: 203.50 | L89: 199 | M89: 194.25 | N89: 35399000 | O89: 2.51%
A90: 80 | B90: Oil_Gas | C90: HINDPETRO | D90: 249.30 | E90: 248.28 | F90: 246.12 | G90: 242.93 | H90: 240.77 | I90: 251.47 | J90: 253.63 | K90: 256.82 | L90: 250.45 | M90: 245.1 | N90: 14175000 | O90: 5.52%
A91: 81 | B91: FMCG | C91: HINDUNILVR | D91: 1713.40 | E91: 1715.20 | F91: 1704.20 | G91: 1695.00 | H91: 1684.00 | I91: 1724.40 | J91: 1735.40 | K91: 1744.60 | L91: 1726.2 | M91: 1706 | N91: 11874000 | O91: 3.41%
A92: 82 | B92: Metals | C92: HINDZINC | D92: 268.05 | E92: 267.75 | F92: 266.50 | G92: 264.95 | H92: 263.70 | I92: 269.30 | J92: 270.55 | K92: 272.10 | L92: 269 | M92: 266.2 | N92: 3968000 | O92: -1.51%
A93: 83 | B93: Finance | C93: IBULHSGFIN | D93: 706.40 | E93: 715.82 | F93: 692.63 | G93: 678.87 | H93: 655.68 | I93: 729.58 | J93: 752.77 | K93: 766.53 | L93: 739 | M93: 702.05 | N93: 16288500 | O93: -0.24%
A94: 84 | B94: Banking | C94: ICICIBANK | D94: 372.55 | E94: 372.12 | F94: 369.78 | G94: 367.02 | H94: 364.68 | I94: 374.88 | J94: 377.22 | K94: 379.98 | L94: 374.45 | M94: 369.35 | N94: 84636750 | O94: 0.54%
A95: 85 | B95: Others | C95: ICICIPRULI | D95: 336.15 | E95: 332.77 | F95: 324.58 | G95: 313.02 | H95: 304.83 | I95: 344.33 | J95: 352.52 | K95: 364.08 | L95: 340.95 | M95: 321.2 | N95: 8020500 | O95: 4.39%
A96: 86 | B96: Banking | C96: IDBI | D96: 43.60 | E96: 43.83 | F96: 43.12 | G96: 42.63 | H96: 41.92 | I96: 44.32 | J96: 45.03 | K96: 45.52 | L96: 44.55 | M96: 43.35 | N96: 31830000 | O96: -2.39%
A97: 87 | B97: Telecom | C97: IDEA | D97: 31.30 | E97: 31.17 | F97: 30.73 | G97: 30.17 | H97: 29.73 | I97: 31.73 | J97: 32.17 | K97: 32.73 | L97: 31.6 | M97: 30.6 | N97: 214992000 | O97: 1.78%
A98: 88 | B98: Finance | C98: IDFC | D98: 39.50 | E98: 39.80 | F98: 39.00 | G98: 38.50 | H98: 37.70 | I98: 40.30 | J98: 41.10 | K98: 41.60 | L98: 40.6 | M98: 39.3 | N98: 106840800 | O98: 0.48%
A99: 89 | B99: Banking | C99: IDFCFIRSTB | D99: 49.05 | E99: 49.08 | F99: 48.52 | G99: 47.98 | H99: 47.42 | I99: 49.62 | J99: 50.18 | K99: 50.72 | L99: 49.65 | M99: 48.55 | N99: 130800000 | O99: -1.11%
A100: 90 | B100: Finance | C100: IFCI | D100: 13.60 | E100: 13.68 | F100: 13.42 | G100: 13.23 | H100: 12.97 | I100: 13.87 | J100: 14.13 | K100: 14.32 | L100: 13.95 | M100: 13.5 | N100: 50960000 | O100: 2.68%
A101: 91 | B101: Oil_Gas | C101: IGL | D101: 295.40 | E101: 293.40 | F101: 290.65 | G101: 285.90 | H101: 283.15 | I101: 298.15 | J101: 300.90 | K101: 305.65 | L101: 296.15 | M101: 288.65 | N101: 2956250 | O101: -7.96%
A102: 92 | B102: Cement | C102: INDIACEM | D102: 96.70 | E102: 96.55 | F102: 95.15 | G102: 93.60 | H102: 92.20 | I102: 98.10 | J102: 99.50 | K102: 101.05 | L102: 97.95 | M102: 95 | N102: 23278500 | O102: 0.98%
A103: 93 | B103: Banking | C103: INDIANB | D103: 248.35 | E103: 246.97 | F103: 244.18 | G103: 240.02 | H103: 237.23 | I103: 251.13 | J103: 253.92 | K103: 258.08 | L103: 249.75 | M103: 242.8 | N103: 3770000 | O103: 4.78%
A104: 94 | B104: Others | C104: INDIGO | D104: 1249.40 | E104: 1244.38 | F104: 1227.87 | G104: 1206.33 | H104: 1189.82 | I104: 1265.92 | J104: 1282.43 | K104: 1303.97 | L104: 1260.9 | M104: 1222.85 | N104: 2338200 | O104: 3.31%
A105: 95 | B105: Banking | C105: INDUSINDBK | D105: 1525.20 | E105: 1525.62 | F105: 1513.58 | G105: 1501.97 | H105: 1489.93 | I105: 1537.23 | J105: 1549.27 | K105: 1560.88 | L105: 1537.65 | M105: 1514 | N105: 8070900 | O105: 1.30%
A106: 96 | B106: Technology | C106: INFIBEAM | D106: 39.60 | E106: 39.72 | F106: 39.03 | G106: 38.47 | H106: 37.78 | I106: 40.28 | J106: 40.97 | K106: 41.53 | L106: 40.4 | M106: 39.15 | N106: 17308000 | O106: -1.82%
A107: 97 | B107: Telecom | C107: INFRATEL | D107: 307.15 | E107: 307.98 | F107: 304.77 | G107: 302.38 | H107: 299.17 | I107: 310.37 | J107: 313.58 | K107: 315.97 | L107: 311.2 | M107: 305.6 | N107: 7032000 | O107: -4.07%
A108: 98 | B108: Technology | C108: INFY | D108: 717.10 | E108: 719.82 | F108: 712.73 | G108: 708.37 | H108: 701.28 | I108: 724.18 | J108: 731.27 | K108: 735.63 | L108: 726.9 | M108: 715.45 | N108: 46052400 | O108: 0.88%
A109: 99 | B109: Oil_Gas | C109: IOC | D109: 146.95 | E109: 146.75 | F109: 144.40 | G109: 141.85 | H109: 139.50 | I109: 149.30 | J109: 151.65 | K109: 154.20 | L109: 149.1 | M109: 144.2 | N109: 36032500 | O109: 5.03%
A110: 100 | B110: Infrastructure | C110: IRB | D110: 148.20 | E110: 147.78 | F110: 146.27 | G110: 144.33 | H110: 142.82 | I110: 149.72 | J110: 151.23 | K110: 153.17 | L110: 149.3 | M110: 145.85 | N110: 6668800 | O110: -1.47%
A111: 101 | B111: FMCG | C111: ITC | D111: 293.90 | E111: 293.08 | F111: 291.87 | G111: 289.83 | H111: 288.62 | I111: 295.12 | J111: 296.33 | K111: 298.37 | L111: 294.3 | M111: 291.05 | N111: 58915200 | O111: -0.16%
A112: 102 | B112: Others | C112: JETAIRWAYS | D112: 238.05 | E112: 237.92 | F112: 233.78 | G112: 229.52 | H112: 225.38 | I112: 242.18 | J112: 246.32 | K112: 250.58 | L112: 242.05 | M112: 233.65 | N112: 7755000 | O112: 12.40%
A113: 103 | B113: Metals | C113: JINDALSTEL | D113: 163.55 | E113: 164.03 | F113: 161.57 | G113: 159.58 | H113: 157.12 | I113: 166.02 | J113: 168.48 | K113: 170.47 | L113: 166.5 | M113: 162.05 | N113: 26021250 | O113: -0.74%
A114: 104 | B114: Others | C114: JISLJALEQS | D114: 61.10 | E114: 61.65 | F114: 60.15 | G114: 59.20 | H114: 57.70 | I114: 62.60 | J114: 64.10 | K114: 65.05 | L114: 63.15 | M114: 60.7 | N114: 36486000 | O114: -1.48%
A115: 105 | B115: Realty | C115: JPASSOCIAT | D115: 6.60 | E115: 6.65 | F115: 6.50 | G115: 6.40 | H115: 6.25 | I115: 6.75 | J115: 6.90 | K115: 7.00 | L115: 6.8 | M115: 6.55 | N115: 76340000 | O115: -3.21%
A116: 106 | B116: Metals | C116: JSWSTEEL | D116: 288.10 | E116: 288.28 | F116: 285.57 | G116: 283.03 | H116: 280.32 | I116: 290.82 | J116: 293.53 | K116: 296.07 | L116: 291 | M116: 285.75 | N116: 61818000 | O116: -0.53%
A117: 107 | B117: Others | C117: JUBLFOOD | D117: 1345.60 | E117: 1339.93 | F117: 1326.87 | G117: 1308.13 | H117: 1295.07 | I117: 1358.67 | J117: 1371.73 | K117: 1390.47 | L117: 1353 | M117: 1321.2 | N117: 2900500 | O117: -2.03%
A118: 108 | B118: Others | C118: JUSTDIAL | D118: 547.45 | E118: 541.87 | F118: 532.08 | G118: 516.72 | H118: 506.93 | I118: 557.23 | J118: 567.02 | K118: 582.38 | L118: 551.65 | M118: 526.5 | N118: 2448600 | O118: 10.91%
A119: 109 | B119: Others | C119: KAJARIACER | D119: 569.80 | E119: 568.57 | F119: 565.23 | G119: 560.67 | H119: 557.33 | I119: 573.13 | J119: 576.47 | K119: 581.03 | L119: 571.9 | M119: 564 | N119: 2238600 | O119: -1.82%
A120: 110 | B120: Banking | C120: KOTAKBANK | D120: 1243.05 | E120: 1240.23 | F120: 1232.97 | G120: 1222.88 | H120: 1215.62 | I120: 1250.32 | J120: 1257.58 | K120: 1267.67 | L120: 1247.5 | M120: 1230.15 | N120: 13426400 | O120: 0.68%
A121: 111 | B121: Technology | C121: BSOFT | D121: 104.65 | E121: 105.78 | F121: 101.97 | G121: 99.28 | H121: 95.47 | I121: 108.47 | J121: 112.28 | K121: 114.97 | L121: 109.6 | M121: 103.1 | N121: 5445000 | O121: -1.31%
A122: 112 | B122: Others | C122: KSCL | D122: 423.15 | E122: 422.23 | F122: 418.47 | G122: 413.78 | H122: 410.02 | I122: 426.92 | J122: 430.68 | K122: 435.37 | L122: 426 | M122: 417.55 | N122: 1687500 | O122: -2.93%
A123: 113 | B123: Banking | C123: KTKBANK | D123: 119.10 | E123: 119.75 | F123: 118.00 | G123: 116.90 | H123: 115.15 | I123: 120.85 | J123: 122.60 | K123: 123.70 | L123: 121.5 | M123: 118.65 | N123: 13662900 | O123: -0.95%
A124: 114 | B124: Finance | C124: L&TFH | D124: 142.35 | E124: 142.28 | F124: 140.57 | G124: 138.78 | H124: 137.07 | I124: 144.07 | J124: 145.78 | K124: 147.57 | L124: 144 | M124: 140.5 | N124: 21523500 | O124: -3.04%
A125: 115 | B125: Finance | C125: LICHSGFIN | D125: 496.10 | E125: 493.17 | F125: 488.73 | G125: 481.37 | H125: 476.93 | I125: 500.53 | J125: 504.97 | K125: 512.33 | L125: 497.6 | M125: 485.8 | N125: 8251100 | O125: -1.74%
A126: 116 | B126: Capital_Goods | C126: LT | D126: 1335.65 | E126: 1341.32 | F126: 1325.03 | G126: 1314.42 | H126: 1298.13 | I126: 1351.93 | J126: 1368.22 | K126: 1378.83 | L126: 1357.6 | M126: 1330.7 | N126: 7065750 | O126: 0.18%
A127: 117 | B127: Pharma | C127: LUPIN | D127: 783.00 | E127: 788.70 | F127: 774.45 | G127: 765.90 | H127: 751.65 | I127: 797.25 | J127: 811.50 | K127: 820.05 | L127: 802.95 | M127: 780.15 | N127: 9513700 | O127: 2.59%
A128: 118 | B128: Automobile | C128: M&M | D128: 673.15 | E128: 675.23 | F128: 667.97 | G128: 662.78 | H128: 655.52 | I128: 680.42 | J128: 687.68 | K128: 692.87 | L128: 682.5 | M128: 670.05 | N128: 23250000 | O128: -3.02%
A129: 119 | B129: Finance | C129: M&MFIN | D129: 439.00 | E129: 437.97 | F129: 433.18 | G129: 427.37 | H129: 422.58 | I129: 443.78 | J129: 448.57 | K129: 454.38 | L129: 442.75 | M129: 432.15 | N129: 11490000 | O129: -0.21%
A130: 120 | B130: Others | C130: MANAPPURAM | D130: 118.60 | E130: 119.27 | F130: 117.13 | G130: 115.67 | H130: 113.53 | I130: 120.73 | J130: 122.87 | K130: 124.33 | L130: 121.4 | M130: 117.8 | N130: 9702000 | O130: -2.53%
A131: 121 | B131: FMCG | C131: MARICO | D131: 336.70 | E131: 336.57 | F131: 334.18 | G131: 331.67 | H131: 329.28 | I131: 339.08 | J131: 341.47 | K131: 343.98 | L131: 338.95 | M131: 334.05 | N131: 7594600 | O131: 1.81%
A132: 122 | B132: Automobile | C132: MARUTI | D132: 7008.30 | E132: 7022.20 | F132: 6977.10 | G132: 6945.90 | H132: 6900.80 | I132: 7053.40 | J132: 7098.50 | K132: 7129.70 | L132: 7067.3 | M132: 6991 | N132: 2713575 | O132: 0.32%
A133: 123 | B133: FMCG | C133: MCDOWELL-N | D133: 561.00 | E133: 563.43 | F133: 556.17 | G133: 551.33 | H133: 544.07 | I133: 568.27 | J133: 575.53 | K133: 580.37 | L133: 570.7 | M133: 558.6 | N133: 10795000 | O133: 0.31%
A134: 124 | B134: Others | C134: MCX | D134: 732.35 | E134: 733.80 | F134: 720.15 | G134: 707.95 | H134: 694.30 | I134: 746.00 | J134: 759.65 | K134: 771.85 | L134: 747.45 | M134: 721.6 | N134: 2422000 | O134: -1.42%
A135: 125 | B135: Finance | C135: MFSL | D135: 422.60 | E135: 418.83 | F135: 410.27 | G135: 397.93 | H135: 389.37 | I135: 431.17 | J135: 439.73 | K135: 452.07 | L135: 427.4 | M135: 406.5 | N135: 1832400 | O135: -6.49%
A136: 126 | B136: Others | C136: MGL | D136: 882.60 | E136: 881.17 | F136: 875.33 | G136: 868.07 | H136: 862.23 | I136: 888.43 | J136: 894.27 | K136: 901.53 | L136: 887 | M136: 873.9 | N136: 761400 | O136: -2.23%
A137: 127 | B137: Technology | C137: MINDTREE | D137: 924.45 | E137: 925.63 | F137: 917.12 | G137: 909.78 | H137: 901.27 | I137: 932.97 | J137: 941.48 | K137: 948.82 | L137: 934.15 | M137: 918.3 | N137: 2908800 | O137: -3.83%
A138: 128 | B138: Automobile | C138: MOTHERSUMI | D138: 163.90 | E138: 163.25 | F138: 161.35 | G138: 158.80 | H138: 156.90 | I138: 165.80 | J138: 167.70 | K138: 170.25 | L138: 165.15 | M138: 160.7 | N138: 28765050 | O138: -1.00%
A139: 129 | B139: Automobile | C139: MRF | D139: 57317.70 | E139: 57539.28 | F139: 56978.52 | G139: 56639.33 | H139: 56078.57 | I139: 57878.47 | J139: 58439.23 | K139: 58778.42 | L139: 58100.05 | M139: 57200.1 | N139: 35100 | O139: 0.49%
A140: 130 | B140: Others | C140: MRPL | D140: 68.85 | E140: 69.40 | F140: 67.80 | G140: 66.75 | H140: 65.15 | I140: 70.45 | J140: 72.05 | K140: 73.10 | L140: 71 | M140: 68.35 | N140: 5453000 | O140: -1.39%
A141: 131 | B141: Finance | C141: MUTHOOTFIN | D141: 569.60 | E141: 572.60 | F141: 562.35 | G141: 555.10 | H141: 544.85 | I141: 579.85 | J141: 590.10 | K141: 597.35 | L141: 582.85 | M141: 565.35 | N141: 2056500 | O141: 0.37%
A142: 132 | B142: Others | C142: NATIONALUM | D142: 56.30 | E142: 56.15 | F142: 54.55 | G142: 52.80 | H142: 51.20 | I142: 57.90 | J142: 59.50 | K142: 61.25 | L142: 57.75 | M142: 54.4 | N142: 33056000 | O142: 8.20%
A143: 133 | B143: Others | C143: NBCC | D143: 57.00 | E143: 57.37 | F143: 55.88 | G143: 54.77 | H143: 53.28 | I143: 58.48 | J143: 59.97 | K143: 61.08 | L143: 58.85 | M143: 56.25 | N143: 32992000 | O143: 8.55%
A144: 134 | B144: Infrastructure | C144: NCC | D144: 100.35 | E144: 99.42 | F144: 97.28 | G144: 94.22 | H144: 92.08 | I144: 102.48 | J144: 104.62 | K144: 107.68 | L144: 101.55 | M144: 96.35 | N144: 48320000 | O144: 2.27%
A145: 135 | B145: Others | C145: NESTLEIND | D145: 10164.80 | E145: 10175.58 | F145: 10090.22 | G145: 10015.63 | H145: 9930.27 | I145: 10250.17 | J145: 10335.53 | K145: 10410.12 | L145: 10260.95 | M145: 10101 | N145: 367500 | O145: 6.05%
A146: 136 | B146: Power | C146: NHPC | D146: 25.25 | E146: 25.18 | F146: 24.97 | G146: 24.68 | H146: 24.47 | I146: 25.47 | J146: 25.68 | K146: 25.97 | L146: 25.4 | M146: 24.9 | N146: 26028000 | O146: 0.31%
A147: 137 | B147: Technology | C147: NIITTECH | D147: 1321.40 | E147: 1321.50 | F147: 1312.00 | G147: 1302.60 | H147: 1293.10 | I147: 1330.90 | J147: 1340.40 | K147: 1349.80 | L147: 1331 | M147: 1312.1 | N147: 1405500 | O147: -0.43%
A148: 138 | B148: Metals | C148: NMDC | D148: 106.60 | E148: 105.95 | F148: 104.65 | G148: 102.70 | H148: 101.40 | I148: 107.90 | J148: 109.20 | K148: 111.15 | L148: 107.25 | M148: 104 | N148: 15480000 | O148: -2.75%
A149: 139 | B149: Power | C149: NTPC | D149: 148.65 | E149: 147.83 | F149: 145.37 | G149: 142.08 | H149: 139.62 | I149: 151.12 | J149: 153.58 | K149: 156.87 | L149: 150.3 | M149: 144.55 | N149: 39212000 | O149: 10.15%
A150: 140 | B150: Technology | C150: OFSS | D150: 3469.60 | E150: 3461.22 | F150: 3433.48 | G150: 3397.37 | H150: 3369.63 | I150: 3497.33 | J150: 3525.07 | K150: 3561.18 | L150: 3488.95 | M150: 3425.1 | N150: 182100 | O150: 3.67%
A151: 141 | B151: Oil_Gas | C151: OIL | D151: 173.75 | E151: 174.42 | F151: 171.38 | G151: 169.02 | H151: 165.98 | I151: 176.78 | J151: 179.82 | K151: 182.18 | L151: 177.45 | M151: 172.05 | N151: 8059029 | O151: 16.45%
A152: 142 | B152: Oil_Gas | C152: ONGC | D152: 148.45 | E152: 149.22 | F152: 146.23 | G152: 144.02 | H152: 141.03 | I152: 151.43 | J152: 154.42 | K152: 156.63 | L152: 152.2 | M152: 147 | N152: 32017500 | O152: 14.62%
A153: 143 | B153: Banking | C153: ORIENTBANK | D153: 94.95 | E153: 95.35 | F153: 93.55 | G153: 92.15 | H153: 90.35 | I153: 96.75 | J153: 98.55 | K153: 99.95 | L153: 97.15 | M153: 93.95 | N153: 13727000 | O153: -5.77%
A154: 144 | B154: Textile | C154: PAGEIND | D154: 23094.00 | E154: 23195.73 | F154: 22866.62 | G154: 22639.23 | H154: 22310.12 | I154: 23423.12 | J154: 23752.23 | K154: 23979.62 | L154: 23524.85 | M154: 22968.35 | N154: 131175 | O154: -2.58%
A155: 145 | B155: Others | C155: PCJEWELLER | D155: 77.40 | E155: 77.70 | F155: 75.85 | G155: 74.30 | H155: 72.45 | I155: 79.25 | J155: 81.10 | K155: 82.65 | L155: 79.55 | M155: 76.15 | N155: 11206000 | O155: -0.35%
A156: 146 | B156: Pharma | C156: PEL | D156: 2582.75 | E156: 2581.58 | F156: 2551.17 | G156: 2519.58 | H156: 2489.17 | I156: 2613.17 | J156: 2643.58 | K156: 2675.17 | L156: 2612 | M156: 2550 | N156: 3443404 | O156: 1.31%
A157: 147 | B157: Oil_Gas | C157: PETRONET | D157: 234.60 | E157: 233.03 | F157: 230.72 | G157: 226.83 | H157: 224.52 | I157: 236.92 | J157: 239.23 | K157: 243.12 | L157: 235.35 | M157: 229.15 | N157: 11898000 | O157: 2.06%
A158: 148 | B158: Finance | C158: PFC | D158: 108.95 | E158: 109.55 | F158: 106.55 | G158: 104.15 | H158: 101.15 | I158: 111.95 | J158: 114.95 | K158: 117.35 | L158: 112.55 | M158: 107.15 | N158: 25289800 | O158: 8.34%
A159: 149 | B159: FMCG | C159: PIDILITIND | D159: 1129.75 | E159: 1130.03 | F159: 1116.02 | G159: 1102.28 | H159: 1088.27 | I159: 1143.77 | J159: 1157.78 | K159: 1171.52 | L159: 1144.05 | M159: 1116.3 | N159: 2167500 | O159: 0.00%
A160: 150 | B160: Banking | C160: PNB | D160: 84.20 | E160: 84.72 | F160: 83.23 | G160: 82.27 | H160: 80.78 | I160: 85.68 | J160: 87.17 | K160: 88.13 | L160: 86.2 | M160: 83.75 | N160: 112371000 | O160: -0.16%
A161: 151 | B161: Power | C161: POWERGRID | D161: 181.95 | E161: 182.03 | F161: 180.57 | G161: 179.18 | H161: 177.72 | I161: 183.42 | J161: 184.88 | K161: 186.27 | L161: 183.5 | M161: 180.65 | N161: 17632000 | O161: 3.40%
A162: 152 | B162: Others | C162: PVR | D162: 1548.75 | E162: 1542.87 | F162: 1530.83 | G162: 1512.92 | H162: 1500.88 | I162: 1560.78 | J162: 1572.82 | K162: 1590.73 | L162: 1554.9 | M162: 1524.95 | N162: 1313200 | O162: 0.58%
A163: 153 | B163: Cement | C163: RAMCOCEM | D163: 729.30 | E163: 722.57 | F163: 713.13 | G163: 696.97 | H163: 687.53 | I163: 738.73 | J163: 748.17 | K163: 764.33 | L163: 732 | M163: 706.4 | N163: 800000 | O163: 11.73%
A164: 154 | B164: Others | C164: RAYMOND | D164: 812.80 | E164: 814.28 | F164: 806.57 | G164: 800.33 | H164: 792.62 | I164: 820.52 | J164: 828.23 | K164: 834.47 | L164: 822 | M164: 808.05 | N164: 3336800 | O164: -2.04%
A165: 155 | B165: Banking | C165: RBLBANK | D165: 636.75 | E165: 632.08 | F165: 623.42 | G165: 610.08 | H165: 601.42 | I165: 645.42 | J165: 654.08 | K165: 667.42 | L165: 640.75 | M165: 618.75 | N165: 6831600 | O165: 10.35%
A166: 157 | B166: Power | C166: RECLTD | D166: 141.85 | E166: 141.73 | F166: 138.82 | G166: 135.78 | H166: 132.87 | I166: 144.77 | J166: 147.68 | K166: 150.72 | L166: 144.65 | M166: 138.7 | N166: 31026000 | O166: -4.98%
A167: 158 | B167: Finance | C167: RELCAPITAL | D167: 190.00 | E167: 191.07 | F167: 184.88 | G167: 179.77 | H167: 173.58 | I167: 196.18 | J167: 202.37 | K167: 207.48 | L167: 197.25 | M167: 185.95 | N167: 9172500 | O167: 8.04%
A168: 159 | B168: Oil_Gas | C168: RELIANCE | D168: 1274.95 | E168: 1274.43 | F168: 1268.57 | G168: 1262.18 | H168: 1256.32 | I168: 1280.82 | J168: 1286.68 | K168: 1293.07 | L168: 1280.3 | M168: 1268.05 | N168: 52301500 | O168: -0.67%
A169: 160 | B169: Power | C169: RELINFRA | D169: 130.90 | E169: 132.87 | F169: 128.18 | G169: 125.47 | H169: 120.78 | I169: 135.58 | J169: 140.27 | K169: 142.98 | L169: 137.55 | M169: 130.15 | N169: 15177500 | O169: 5.76%
A170: 161 | B170: Others | C170: REPCOHOME | D170: 450.30 | E170: 446.68 | F170: 438.42 | G170: 426.53 | H170: 418.27 | I170: 458.57 | J170: 466.83 | K170: 478.72 | L170: 454.95 | M170: 434.8 | N170: 1133000 | O170: -1.15%
A171: 162 | B171: Power | C171: RPOWER | D171: 12.10 | E171: 12.22 | F171: 11.83 | G171: 11.57 | H171: 11.18 | I171: 12.48 | J171: 12.87 | K171: 13.13 | L171: 12.6 | M171: 11.95 | N171: 91488000 | O171: -5.24%
A172: 163 | B172: Metals | C172: SAIL | D172: 53.80 | E172: 53.93 | F172: 53.22 | G172: 52.63 | H172: 51.92 | I172: 54.52 | J172: 55.23 | K172: 55.82 | L172: 54.65 | M172: 53.35 | N172: 75636000 | O172: -1.85%
A173: 164 | B173: Banking | C173: SBIN | D173: 282.60 | E173: 282.92 | F173: 280.48 | G173: 278.37 | H173: 275.93 | I173: 285.03 | J173: 287.47 | K173: 289.58 | L173: 285.35 | M173: 280.8 | N173: 78066000 | O173: -1.73%
A174: 165 | B174: Cement | C174: SHREECEM | D174: 17731.90 | E174: 17640.15 | F174: 17513.95 | G174: 17296.00 | H174: 17169.80 | I174: 17858.10 | J174: 17984.30 | K174: 18202.25 | L174: 17766.35 | M174: 17422.2 | N174: 85850 | O174: -0.92%
A175: 166 | B175: Capital_Goods | C175: SIEMENS | D175: 1027.05 | E175: 1025.13 | F175: 1018.27 | G175: 1009.48 | H175: 1002.62 | I175: 1033.92 | J175: 1040.78 | K175: 1049.57 | L175: 1032 | M175: 1016.35 | N175: 1645600 | O175: -1.16%
A176: 167 | B176: Banking | C176: SOUTHBANK | D176: 14.95 | E176: 15.05 | F176: 14.70 | G176: 14.45 | H176: 14.10 | I176: 15.30 | J176: 15.65 | K176: 15.90 | L176: 15.4 | M176: 14.8 | N176: 148471680 | O176: 0.61%
A177: 169 | B177: Textile | C177: SRF | D177: 2363.30 | E177: 2356.67 | F177: 2341.03 | G177: 2318.77 | H177: 2303.13 | I177: 2378.93 | J177: 2394.57 | K177: 2416.83 | L177: 2372.3 | M177: 2334.4 | N177: 700000 | O177: -3.45%
A178: 170 | B178: Finance | C178: SRTRANSFIN | D178: 1226.80 | E178: 1223.63 | F178: 1214.27 | G178: 1201.73 | H178: 1192.37 | I178: 1236.17 | J178: 1245.53 | K178: 1258.07 | L178: 1233 | M178: 1211.1 | N178: 3828000 | O178: -1.68%
A179: 171 | B179: Pharma | C179: STAR | D179: 434.30 | E179: 436.93 | F179: 430.07 | G179: 425.83 | H179: 418.97 | I179: 441.17 | J179: 448.03 | K179: 452.27 | L179: 443.8 | M179: 432.7 | N179: 4348300 | O179: 1.83%
A180: 172 | B180: Pharma | C180: SUNPHARMA | D180: 456.85 | E180: 455.33 | F180: 450.67 | G180: 444.48 | H180: 439.82 | I180: 461.52 | J180: 466.18 | K180: 472.37 | L180: 460 | M180: 449.15 | N180: 51876000 | O180: -0.72%
A181: 173 | B181: Media | C181: SUNTV | D181: 596.70 | E181: 602.65 | F181: 586.25 | G181: 575.80 | H181: 559.40 | I181: 613.10 | J181: 629.50 | K181: 639.95 | L181: 619.05 | M181: 592.2 | N181: 6251000 | O181: 3.63%
A182: 174 | B182: Power | C182: SUZLON | D182: 7.35 | E182: 7.22 | F182: 6.78 | G182: 6.22 | H182: 5.78 | I182: 7.78 | J182: 8.22 | K182: 8.78 | L182: 7.65 | M182: 6.65 | N182: 239324000 | O182: 3.08%
A183: 175 | B183: Banking | C183: SYNDIBANK | D183: 37.25 | E183: 37.42 | F183: 36.73 | G183: 36.22 | H183: 35.53 | I183: 37.93 | J183: 38.62 | K183: 39.13 | L183: 38.1 | M183: 36.9 | N183: 23940000 | O183: -1.48%
A184: 176 | B184: Fertilisers | C184: TATACHEM | D184: 579.75 | E184: 583.17 | F184: 571.83 | G184: 563.92 | H184: 552.58 | I184: 591.08 | J184: 602.42 | K184: 610.33 | L184: 594.5 | M184: 575.25 | N184: 5505750 | O184: 12.33%
A185: 177 | B185: Telecom | C185: TATACOMM | D185: 616.40 | E185: 615.67 | F185: 610.58 | G185: 604.77 | H185: 599.68 | I185: 621.48 | J185: 626.57 | K185: 632.38 | L185: 620.75 | M185: 609.85 | N185: 2863000 | O185: -0.17%
A186: 178 | B186: Technology | C186: TATAELXSI | D186: 961.30 | E186: 965.48 | F186: 953.47 | G186: 945.63 | H186: 933.62 | I186: 973.32 | J186: 985.33 | K186: 993.17 | L186: 977.5 | M186: 957.65 | N186: 1594400 | O186: -3.35%
A187: 179 | B187: FMCG | C187: TATAGLOBAL | D187: 194.45 | E187: 195.62 | F187: 192.63 | G187: 190.82 | H187: 187.83 | I187: 197.43 | J187: 200.42 | K187: 202.23 | L187: 198.6 | M187: 193.8 | N187: 9951750 | O187: 4.05%
A188: 180 | B188: Automobile | C188: TATAMOTORS | D188: 182.35 | E188: 184.12 | F188: 179.53 | G188: 176.72 | H188: 172.13 | I188: 186.93 | J188: 191.52 | K188: 194.33 | L188: 188.7 | M188: 181.3 | N188: 54442000 | O188: 3.25%
A189: 181 | B189: Automobile | C189: TATAMTRDVR | D189: 92.10 | E189: 92.58 | F189: 90.77 | G189: 89.43 | H189: 87.62 | I189: 93.92 | J189: 95.73 | K189: 97.07 | L189: 94.4 | M189: 91.25 | N189: 29818600 | O189: -2.51%
A190: 182 | B190: Power | C190: TATAPOWER | D190: 70.50 | E190: 70.27 | F190: 69.38 | G190: 68.27 | H190: 67.38 | I190: 71.38 | J190: 72.27 | K190: 73.38 | L190: 71.15 | M190: 69.15 | N190: 54180000 | O190: 9.36%
A191: 183 | B191: Metals | C191: TATASTEEL | D191: 510.75 | E191: 513.45 | F191: 506.90 | G191: 503.05 | H191: 496.50 | I191: 517.30 | J191: 523.85 | K191: 527.70 | L191: 520 | M191: 509.6 | N191: 30559983 | O191: -3.64%
A192: 184 | B192: Technology | C192: TCS | D192: 2032.65 | E192: 2029.25 | F192: 2019.50 | G192: 2006.35 | H192: 1996.60 | I192: 2042.40 | J192: 2052.15 | K192: 2065.30 | L192: 2039 | M192: 2016.1 | N192: 14736250 | O192: -0.15%
A193: 185 | B193: Technology | C193: TECHM | D193: 816.45 | E193: 814.27 | F193: 810.18 | G193: 803.92 | H193: 799.83 | I193: 820.53 | J193: 824.62 | K193: 830.88 | L193: 818.35 | M193: 808 | N193: 11444400 | O193: -0.60%
A194: 186 | B194: FMCG | C194: TITAN | D194: 1058.35 | E194: 1055.17 | F194: 1046.73 | G194: 1035.12 | H194: 1026.68 | I194: 1066.78 | J194: 1075.22 | K194: 1086.83 | L194: 1063.6 | M194: 1043.55 | N194: 12008250 | O194: 1.51%
A195: 187 | B195: Pharma | C195: TORNTPHARM | D195: 1790.30 | E195: 1783.30 | F195: 1772.60 | G195: 1754.90 | H195: 1744.20 | I195: 1801.00 | J195: 1811.70 | K195: 1829.40 | L195: 1794 | M195: 1765.6 | N195: 538000 | O195: -3.41%
A196: 188 | B196: Power | C196: TORNTPOWER | D196: 250.25 | E196: 249.15 | F196: 245.85 | G196: 241.45 | H196: 238.15 | I196: 253.55 | J196: 256.85 | K196: 261.25 | L196: 252.45 | M196: 244.75 | N196: 1965000 | O196: -7.88%
A197: 189 | B197: Media | C197: TV18BRDCST | D197: 36.10 | E197: 36.10 | F197: 35.80 | G197: 35.50 | H197: 35.20 | I197: 36.40 | J197: 36.70 | K197: 37.00 | L197: 36.4 | M197: 35.8 | N197: 53924000 | O197: 0.02%
A198: 190 | B198: Automobile | C198: TVSMOTOR | D198: 486.75 | E198: 485.52 | F198: 482.13 | G198: 477.52 | H198: 474.13 | I198: 490.13 | J198: 493.52 | K198: 498.13 | L198: 488.9 | M198: 480.9 | N198: 5299000 | O198: -0.30%
A199: 191 | B199: FMCG | C199: UBL | D199: 1387.45 | E199: 1392.75 | F199: 1377.30 | G199: 1367.15 | H199: 1351.70 | I199: 1402.90 | J199: 1418.35 | K199: 1428.50 | L199: 1408.2 | M199: 1382.6 | N199: 2635500 | O199: -1.34%
A200: 192 | B200: Finance | C200: UJJIVAN | D200: 315.10 | E200: 317.17 | F200: 310.38 | G200: 305.67 | H200: 298.88 | I200: 321.88 | J200: 328.67 | K200: 333.38 | L200: 323.95 | M200: 312.45 | N200: 3593600 | O200: -2.85%
A201: 193 | B201: Cement | C201: ULTRACEMCO | D201: 3987.25 | E201: 3963.32 | F201: 3928.93 | G201: 3870.62 | H201: 3836.23 | I201: 4021.63 | J201: 4056.02 | K201: 4114.33 | L201: 3997.7 | M201: 3905 | N201: 2025400 | O201: -2.56%
A202: 194 | B202: Banking | C202: UNIONBANK | D202: 78.50 | E202: 79.25 | F202: 77.50 | G202: 76.50 | H202: 74.75 | I202: 80.25 | J202: 82.00 | K202: 83.00 | L202: 81 | M202: 78.25 | N202: 31955000 | O202: -2.10%
A203: 195 | B203: Fertilisers | C203: UPL | D203: 887.05 | E203: 881.80 | F203: 873.75 | G203: 860.45 | H203: 852.40 | I203: 895.10 | J203: 903.15 | K203: 916.45 | L203: 889.85 | M203: 868.5 | N203: 15063600 | O203: -0.29%
A204: 196 | B204: Metals | C204: VEDL | D204: 171.40 | E204: 171.80 | F204: 169.70 | G204: 168.00 | H204: 165.90 | I204: 173.50 | J204: 175.60 | K204: 177.30 | L204: 173.9 | M204: 170.1 | N204: 29755100 | O204: 2.05%
A205: 197 | B205: Others | C205: VGUARD | D205: 213.05 | E205: 213.85 | F205: 211.45 | G205: 209.85 | H205: 207.45 | I205: 215.45 | J205: 217.85 | K205: 219.45 | L205: 216.25 | M205: 212.25 | N205: 3117000 | O205: -1.61%
A206: 198 | B206: Capital_Goods | C206: VOLTAS | D206: 594.55 | E206: 593.03 | F206: 588.92 | G206: 583.28 | H206: 579.17 | I206: 598.67 | J206: 602.78 | K206: 608.42 | L206: 597.15 | M206: 587.4 | N206: 5731000 | O206: 0.86%
... 19 more rows

Sheet Cash Intra
M5: Back to Main Page
A6: FOR INTRA DAY TRADING | K6: =Main!B10 -> 2019-03-11
A8: Sr.no | B8: Scrip | C8: CLOSE RATE | D8: Pivot Point | E8: Supports | H8: Resistances
C9: Point | E9: S1 | F9: S2 | G9: S3 | H9: R1 | I9: R2 | J9: R3 | K9: HIGH | L9: LOW | M9: Total Trade Quanity in Lakhs
A10: 1 | B10: Nifty 50 | C10: 11035.4 | D10: 11031.12 | E10: 11013.23 | F10: 10991.07 | G10: 10973.18 | H10: 11053.28 | I10: 11071.17 | J10: 11093.33 | K10: 11049 | L10: 11008.95
A11: 2 | B11: Nifty Bank | C11: 27761.8 | D11: 27739.52 | E11: 27667.68 | F11: 27573.57 | G11: 27501.73 | H11: 27833.63 | I11: 27905.47 | J11: 27999.58 | K11: 27811.35 | L11: 27645.4
A12: 3 | B12: Nifty CPSE | C12: 2119.1 | D12: 2113.75 | E12: 2093.50 | F12: 2067.90 | G12: 2047.65 | H12: 2139.35 | I12: 2159.60 | J12: 2185.20 | K12: 2134 | L12: 2088.15
A13: 4 | B13: Nifty Infra | C13: 3038.55 | D13: 3040.00 | E13: 3022.05 | F13: 3005.55 | G13: 2987.60 | H13: 3056.50 | I13: 3074.45 | J13: 3090.95 | K13: 3057.95 | L13: 3023.5
A14: 5 | B14: Nifty IT | C14: 15408.7 | D14: 15447.52 | E14: 15349.38 | F14: 15290.07 | G14: 15191.93 | H14: 15506.83 | I14: 15604.97 | J14: 15664.28 | K14: 15545.65 | L14: 15388.2
A15: 6 | B15: Nifty PSE | C15: 3383.15 | D15: 3376.32 | E15: 3352.98 | F15: 3322.82 | G15: 3299.48 | H15: 3406.48 | I15: 3429.82 | J15: 3459.98 | K15: 3399.65 | L15: 3346.15
A16: 7 | B16: Nifty Midcap 50 | C16: 4795.5 | D16: 4799.00 | E16: 4769.95 | F16: 4744.40 | G16: 4715.35 | H16: 4824.55 | I16: 4853.60 | J16: 4879.15 | K16: 4828.05 | L16: 4773.45
A17: 8 | B17: ABB | C17: 1266 | D17: 1264.85 | E17: 1249.95 | F17: 1233.90 | G17: 1219.00 | H17: 1280.90 | I17: 1295.80 | J17: 1311.85 | K17: 1279.75 | L17: 1248.8 | M17: 1.25797
A18: 9 | B18: ACC | C18: 1574.55 | D18: 1566.50 | E18: 1553.05 | F18: 1531.55 | G18: 1518.10 | H18: 1588.00 | I18: 1601.45 | J18: 1622.95 | K18: 1579.95 | L18: 1545 | M18: 8.47268
A19: 10 | B19: AIAENG | C19: 1829.8 | D19: 1816.98 | E19: 1793.97 | F19: 1758.13 | G19: 1735.12 | H19: 1852.82 | I19: 1875.83 | J19: 1911.67 | K19: 1840 | L19: 1781.15 | M19: 0.08515
A20: 11 | B20: AUBANK | C20: 584.5 | D20: 582.67 | E20: 577.33 | F20: 570.17 | G20: 564.83 | H20: 589.83 | I20: 595.17 | J20: 602.33 | K20: 588 | L20: 575.5 | M20: 0.75292
A21: 12 | B21: ADANIENT | C21: 138.2 | D21: 137.65 | E21: 135.95 | F21: 133.70 | G21: 132.00 | H21: 139.90 | I21: 141.60 | J21: 143.85 | K21: 139.35 | L21: 135.4 | M21: 36.81442
A22: 13 | B22: ADANIPORTS | C22: 342.15 | D22: 341.07 | E22: 339.18 | F22: 336.22 | G22: 334.33 | H22: 344.03 | I22: 345.92 | J22: 348.88 | K22: 342.95 | L22: 338.1 | M22: 22.65
A23: 14 | B23: ADANIPOWER | C23: 50 | D23: 50.03 | E23: 49.32 | F23: 48.63 | G23: 47.92 | H23: 50.72 | I23: 51.43 | J23: 52.12 | K23: 50.75 | L23: 49.35 | M23: 119.08805
A24: 15 | B24: ABFRL | C24: 223.4 | D24: 224.17 | E24: 221.28 | F24: 219.17 | G24: 216.28 | H24: 226.28 | I24: 229.17 | J24: 231.28 | K24: 227.05 | L24: 222.05 | M24: 13.97701
A25: 16 | B25: AJANTPHARM | C25: 956.4 | D25: 957.97 | E25: 943.93 | F25: 931.47 | G25: 917.43 | H25: 970.43 | I25: 984.47 | J25: 996.93 | K25: 972 | L25: 945.5 | M25: 9.50296
A26: 17 | B26: ALKEM | C26: 1750 | D26: 1754.55 | E26: 1741.40 | F26: 1732.80 | G26: 1719.65 | H26: 1763.15 | I26: 1776.30 | J26: 1784.90 | K26: 1767.7 | L26: 1745.95 | M26: 0.41793
A27: 18 | B27: AMARAJABAT | C27: 738.7 | D27: 738.72 | E27: 732.18 | F27: 725.67 | G27: 719.13 | H27: 745.23 | I27: 751.77 | J27: 758.28 | K27: 745.25 | L27: 732.2 | M27: 1.71908
A28: 19 | B28: AMBUJACEM | C28: 226.15 | D28: 224.60 | E28: 222.10 | F28: 218.05 | G28: 215.55 | H28: 228.65 | I28: 231.15 | J28: 235.20 | K28: 227.1 | L28: 220.55 | M28: 28.03088
A29: 20 | B29: APOLLOHOSP | C29: 1171.9 | D29: 1175.78 | E29: 1163.12 | F29: 1154.33 | G29: 1141.67 | H29: 1184.57 | I29: 1197.23 | J29: 1206.02 | K29: 1188.45 | L29: 1167 | M29: 2.6817
A30: 21 | B30: APOLLOTYRE | C30: 212.3 | D30: 213.55 | E30: 210.25 | F30: 208.20 | G30: 204.90 | H30: 215.60 | I30: 218.90 | J30: 220.95 | K30: 216.85 | L30: 211.5 | M30: 15.54812
A31: 22 | B31: ARVIND | C31: 83.95 | D31: 85.45 | E31: 81.15 | F31: 78.35 | G31: 74.05 | H31: 88.25 | I31: 92.55 | J31: 95.35 | K31: 89.75 | L31: 82.65 | M31: 134.51763
A32: 23 | B32: ASHOKLEY | C32: 89.65 | D32: 89.97 | E32: 88.98 | F32: 88.32 | G32: 87.33 | H32: 90.63 | I32: 91.62 | J32: 92.28 | K32: 90.95 | L32: 89.3 | M32: 192.94489
A33: 24 | B33: ASIANPAINT | C33: 1382.35 | D33: 1385.67 | E33: 1376.68 | F33: 1371.02 | G33: 1362.03 | H33: 1391.33 | I33: 1400.32 | J33: 1405.98 | K33: 1394.65 | L33: 1380 | M33: 5.24331
A34: 25 | B34: AUROPHARMA | C34: 735.85 | D34: 730.02 | E34: 722.38 | F34: 708.92 | G34: 701.28 | H34: 743.48 | I34: 751.12 | J34: 764.58 | K34: 737.65 | L34: 716.55 | M34: 20.51628
A35: 26 | B35: DMART | C35: 1450.4 | D35: 1454.68 | E35: 1440.72 | F35: 1431.03 | G35: 1417.07 | H35: 1464.37 | I35: 1478.33 | J35: 1488.02 | K35: 1468.65 | L35: 1445 | M35: 2.41894
A36: 27 | B36: AXISBANK | C36: 733.4 | D36: 733.02 | E36: 728.78 | F36: 724.17 | G36: 719.93 | H36: 737.63 | I36: 741.87 | J36: 746.48 | K36: 737.25 | L36: 728.4 | M36: 77.44794
A37: 28 | B37: BAJAJ-AUTO | C37: 2955.7 | D37: 2940.12 | E37: 2915.63 | F37: 2875.57 | G37: 2851.08 | H37: 2980.18 | I37: 3004.67 | J37: 3044.73 | K37: 2964.6 | L37: 2900.05 | M37: 7.54427
A38: 29 | B38: BAJFINANCE | C38: 2768.3 | D38: 2754.63 | E38: 2730.27 | F38: 2692.23 | G38: 2667.87 | H38: 2792.67 | I38: 2817.03 | J38: 2855.07 | K38: 2779 | L38: 2716.6 | M38: 11.78087
A39: 30 | B39: BAJAJFINSV | C39: 6616.95 | D39: 6602.32 | E39: 6564.63 | F39: 6512.32 | G39: 6474.63 | H39: 6654.63 | I39: 6692.32 | J39: 6744.63 | K39: 6640 | L39: 6550 | M39: 1.44867
A40: 31 | B40: BALKRISIND | C40: 904.7 | D40: 909.10 | E40: 895.70 | F40: 886.70 | G40: 873.30 | H40: 918.10 | I40: 931.50 | J40: 940.50 | K40: 922.5 | L40: 900.1 | M40: 2.68819
A41: 32 | B41: BANKBARODA | C41: 113.6 | D41: 114.50 | E41: 112.15 | F41: 110.70 | G41: 108.35 | H41: 115.95 | I41: 118.30 | J41: 119.75 | K41: 116.85 | L41: 113.05 | M41: 169.38684
A42: 33 | B42: BANKINDIA | C42: 88.8 | D42: 89.53 | E42: 87.67 | F42: 86.53 | G42: 84.67 | H42: 90.67 | I42: 92.53 | J42: 93.67 | K42: 91.4 | L42: 88.4 | M42: 81.68221
A43: 34 | B43: BATAINDIA | C43: 1328.95 | D43: 1334.68 | E43: 1318.92 | F43: 1308.88 | G43: 1293.12 | H43: 1344.72 | I43: 1360.48 | J43: 1370.52 | K43: 1350.45 | L43: 1324.65 | M43: 7.46047
A44: 35 | B44: BERGEPAINT | C44: 302.35 | D44: 301.02 | E44: 298.03 | F44: 293.72 | G44: 290.73 | H44: 305.33 | I44: 308.32 | J44: 312.63 | K44: 304 | L44: 296.7 | M44: 7.66371
A45: 36 | B45: BEL | C45: 87.2 | D45: 87.67 | E45: 86.33 | F45: 85.47 | G45: 84.13 | H45: 88.53 | I45: 89.87 | J45: 90.73 | K45: 89 | L45: 86.8 | M45: 121.03502
A46: 37 | B46: BHARATFIN | C46: 953.35 | D46: 954.52 | E46: 947.13 | F46: 940.92 | G46: 933.53 | H46: 960.73 | I46: 968.12 | J46: 974.33 | K46: 961.9 | L46: 948.3 | M46: 2.20538
A47: 38 | B47: BHARATFORG | C47: 507.35 | D47: 508.67 | E47: 500.78 | F47: 494.22 | G47: 486.33 | H47: 515.23 | I47: 523.12 | J47: 529.68 | K47: 516.55 | L47: 502.1 | M47: 12.00535
A48: 39 | B48: BHEL | C48: 67.1 | D48: 67.17 | E48: 66.43 | F48: 65.77 | G48: 65.03 | H48: 67.83 | I48: 68.57 | J48: 69.23 | K48: 67.9 | L48: 66.5 | M48: 93.35968
A49: 40 | B49: BPCL | C49: 367.35 | D49: 367.80 | E49: 364.20 | F49: 361.05 | G49: 357.45 | H49: 370.95 | I49: 374.55 | J49: 377.70 | K49: 371.4 | L49: 364.65 | M49: 28.12574
A50: 41 | B50: BHARTIARTL | C50: 308.7 | D50: 309.45 | E50: 306.90 | F50: 305.10 | G50: 302.55 | H50: 311.25 | I50: 313.80 | J50: 315.60 | K50: 312 | L50: 307.65 | M50: 40.02947
A51: 42 | B51: INFRATEL | C51: 305.5 | D51: 306.52 | E51: 303.03 | F51: 300.57 | G51: 297.08 | H51: 308.98 | I51: 312.47 | J51: 314.93 | K51: 310 | L51: 304.05 | M51: 21.75387
A52: 43 | B52: BIOCON | C52: 614.8 | D52: 615.30 | E52: 611.10 | F52: 607.40 | G52: 603.20 | H52: 619.00 | I52: 623.20 | J52: 626.90 | K52: 619.5 | L52: 611.6 | M52: 13.55805
A53: 44 | B53: BOSCHLTD | C53: 18429.85 | D53: 18382.37 | E53: 18247.48 | F53: 18065.12 | G53: 17930.23 | H53: 18564.73 | I53: 18699.62 | J53: 18881.98 | K53: 18517.25 | L53: 18200 | M53: 0.11836
A54: 45 | B54: BRITANNIA | C54: 3071.2 | D54: 3057.23 | E54: 3034.97 | F54: 2998.73 | G54: 2976.47 | H54: 3093.47 | I54: 3115.73 | J54: 3151.97 | K54: 3079.5 | L54: 3021 | M54: 1.90651
A55: 46 | B55: CRISIL | C55: 1434.65 | D55: 1457.13 | E55: 1401.17 | F55: 1367.68 | G55: 1311.72 | H55: 1490.62 | I55: 1546.58 | J55: 1580.07 | K55: 1513.1 | L55: 1423.65 | M55: 0.35611
A56: 47 | B56: CADILAHC | C56: 324.95 | D56: 328.38 | E56: 320.77 | F56: 316.58 | G56: 308.97 | H56: 332.57 | I56: 340.18 | J56: 344.37 | K56: 336 | L56: 324.2 | M56: 5.99037
A57: 48 | B57: CANBK | C57: 254 | D57: 255.05 | E57: 251.80 | F57: 249.60 | G57: 246.35 | H57: 257.25 | I57: 260.50 | J57: 262.70 | K57: 258.3 | L57: 252.85 | M57: 36.46618
A58: 49 | B58: CASTROLIND | C58: 161.8 | D58: 162.30 | E58: 160.60 | F58: 159.40 | G58: 157.70 | H58: 163.50 | I58: 165.20 | J58: 166.40 | K58: 164 | L58: 161.1 | M58: 8.71135
A59: 50 | B59: CENTRALBK | C59: 32.95 | D59: 32.80 | E59: 31.65 | F59: 30.35 | G59: 29.20 | H59: 34.10 | I59: 35.25 | J59: 36.55 | K59: 33.95 | L59: 31.5 | M59: 19.83489
A60: 51 | B60: CENTURYTEX | C60: 856.3 | D60: 853.32 | E60: 845.58 | F60: 834.87 | G60: 827.13 | H60: 864.03 | I60: 871.77 | J60: 882.48 | K60: 861.05 | L60: 842.6 | M60: 3.55975
A61: 52 | B61: CHOLAFIN | C61: 1289.2 | D61: 1296.37 | E61: 1279.88 | F61: 1270.57 | G61: 1254.08 | H61: 1305.68 | I61: 1322.17 | J61: 1331.48 | K61: 1312.85 | L61: 1287.05 | M61: 1.6116
A62: 53 | B62: CIPLA | C62: 539.95 | D62: 540.53 | E62: 537.67 | F62: 535.38 | G62: 532.52 | H62: 542.82 | I62: 545.68 | J62: 547.97 | K62: 543.4 | L62: 538.25 | M62: 26.18767
A63: 54 | B63: COALINDIA | C63: 234.9 | D63: 234.00 | E63: 230.50 | F63: 226.10 | G63: 222.60 | H63: 238.40 | I63: 241.90 | J63: 246.30 | K63: 237.5 | L63: 229.6 | M63: 128.03612
A64: 55 | B64: COLPAL | C64: 1251.7 | D64: 1256.25 | E64: 1242.50 | F64: 1233.30 | G64: 1219.55 | H64: 1265.45 | I64: 1279.20 | J64: 1288.40 | K64: 1270 | L64: 1247.05 | M64: 3.47589
A65: 56 | B65: CONCOR | C65: 488.45 | D65: 486.93 | E65: 483.87 | F65: 479.28 | G65: 476.22 | H65: 491.52 | I65: 494.58 | J65: 499.17 | K65: 490 | L65: 482.35 | M65: 7.47344
A66: 57 | B66: COROMANDEL | C66: 480.7 | D66: 477.08 | E66: 472.17 | F66: 463.63 | G66: 458.72 | H66: 485.62 | I66: 490.53 | J66: 499.07 | K66: 482 | L66: 468.55 | M66: 2.25338
A67: 58 | B67: CROMPTON | C67: 220.55 | D67: 219.20 | E67: 216.90 | F67: 213.25 | G67: 210.95 | H67: 222.85 | I67: 225.15 | J67: 228.80 | K67: 221.5 | L67: 215.55 | M67: 2.7089
A68: 59 | B68: CUMMINSIND | C68: 730.4 | D68: 734.40 | E68: 724.10 | F68: 717.80 | G68: 707.50 | H68: 740.70 | I68: 751.00 | J68: 757.30 | K68: 744.7 | L68: 728.1 | M68: 2.01353
A69: 60 | B69: DLF | C69: 175.35 | D69: 175.30 | E69: 173.85 | F69: 172.35 | G69: 170.90 | H69: 176.80 | I69: 178.25 | J69: 179.75 | K69: 176.75 | L69: 173.8 | M69: 30.05893
A70: 61 | B70: DABUR | C70: 432.2 | D70: 432.85 | E70: 430.15 | F70: 428.10 | G70: 425.40 | H70: 434.90 | I70: 437.60 | J70: 439.65 | K70: 435.55 | L70: 430.8 | M70: 8.32863
A71: 62 | B71: DHFL | C71: 139.85 | D71: 140.98 | E71: 137.72 | F71: 135.58 | G71: 132.32 | H71: 143.12 | I71: 146.38 | J71: 148.52 | K71: 144.25 | L71: 138.85 | M71: 133.2831
A72: 63 | B72: DISHTV | C72: 37.3 | D72: 37.75 | E72: 36.65 | F72: 36.00 | G72: 34.90 | H72: 38.40 | I72: 39.50 | J72: 40.15 | K72: 38.85 | L72: 37.1 | M72: 122.26163
A73: 64 | B73: DIVISLAB | C73: 1647.4 | D73: 1649.77 | E73: 1633.63 | F73: 1619.87 | G73: 1603.73 | H73: 1663.53 | I73: 1679.67 | J73: 1693.43 | K73: 1665.9 | L73: 1636 | M73: 4.28683
A74: 65 | B74: LALPATHLAB | C74: 1018.2 | D74: 1014.70 | E74: 1004.45 | F74: 990.70 | G74: 980.45 | H74: 1028.45 | I74: 1038.70 | J74: 1052.45 | K74: 1024.95 | L74: 1000.95 | M74: 0.44975
A75: 66 | B75: DRREDDY | C75: 2615.05 | D75: 2635.83 | E75: 2585.72 | F75: 2556.38 | G75: 2506.27 | H75: 2665.17 | I75: 2715.28 | J75: 2744.62 | K75: 2685.95 | L75: 2606.5 | M75: 6.84806
A76: 67 | B76: EDELWEISS | C76: 162.5 | D76: 162.50 | E76: 161.05 | F76: 159.60 | G76: 158.15 | H76: 163.95 | I76: 165.40 | J76: 166.85 | K76: 163.95 | L76: 161.05 | M76: 23.84564
A77: 68 | B77: EICHERMOT | C77: 21871.05 | D77: 21788.18 | E77: 21482.92 | F77: 21094.78 | G77: 20789.52 | H77: 22176.32 | I77: 22481.58 | J77: 22869.72 | K77: 22093.45 | L77: 21400.05 | M77: 1.95792
A78: 69 | B78: EMAMILTD | C78: 383.1 | D78: 386.35 | E78: 377.85 | F78: 372.60 | G78: 364.10 | H78: 391.60 | I78: 400.10 | J78: 405.35 | K78: 394.85 | L78: 381.1 | M78: 6.20653
A79: 70 | B79: ENDURANCE | C79: 1168.55 | D79: 1170.15 | E79: 1160.40 | F79: 1152.25 | G79: 1142.50 | H79: 1178.30 | I79: 1188.05 | J79: 1196.20 | K79: 1179.9 | L79: 1162 | M79: 9.16051
A80: 71 | B80: ENGINERSIN | C80: 110.5 | D80: 111.07 | E80: 108.83 | F80: 107.17 | G80: 104.93 | H80: 112.73 | I80: 114.97 | J80: 116.63 | K80: 113.3 | L80: 109.4 | M80: 18.98197
A81: 72 | B81: EXIDEIND | C81: 224.45 | D81: 223.97 | E81: 221.43 | F81: 218.42 | G81: 215.88 | H81: 226.98 | I81: 229.52 | J81: 232.53 | K81: 226.5 | L81: 220.95 | M81: 9.96307
A82: 73 | B82: FEDERALBNK | C82: 87.55 | D82: 87.77 | E82: 86.78 | F82: 86.02 | G82: 85.03 | H82: 88.53 | I82: 89.52 | J82: 90.28 | K82: 88.75 | L82: 87 | M82: 63.53771
A83: 74 | B83: GAIL | C83: 349.65 | D83: 347.45 | E83: 343.90 | F83: 338.15 | G83: 334.60 | H83: 353.20 | I83: 356.75 | J83: 362.50 | K83: 351 | L83: 341.7 | M83: 27.17482
A84: 75 | B84: GMRINFRA | C84: 16.85 | D84: 16.87 | E84: 16.68 | F84: 16.52 | G84: 16.33 | H84: 17.03 | I84: 17.22 | J84: 17.38 | K84: 17.05 | L84: 16.7 | M84: 84.63138
A85: 76 | B85: GSKCONS | C85: 7040.15 | D85: 7043.03 | E85: 6960.12 | F85: 6880.08 | G85: 6797.17 | H85: 7123.07 | I85: 7205.98 | J85: 7286.02 | K85: 7125.95 | L85: 6963 | M85: 0.27601
A86: 77 | B86: GLAXO | C86: 1311.7 | D86: 1303.75 | E86: 1287.70 | F86: 1263.70 | G86: 1247.65 | H86: 1327.75 | I86: 1343.80 | J86: 1367.80 | K86: 1319.8 | L86: 1279.75 | M86: 0.17079
A87: 78 | B87: GLENMARK | C87: 598.05 | D87: 602.55 | E87: 591.10 | F87: 584.15 | G87: 572.70 | H87: 609.50 | I87: 620.95 | J87: 627.90 | K87: 614 | L87: 595.6 | M87: 5.33133
A88: 79 | B88: GODREJCP | C88: 708 | D88: 707.92 | E88: 701.83 | F88: 695.67 | G88: 689.58 | H88: 714.08 | I88: 720.17 | J88: 726.33 | K88: 714 | L88: 701.75 | M88: 6.29722
A89: 80 | B89: GODREJIND | C89: 511.1 | D89: 511.55 | E89: 508.35 | F89: 505.60 | G89: 502.40 | H89: 514.30 | I89: 517.50 | J89: 520.25 | K89: 514.75 | L89: 508.8 | M89: 4.58957
A90: 81 | B90: GRUH | C90: 267.45 | D90: 263.82 | E90: 259.03 | F90: 250.62 | G90: 245.83 | H90: 272.23 | I90: 277.02 | J90: 285.43 | K90: 268.6 | L90: 255.4 | M90: 13.50845
A91: 82 | B91: GPPL | C91: 88.8 | D91: 88.47 | E91: 87.43 | F91: 86.07 | G91: 85.03 | H91: 89.83 | I91: 90.87 | J91: 92.23 | K91: 89.5 | L91: 87.1 | M91: 1.73368
A92: 83 | B92: GSPL | C92: 169.75 | D92: 169.72 | E92: 167.53 | F92: 165.32 | G92: 163.13 | H92: 171.93 | I92: 174.12 | J92: 176.33 | K92: 171.9 | L92: 167.5 | M92: 1.57569
A93: 84 | B93: HCLTECH | C93: 1009.05 | D93: 1015.00 | E93: 1000.05 | F93: 991.05 | G93: 976.10 | H93: 1024.00 | I93: 1038.95 | J93: 1047.95 | K93: 1029.95 | L93: 1006 | M93: 15.88047
A94: 85 | B94: HDFCBANK | C94: 2128.2 | D94: 2122.55 | E94: 2115.10 | F94: 2102.00 | G94: 2094.55 | H94: 2135.65 | I94: 2143.10 | J94: 2156.20 | K94: 2130 | L94: 2109.45 | M94: 17.63365
A95: 86 | B95: HAVELLS | C95: 727.85 | D95: 725.00 | E95: 720.50 | F95: 713.15 | G95: 708.65 | H95: 732.35 | I95: 736.85 | J95: 744.20 | K95: 729.5 | L95: 717.65 | M95: 11.94157
A96: 87 | B96: HEROMOTOCO | C96: 2740.35 | D96: 2732.92 | E96: 2707.38 | F96: 2674.42 | G96: 2648.88 | H96: 2765.88 | I96: 2791.42 | J96: 2824.38 | K96: 2758.45 | L96: 2699.95 | M96: 6.7484
A97: 88 | B97: HEXAWARE | C97: 346.05 | D97: 346.13 | E97: 341.12 | F97: 336.18 | G97: 331.17 | H97: 351.07 | I97: 356.08 | J97: 361.02 | K97: 351.15 | L97: 341.2 | M97: 12.46873
A98: 89 | B98: HINDALCO | C98: 195.55 | D98: 195.58 | E98: 193.57 | F98: 191.58 | G98: 189.57 | H98: 197.57 | I98: 199.58 | J98: 201.57 | K98: 197.6 | L98: 193.6 | M98: 100.50458
A99: 90 | B99: HINDPETRO | C99: 249.85 | D99: 248.98 | E99: 246.57 | F99: 243.28 | G99: 240.87 | H99: 252.27 | I99: 254.68 | J99: 257.97 | K99: 251.4 | L99: 245.7 | M99: 37.8026
A100: 91 | B100: HINDUNILVR | C100: 1701.6 | D100: 1704.90 | E100: 1691.80 | F100: 1682.00 | G100: 1668.90 | H100: 1714.70 | I100: 1727.80 | J100: 1737.60 | K100: 1718 | L100: 1695.1 | M100: 14.19614
A101: 92 | B101: HINDZINC | C101: 267.25 | D101: 267.53 | E101: 265.57 | F101: 263.88 | G101: 261.92 | H101: 269.22 | I101: 271.18 | J101: 272.87 | K101: 269.5 | L101: 265.85 | M101: 5.09873
A102: 93 | B102: HUDCO | C102: 44.75 | D102: 44.83 | E102: 44.32 | F102: 43.88 | G102: 43.37 | H102: 45.27 | I102: 45.78 | J102: 46.22 | K102: 45.35 | L102: 44.4 | M102: 7.25062
A103: 94 | B103: HDFC | C103: 1884.05 | D103: 1881.05 | E103: 1874.10 | F103: 1864.15 | G103: 1857.20 | H103: 1891.00 | I103: 1897.95 | J103: 1907.90 | K103: 1888 | L103: 1871.1 | M103: 18.45737
A104: 95 | B104: ITC | C104: 292 | D104: 291.13 | E104: 289.27 | F104: 286.53 | G104: 284.67 | H104: 293.87 | I104: 295.73 | J104: 298.47 | K104: 293 | L104: 288.4 | M104: 126.81454
A105: 96 | B105: ICICIBANK | C105: 370.6 | D105: 370.55 | E105: 367.70 | F105: 364.80 | G105: 361.95 | H105: 373.45 | I105: 376.30 | J105: 379.20 | K105: 373.4 | L105: 367.65 | M105: 161.43455
A106: 97 | B106: ICICIPRULI | C106: 342.25 | D106: 337.93 | E106: 326.97 | F106: 311.68 | G106: 300.72 | H106: 353.22 | I106: 364.18 | J106: 379.47 | K106: 348.9 | L106: 322.65 | M106: 68.48042
A107: 98 | B107: IDBI | C107: 43.35 | D107: 43.62 | E107: 42.93 | F107: 42.52 | G107: 41.83 | H107: 44.03 | I107: 44.72 | J107: 45.13 | K107: 44.3 | L107: 43.2 | M107: 50.93875
A108: 99 | B108: IDFCFIRSTB | C108: 48.95 | D108: 49.02 | E108: 48.43 | F108: 47.92 | G108: 47.33 | H108: 49.53 | I108: 50.12 | J108: 50.63 | K108: 49.6 | L108: 48.5 | M108: 164.09981
A109: 100 | B109: IDFC | C109: 39.2 | D109: 39.53 | E109: 38.67 | F109: 38.13 | G109: 37.27 | H109: 40.07 | I109: 40.93 | J109: 41.47 | K109: 40.4 | L109: 39 | M109: 39.12203
A110: 101 | B110: IRB | C110: 147.55 | D110: 147.22 | E110: 145.63 | F110: 143.72 | G110: 142.13 | H110: 149.13 | I110: 150.72 | J110: 152.63 | K110: 148.8 | L110: 145.3 | M110: 9.68499
A111: 102 | B111: IDEA | C111: 32.55 | D111: 32.33 | E111: 31.92 | F111: 31.28 | G111: 30.87 | H111: 32.97 | I111: 33.38 | J111: 34.02 | K111: 32.75 | L111: 31.7 | M111: 296.18241
A112: 103 | B112: IBULHSGFIN | C112: 702 | D112: 711.98 | E112: 688.02 | F112: 674.03 | G112: 650.07 | H112: 725.97 | I112: 749.93 | J112: 763.92 | K112: 735.95 | L112: 698 | M112: 101.13206
A113: 104 | B113: INDIANB | C113: 253.3 | D113: 251.15 | E113: 247.30 | F113: 241.30 | G113: 237.45 | H113: 257.15 | I113: 261.00 | J113: 267.00 | K113: 255 | L113: 245.15 | M113: 21.24915
A114: 105 | B114: INDHOTEL | C114: 144.55 | D114: 144.68 | E114: 141.37 | F114: 138.18 | G114: 134.87 | H114: 147.87 | I114: 151.18 | J114: 154.37 | K114: 148 | L114: 141.5 | M114: 38.85045
A115: 106 | B115: IOC | C115: 148.7 | D115: 148.10 | E115: 145.30 | F115: 141.90 | G115: 139.10 | H115: 151.50 | I115: 154.30 | J115: 157.70 | K115: 150.9 | L115: 144.7 | M115: 160.4935
A116: 107 | B116: IGL | C116: 293.8 | D116: 291.90 | E116: 289.05 | F116: 284.30 | G116: 281.45 | H116: 296.65 | I116: 299.50 | J116: 304.25 | K116: 294.75 | L116: 287.15 | M116: 10.73058
A117: 108 | B117: INDUSINDBK | C117: 1518 | D117: 1519.18 | E117: 1506.77 | F117: 1495.53 | G117: 1483.12 | H117: 1530.42 | I117: 1542.83 | J117: 1554.07 | K117: 1531.6 | L117: 1507.95 | M117: 9.66595
A118: 109 | B118: NAUKRI | C118: 1781.9 | D118: 1760.30 | E118: 1721.60 | F118: 1661.30 | G118: 1622.60 | H118: 1820.60 | I118: 1859.30 | J118: 1919.60 | K118: 1799 | L118: 1700 | M118: 2.65858
A119: 110 | B119: INFY | C119: 712.35 | D119: 715.32 | E119: 707.68 | F119: 703.02 | G119: 695.38 | H119: 719.98 | I119: 727.62 | J119: 732.28 | K119: 722.95 | L119: 710.65 | M119: 71.93994
A120: 111 | B120: INDIGO | C120: 1243 | D120: 1238.57 | E120: 1221.13 | F120: 1199.27 | G120: 1181.83 | H120: 1260.43 | I120: 1277.87 | J120: 1299.73 | K120: 1256 | L120: 1216.7 | M120: 13.35943
A121: 112 | B121: IPCALAB | C121: 887.05 | D121: 889.48 | E121: 861.57 | F121: 836.08 | G121: 808.17 | H121: 914.97 | I121: 942.88 | J121: 968.37 | K121: 917.4 | L121: 864 | M121: 4.85914
A122: 113 | B122: JSWENERGY | C122: 68.4 | D122: 68.97 | E122: 67.23 | F122: 66.07 | G122: 64.33 | H122: 70.13 | I122: 71.87 | J122: 73.03 | K122: 70.7 | L122: 67.8 | M122: 17.1401
A123: 114 | B123: JSWSTEEL | C123: 286.4 | D123: 286.67 | E123: 283.93 | F123: 281.47 | G123: 278.73 | H123: 289.13 | I123: 291.87 | J123: 294.33 | K123: 289.4 | L123: 284.2 | M123: 59.61633
A124: 115 | B124: JINDALSTEL | C124: 162.75 | D124: 163.40 | E124: 161.00 | F124: 159.25 | G124: 156.85 | H124: 165.15 | I124: 167.55 | J124: 169.30 | K124: 165.8 | L124: 161.65 | M124: 83.15379
A125: 116 | B125: JUBLFOOD | C125: 1339.6 | D125: 1334.20 | E125: 1320.50 | F125: 1301.40 | G125: 1287.70 | H125: 1353.30 | I125: 1367.00 | J125: 1386.10 | K125: 1347.9 | L125: 1315.1 | M125: 13.57561
A126: 117 | B126: JUBILANT | C126: 769.2 | D126: 770.03 | E126: 744.17 | F126: 719.13 | G126: 693.27 | H126: 795.07 | I126: 820.93 | J126: 845.97 | K126: 795.9 | L126: 745 | M126: 10.39008
A127: 118 | B127: KARURVYSYA | C127: 69.45 | D127: 69.88 | E127: 68.32 | F127: 67.18 | G127: 65.62 | H127: 71.02 | I127: 72.58 | J127: 73.72 | K127: 71.45 | L127: 68.75 | M127: 6.68812
A128: 119 | B128: KOTAKBANK | C128: 1238.9 | D128: 1238.03 | E128: 1232.57 | F128: 1226.23 | G128: 1220.77 | H128: 1244.37 | I128: 1249.83 | J128: 1256.17 | K128: 1243.5 | L128: 1231.7 | M128: 10.51433
A129: 120 | B129: L&TFH | C129: 141.85 | D129: 141.67 | E129: 139.93 | F129: 138.02 | G129: 136.28 | H129: 143.58 | I129: 145.32 | J129: 147.23 | K129: 143.4 | L129: 139.75 | M129: 111.39172
A130: 121 | B130: LICHSGFIN | C130: 493.65 | D130: 491.05 | E130: 487.10 | F130: 480.55 | G130: 476.60 | H130: 497.60 | I130: 501.55 | J130: 508.10 | K130: 495 | L130: 484.5 | M130: 11.75197
A131: 122 | B131: LT | C131: 1339.4 | D131: 1346.47 | E131: 1329.93 | F131: 1320.47 | G131: 1303.93 | H131: 1355.93 | I131: 1372.47 | J131: 1381.93 | K131: 1363 | L131: 1337 | M131: 48.68283
A132: 123 | B132: LUPIN | C132: 779.15 | D132: 784.77 | E132: 769.73 | F132: 760.32 | G132: 745.28 | H132: 794.18 | I132: 809.22 | J132: 818.63 | K132: 799.8 | L132: 775.35 | M132: 19.71916
A133: 124 | B133: MRF | C133: 57026.6 | D133: 57285.53 | E133: 56571.07 | F133: 56115.53 | G133: 55401.07 | H133: 57741.07 | I133: 58455.53 | J133: 58911.07 | K133: 58000 | L133: 56830 | M133: 0.06779
A134: 125 | B134: MGL | C134: 878.45 | D134: 879.80 | E134: 870.65 | F134: 862.85 | G134: 853.70 | H134: 887.60 | I134: 896.75 | J134: 904.55 | K134: 888.95 | L134: 872 | M134: 3.02967
A135: 126 | B135: M&MFIN | C135: 435.95 | D135: 435.27 | E135: 429.93 | F135: 423.92 | G135: 418.58 | H135: 441.28 | I135: 446.62 | J135: 452.63 | K135: 440.6 | L135: 429.25 | M135: 11.0391
A136: 127 | B136: M&M | C136: 670.15 | D136: 672.08 | E136: 664.47 | F136: 658.78 | G136: 651.17 | H136: 677.77 | I136: 685.38 | J136: 691.07 | K136: 679.7 | L136: 666.4 | M136: 38.77059
A137: 128 | B137: MANAPPURAM | C137: 118.3 | D137: 119.02 | E137: 116.83 | F137: 115.37 | G137: 113.18 | H137: 120.48 | I137: 122.67 | J137: 124.13 | K137: 121.2 | L137: 117.55 | M137: 41.65876
A138: 129 | B138: MRPL | C138: 68.55 | D138: 69.08 | E138: 67.47 | F138: 66.38 | G138: 64.77 | H138: 70.17 | I138: 71.78 | J138: 72.87 | K138: 70.7 | L138: 68 | M138: 6.66414
A139: 130 | B139: MARICO | C139: 334.55 | D139: 334.58 | E139: 332.12 | F139: 329.68 | G139: 327.22 | H139: 337.02 | I139: 339.48 | J139: 341.92 | K139: 337.05 | L139: 332.15 | M139: 13.99038
A140: 131 | B140: MARUTI | C140: 6967.7 | D140: 6981.23 | E140: 6937.47 | F140: 6907.23 | G140: 6863.47 | H140: 7011.47 | I140: 7055.23 | J140: 7085.47 | K140: 7025 | L140: 6951 | M140: 4.86432
A141: 132 | B141: MFSL | C141: 421.6 | D141: 417.72 | E141: 409.53 | F141: 397.47 | G141: 389.28 | H141: 429.78 | I141: 437.97 | J141: 450.03 | K141: 425.9 | L141: 405.65 | M141: 9.34674
A142: 133 | B142: MINDTREE | C142: 921.7 | D142: 923.28 | E142: 914.92 | F142: 908.13 | G142: 899.77 | H142: 930.07 | I142: 938.43 | J142: 945.22 | K142: 931.65 | L142: 916.5 | M142: 6.85
A143: 134 | B143: MOTHERSUMI | C143: 163.25 | D143: 162.97 | E143: 160.68 | F143: 158.12 | G143: 155.83 | H143: 165.53 | I143: 167.82 | J143: 170.38 | K143: 165.25 | L143: 160.4 | M143: 51.1501
A144: 135 | B144: MPHASIS | C144: 980.75 | D144: 985.42 | E144: 971.83 | F144: 962.92 | G144: 949.33 | H144: 994.33 | I144: 1007.92 | J144: 1016.83 | K144: 999 | L144: 976.5 | M144: 4.4062
A145: 136 | B145: MUTHOOTFIN | C145: 570.9 | D145: 575.15 | E145: 563.80 | F145: 556.70 | G145: 545.35 | H145: 582.25 | I145: 593.60 | J145: 600.70 | K145: 586.5 | L145: 568.05 | M145: 14.69812
A146: 137 | B146: NATCOPHARM | C146: 568.75 | D146: 568.42 | E146: 563.33 | F146: 557.92 | G146: 552.83 | H146: 573.83 | I146: 578.92 | J146: 584.33 | K146: 573.5 | L146: 563 | M146: 3.30186
A147: 138 | B147: NBCC | C147: 57.05 | D147: 57.40 | E147: 56.10 | F147: 55.15 | G147: 53.85 | H147: 58.35 | I147: 59.65 | J147: 60.60 | K147: 58.7 | L147: 56.45 | M147: 91.98745
A148: 139 | B148: NHPC | C148: 25.15 | D148: 25.15 | E148: 24.85 | F148: 24.55 | G148: 24.25 | H148: 25.45 | I148: 25.75 | J148: 26.05 | K148: 25.45 | L148: 24.85 | M148: 184.59635
A149: 140 | B149: NMDC | C149: 110.05 | D149: 109.35 | E149: 107.70 | F149: 105.35 | G149: 103.70 | H149: 111.70 | I149: 113.35 | J149: 115.70 | K149: 111 | L149: 107 | M149: 88.68561
A150: 141 | B150: NTPC | C150: 152.2 | D150: 150.78 | E150: 146.77 | F150: 141.33 | G150: 137.32 | H150: 156.22 | I150: 160.23 | J150: 165.67 | K150: 154.8 | L150: 145.35 | M150: 288.85977
A151: 142 | B151: NATIONALUM | C151: 56.8 | D151: 56.92 | E151: 55.73 | F151: 54.67 | G151: 53.48 | H151: 57.98 | I151: 59.17 | J151: 60.23 | K151: 58.1 | L151: 55.85 | M151: 252.8102
A152: 143 | B152: OBEROIRLTY | C152: 480.6 | D152: 479.12 | E152: 471.78 | F152: 462.97 | G152: 455.63 | H152: 487.93 | I152: 495.27 | J152: 504.08 | K152: 486.45 | L152: 470.3 | M152: 4.7137
A153: 144 | B153: ONGC | C153: 150.4 | D153: 150.00 | E153: 147.40 | F153: 144.40 | G153: 141.80 | H153: 153.00 | I153: 155.60 | J153: 158.60 | K153: 152.6 | L153: 147 | M153: 179.86042
A154: 145 | B154: OIL | C154: 173.7 | D154: 174.10 | E154: 171.20 | F154: 168.70 | G154: 165.80 | H154: 176.60 | I154: 179.50 | J154: 182.00 | K154: 177 | L154: 171.6 | M154: 33.42461
A155: 146 | B155: OFSS | C155: 3450.75 | D155: 3447.65 | E155: 3423.05 | F155: 3395.35 | G155: 3370.75 | H155: 3475.35 | I155: 3499.95 | J155: 3527.65 | K155: 3472.25 | L155: 3419.95 | M155: 0.20225
A156: 147 | B156: PCJEWELLER | C156: 77.45 | D156: 77.87 | E156: 76.18 | F156: 74.92 | G156: 73.23 | H156: 79.13 | I156: 80.82 | J156: 82.08 | K156: 79.55 | L156: 76.6 | M156: 86.98833
A157: 148 | B157: PIIND | C157: 989.05 | D157: 983.50 | E157: 970.55 | F157: 952.05 | G157: 939.10 | H157: 1002.00 | I157: 1014.95 | J157: 1033.45 | K157: 996.45 | L157: 965 | M157: 1.55697
A158: 149 | B158: PNBHOUSING | C158: 883.7 | D158: 886.22 | E158: 874.48 | F158: 865.27 | G158: 853.53 | H158: 895.43 | I158: 907.17 | J158: 916.38 | K158: 897.95 | L158: 877 | M158: 1.83506
A159: 150 | B159: PAGEIND | C159: 23003.4 | D159: 23127.25 | E159: 22776.15 | F159: 22548.90 | G159: 22197.80 | H159: 23354.50 | I159: 23705.60 | J159: 23932.85 | K159: 23478.35 | L159: 22900 | M159: 0.28742
A160: 151 | B160: PETRONET | C160: 233.9 | D160: 232.47 | E160: 230.03 | F160: 226.17 | G160: 223.73 | H160: 236.33 | I160: 238.77 | J160: 242.63 | K160: 234.9 | L160: 228.6 | M160: 22.58823
A161: 152 | B161: PIDILITIND | C161: 1124.5 | D161: 1125.55 | E161: 1111.15 | F161: 1097.80 | G161: 1083.40 | H161: 1138.90 | I161: 1153.30 | J161: 1166.65 | K161: 1139.95 | L161: 1112.2 | M161: 4.42801
A162: 153 | B162: PEL | C162: 2582.05 | D162: 2574.42 | E162: 2544.43 | F162: 2506.82 | G162: 2476.83 | H162: 2612.03 | I162: 2642.02 | J162: 2679.63 | K162: 2604.4 | L162: 2536.8 | M162: 5.48731
A163: 154 | B163: PFC | C163: 108.8 | D163: 109.30 | E163: 106.30 | F163: 103.80 | G163: 100.80 | H163: 111.80 | I163: 114.80 | J163: 117.30 | K163: 112.3 | L163: 106.8 | M163: 124.0396
A164: 155 | B164: POWERGRID | C164: 187 | D164: 186.90 | E164: 185.35 | F164: 183.70 | G164: 182.15 | H164: 188.55 | I164: 190.10 | J164: 191.75 | K164: 188.45 | L164: 185.25 | M164: 34.93857
A165: 156 | B165: PRESTIGE | C165: 201.75 | D165: 202.83 | E165: 199.92 | F165: 198.08 | G165: 195.17 | H165: 204.67 | I165: 207.58 | J165: 209.42 | K165: 205.75 | L165: 201 | M165: 1.63654
A166: 157 | B166: PGHH | C166: 10320.3 | D166: 10347.65 | E166: 10145.40 | F166: 9970.50 | G166: 9768.25 | H166: 10522.55 | I166: 10724.80 | J166: 10899.70 | K166: 10549.9 | L166: 10172.75 | M166: 0.02971
A167: 158 | B167: PNB | C167: 83.8 | D167: 84.42 | E167: 82.98 | F167: 82.17 | G167: 80.73 | H167: 85.23 | I167: 86.67 | J167: 87.48 | K167: 85.85 | L167: 83.6 | M167: 261.90794
A168: 159 | B168: RBLBANK | C168: 638.1 | D168: 632.68 | E168: 623.42 | F168: 608.73 | G168: 599.47 | H168: 647.37 | I168: 656.63 | J168: 671.32 | K168: 641.95 | L168: 618 | M168: 37.84443
A169: 160 | B169: RAJESHEXPO | C169: 581.65 | D169: 580.85 | E169: 573.80 | F169: 565.95 | G169: 558.90 | H169: 588.70 | I169: 595.75 | J169: 603.60 | K169: 587.9 | L169: 573 | M169: 2.38041
A170: 161 | B170: RELCAPITAL | C170: 190.55 | D170: 191.13 | E170: 184.92 | F170: 179.28 | G170: 173.07 | H170: 196.77 | I170: 202.98 | J170: 208.62 | K170: 197.35 | L170: 185.5 | M170: 163.47572
A171: 162 | B171: RCOM | C171: 5.85 | D171: 5.88 | E171: 5.77 | F171: 5.68 | G171: 5.57 | H171: 5.97 | I171: 6.08 | J171: 6.17 | K171: 6 | L171: 5.8 | M171: 177.47421
A172: 163 | B172: RELIANCE | C172: 1267.1 | D172: 1267.85 | E172: 1261.25 | F172: 1255.40 | G172: 1248.80 | H172: 1273.70 | I172: 1280.30 | J172: 1286.15 | K172: 1274.45 | L172: 1262 | M172: 60.40052
A173: 164 | B173: RELINFRA | C173: 130.2 | D173: 132.22 | E173: 127.48 | F173: 124.77 | G173: 120.03 | H173: 134.93 | I173: 139.67 | J173: 142.38 | K173: 136.95 | L173: 129.5 | M173: 138.32767
A174: 165 | B174: RPOWER | C174: 11.95 | D174: 12.12 | E174: 11.68 | F174: 11.42 | G174: 10.98 | H174: 12.38 | I174: 12.82 | J174: 13.08 | K174: 12.55 | L174: 11.85 | M174: 567.52343
A175: 166 | B175: RECLTD | C175: 142.9 | D175: 142.42 | E175: 140.13 | F175: 137.37 | G175: 135.08 | H175: 145.18 | I175: 147.47 | J175: 150.23 | K175: 144.7 | L175: 139.65 | M175: 154.64637
A176: 167 | B176: SRF | C176: 2353.65 | D176: 2349.88 | E176: 2335.57 | F176: 2317.48 | G176: 2303.17 | H176: 2367.97 | I176: 2382.28 | J176: 2400.37 | K176: 2364.2 | L176: 2331.8 | M176: 1.7889
A177: 168 | B177: SHREECEM | C177: 17629.4 | D177: 17549.77 | E177: 17429.63 | F177: 17229.87 | G177: 17109.73 | H177: 17749.53 | I177: 17869.67 | J177: 18069.43 | K177: 17669.9 | L177: 17350 | M177: 0.15235
A178: 169 | B178: SRTRANSFIN | C178: 1220.4 | D178: 1218.17 | E178: 1208.38 | F178: 1196.37 | G178: 1186.58 | H178: 1230.18 | I178: 1239.97 | J178: 1251.98 | K178: 1227.95 | L178: 1206.15 | M178: 6.77422
A179: 170 | B179: SIEMENS | C179: 1023.85 | D179: 1021.58 | E179: 1013.17 | F179: 1002.48 | G179: 994.07 | H179: 1032.27 | I179: 1040.68 | J179: 1051.37 | K179: 1030 | L179: 1010.9 | M179: 2.68068
A180: 171 | B180: SBIN | C180: 281.2 | D180: 281.68 | E180: 279.12 | F180: 277.03 | G180: 274.47 | H180: 283.77 | I180: 286.33 | J180: 288.42 | K180: 284.25 | L180: 279.6 | M180: 199.43319
A181: 172 | B181: SAIL | C181: 53.5 | D181: 53.70 | E181: 53.00 | F181: 52.50 | G181: 51.80 | H181: 54.20 | I181: 54.90 | J181: 55.40 | K181: 54.4 | L181: 53.2 | M181: 138.99445
A182: 173 | B182: SPARC | C182: 191.65 | D182: 191.47 | E182: 187.43 | F182: 183.22 | G182: 179.18 | H182: 195.68 | I182: 199.72 | J182: 203.93 | K182: 195.5 | L182: 187.25 | M182: 8.24857
A183: 174 | B183: SUNPHARMA | C183: 454.95 | D183: 453.38 | E183: 448.87 | F183: 442.78 | G183: 438.27 | H183: 459.47 | I183: 463.98 | J183: 470.07 | K183: 457.9 | L183: 447.3 | M183: 50.40326
A184: 175 | B184: SUNTV | C184: 595.65 | D184: 602.38 | E184: 584.57 | F184: 573.48 | G184: 555.67 | H184: 613.47 | I184: 631.28 | J184: 642.37 | K184: 620.2 | L184: 591.3 | M184: 27.79842
A185: 176 | B185: SUZLON | C185: 7.3 | D185: 7.18 | E185: 6.72 | F185: 6.13 | G185: 5.67 | H185: 7.77 | I185: 8.23 | J185: 8.82 | K185: 7.65 | L185: 6.6 | M185: 2239.09559
A186: 177 | B186: SYNDIBANK | C186: 37.05 | D186: 37.27 | E186: 36.53 | F186: 36.02 | G186: 35.28 | H186: 37.78 | I186: 38.52 | J186: 39.03 | K186: 38 | L186: 36.75 | M186: 45.15977
A187: 178 | B187: SYNGENE | C187: 590.75 | D187: 589.60 | E187: 587.20 | F187: 583.65 | G187: 581.25 | H187: 593.15 | I187: 595.55 | J187: 599.10 | K187: 592 | L187: 586.05 | M187: 0.10001
A188: 179 | B188: TV18BRDCST | C188: 35.85 | D188: 35.90 | E188: 35.65 | F188: 35.45 | G188: 35.20 | H188: 36.10 | I188: 36.35 | J188: 36.55 | K188: 36.15 | L188: 35.7 | M188: 33.75782
A189: 180 | B189: TVSMOTOR | C189: 487 | D189: 487.25 | E189: 482.50 | F189: 478.00 | G189: 473.25 | H189: 491.75 | I189: 496.50 | J189: 501.00 | K189: 492 | L189: 482.75 | M189: 8.25189
A190: 181 | B190: TATACHEM | C190: 577.9 | D190: 580.97 | E190: 569.93 | F190: 561.97 | G190: 550.93 | H190: 588.93 | I190: 599.97 | J190: 607.93 | K190: 592 | L190: 573 | M190: 19.35478
A191: 182 | B191: TATACOMM | C191: 612.6 | D191: 612.03 | E191: 607.07 | F191: 601.53 | G191: 596.57 | H191: 617.57 | I191: 622.53 | J191: 628.07 | K191: 617 | L191: 606.5 | M191: 2.98771
A192: 183 | B192: TCS | C192: 2022.7 | D192: 2021.92 | E192: 2010.83 | F192: 1998.97 | G192: 1987.88 | H192: 2033.78 | I192: 2044.87 | J192: 2056.73 | K192: 2033 | L192: 2010.05 | M192: 20.31071
A193: 184 | B193: TATAGLOBAL | C193: 193.2 | D193: 194.47 | E193: 191.33 | F193: 189.47 | G193: 186.33 | H193: 196.33 | I193: 199.47 | J193: 201.33 | K193: 197.6 | L193: 192.6 | M193: 15.42933
A194: 185 | B194: TATAMTRDVR | C194: 91.6 | D194: 92.08 | E194: 90.22 | F194: 88.83 | G194: 86.97 | H194: 93.47 | I194: 95.33 | J194: 96.72 | K194: 93.95 | L194: 90.7 | M194: 44.19931
A195: 186 | B195: TATAMOTORS | C195: 181.2 | D195: 183.05 | E195: 178.15 | F195: 175.10 | G195: 170.20 | H195: 186.10 | I195: 191.00 | J195: 194.05 | K195: 187.95 | L195: 180 | M195: 280.12914
A196: 187 | B196: TATAPOWER | C196: 70 | D196: 69.87 | E196: 68.98 | F196: 67.97 | G196: 67.08 | H196: 70.88 | I196: 71.77 | J196: 72.78 | K196: 70.75 | L196: 68.85 | M196: 62.00799
A197: 188 | B197: TATASTEEL | C197: 507.85 | D197: 510.92 | E197: 503.23 | F197: 498.62 | G197: 490.93 | H197: 515.53 | I197: 523.22 | J197: 527.83 | K197: 518.6 | L197: 506.3 | M197: 65.04847
A198: 189 | B198: TECHM | C198: 811.35 | D198: 809.15 | E198: 804.80 | F198: 798.25 | G198: 793.90 | H198: 815.70 | I198: 820.05 | J198: 826.60 | K198: 813.5 | L198: 802.6 | M198: 14.37045
A199: 190 | B199: RAMCOCEM | C199: 724.15 | D199: 718.50 | E199: 709.65 | F199: 695.15 | G199: 686.30 | H199: 733.00 | I199: 741.85 | J199: 756.35 | K199: 727.35 | L199: 704 | M199: 3.55767
A200: 191 | B200: TITAN | C200: 1053.2 | D200: 1049.92 | E200: 1040.28 | F200: 1027.37 | G200: 1017.73 | H200: 1062.83 | I200: 1072.47 | J200: 1085.38 | K200: 1059.55 | L200: 1037 | M200: 21.79863
A201: 192 | B201: TORNTPHARM | C201: 1782.2 | D201: 1775.90 | E201: 1764.80 | F201: 1747.40 | G201: 1736.30 | H201: 1793.30 | I201: 1804.40 | J201: 1821.80 | K201: 1787 | L201: 1758.5 | M201: 2.10024
A202: 193 | B202: TORNTPOWER | C202: 249.35 | D202: 248.28 | E202: 244.82 | F202: 240.28 | G202: 236.82 | H202: 252.82 | I202: 256.28 | J202: 260.82 | K202: 251.75 | L202: 243.75 | M202: 10.42565
A203: 194 | B203: UPL | C203: 881.75 | D203: 876.77 | E203: 868.53 | F203: 855.32 | G203: 847.08 | H203: 889.98 | I203: 898.22 | J203: 911.43 | K203: 885 | L203: 863.55 | M203: 17.80245
A204: 195 | B204: ULTRACEMCO | C204: 3972 | D204: 3947.88 | E204: 3909.62 | F204: 3847.23 | G204: 3808.97 | H204: 4010.27 | I204: 4048.53 | J204: 4110.92 | K204: 3986.15 | L204: 3885.5 | M204: 2.53766
A205: 196 | B205: UNIONBANK | C205: 78.1 | D205: 78.88 | E205: 77.12 | F205: 76.13 | G205: 74.37 | H205: 79.87 | I205: 81.63 | J205: 82.62 | K205: 80.65 | L205: 77.9 | M205: 87.9011
... 29 more rows

Sheet MidCap Intra
L5: Back To Main Page
A6: FOR INTRA DAY TRADING | K6: =Main!B10 -> 2019-03-11
A9: Sr.no | B9: Scrip | C9: CLOSE RATE | D9: Pivot Point | E9: Supports | H9: Resistances
C10: Point | E10: S1 | F10: S2 | G10: S3 | H10: R1 | I10: R2 | J10: R3 | K10: HIGH | L10: LOW | M10: Total Trade Quanity in Lakhs
A11: 1 | B11: 3MINDIA | C11: 24848.15 | D11: 24594.83 | E11: 24215.72 | F11: 23583.28 | G11: 23204.17 | H11: 25227.27 | I11: 25606.38 | J11: 26238.82 | K11: 24973.95 | L11: 23962.4 | M11: 0.06591
A12: 2 | B12: 8KMILES | C12: 108.15 | D12: 108.62 | E12: 106.53 | F12: 104.92 | G12: 102.83 | H12: 110.23 | I12: 112.32 | J12: 113.93 | K12: 110.7 | L12: 107 | M12: 1.46825
A13: 3 | B13: AARTIIND | C13: 1474.55 | D13: 1486.85 | E13: 1453.70 | F13: 1432.85 | G13: 1399.70 | H13: 1507.70 | I13: 1540.85 | J13: 1561.70 | K13: 1520 | L13: 1466 | M13: 1.14972
A14: 4 | B14: ABAN | C14: 75.05 | D14: 74.12 | E14: 71.63 | F14: 68.22 | G14: 65.73 | H14: 77.53 | I14: 80.02 | J14: 83.43 | K14: 76.6 | L14: 70.7 | M14: 16.80981
A15: 5 | B15: ABB | C15: 1266 | D15: 1264.85 | E15: 1249.95 | F15: 1233.90 | G15: 1219.00 | H15: 1280.90 | I15: 1295.80 | J15: 1311.85 | K15: 1279.75 | L15: 1248.8 | M15: 1.25797
A16: 6 | B16: ABCAPITAL | C16: 100 | D16: 99.75 | E16: 98.50 | F16: 97.00 | G16: 95.75 | H16: 101.25 | I16: 102.50 | J16: 104.00 | K16: 101 | L16: 98.25 | M16: 30.25599
A17: 7 | B17: ABFRL | C17: 223.4 | D17: 224.17 | E17: 221.28 | F17: 219.17 | G17: 216.28 | H17: 226.28 | I17: 229.17 | J17: 231.28 | K17: 227.05 | L17: 222.05 | M17: 13.97701
A18: 8 | B18: ACC | C18: 1574.55 | D18: 1566.50 | E18: 1553.05 | F18: 1531.55 | G18: 1518.10 | H18: 1588.00 | I18: 1601.45 | J18: 1622.95 | K18: 1579.95 | L18: 1545 | M18: 8.47268
A19: 9 | B19: ADANIPORTS | C19: 342.15 | D19: 341.07 | E19: 339.18 | F19: 336.22 | G19: 334.33 | H19: 344.03 | I19: 345.92 | J19: 348.88 | K19: 342.95 | L19: 338.1 | M19: 22.65
A20: 10 | B20: ADANIPOWER | C20: 50 | D20: 50.03 | E20: 49.32 | F20: 48.63 | G20: 47.92 | H20: 50.72 | I20: 51.43 | J20: 52.12 | K20: 50.75 | L20: 49.35 | M20: 119.08805
A21: 11 | B21: ADANITRANS | C21: 206.8 | D21: 207.15 | E21: 203.75 | F21: 200.70 | G21: 197.30 | H21: 210.20 | I21: 213.60 | J21: 216.65 | K21: 210.55 | L21: 204.1 | M21: 1.52933
A22: 12 | B22: ADVENZYMES | C22: 189.95 | D22: 182.67 | E22: 169.88 | F22: 149.82 | G22: 137.03 | H22: 202.73 | I22: 215.52 | J22: 235.58 | K22: 195.45 | L22: 162.6 | M22: 127.24394
A23: 13 | B23: AEGISCHEM | C23: 206.1 | D23: 205.98 | E23: 203.12 | F23: 200.13 | G23: 197.27 | H23: 208.97 | I23: 211.83 | J23: 214.82 | K23: 208.85 | L23: 203 | M23: 1.75783
A24: 14 | B24: AIAENG | C24: 1829.8 | D24: 1816.98 | E24: 1793.97 | F24: 1758.13 | G24: 1735.12 | H24: 1852.82 | I24: 1875.83 | J24: 1911.67 | K24: 1840 | L24: 1781.15 | M24: 0.08515
A25: 15 | B25: AJANTPHARM | C25: 956.4 | D25: 957.97 | E25: 943.93 | F25: 931.47 | G25: 917.43 | H25: 970.43 | I25: 984.47 | J25: 996.93 | K25: 972 | L25: 945.5 | M25: 9.50296
A26: 16 | B26: AKZOINDIA | C26: 1711.2 | D26: 1724.43 | E26: 1678.87 | F26: 1646.53 | G26: 1600.97 | H26: 1756.77 | I26: 1802.33 | J26: 1834.67 | K26: 1770 | L26: 1692.1 | M26: 0.35958
A27: 17 | B27: ALBK | C27: 57.6 | D27: 56.58 | E27: 54.77 | F27: 51.93 | G27: 50.12 | H27: 59.42 | I27: 61.23 | J27: 64.07 | K27: 58.4 | L27: 53.75 | M27: 291.33782
A28: 18 | B28: ALKEM | C28: 1750 | D28: 1754.55 | E28: 1741.40 | F28: 1732.80 | G28: 1719.65 | H28: 1763.15 | I28: 1776.30 | J28: 1784.90 | K28: 1767.7 | L28: 1745.95 | M28: 0.41793
A29: 19 | B29: ALLCARGO | C29: 104.25 | D29: 105.70 | E29: 102.55 | F29: 100.85 | G29: 97.70 | H29: 107.40 | I29: 110.55 | J29: 112.25 | K29: 108.85 | L29: 104 | M29: 2.34034
A30: 20 | B30: AMARAJABAT | C30: 738.7 | D30: 738.72 | E30: 732.18 | F30: 725.67 | G30: 719.13 | H30: 745.23 | I30: 751.77 | J30: 758.28 | K30: 745.25 | L30: 732.2 | M30: 1.71908
A31: 21 | B31: AMBUJACEM | C31: 226.15 | D31: 224.60 | E31: 222.10 | F31: 218.05 | G31: 215.55 | H31: 228.65 | I31: 231.15 | J31: 235.20 | K31: 227.1 | L31: 220.55 | M31: 28.03088
A32: 22 | B32: ANDHRABANK | C32: 26.65 | D32: 26.80 | E32: 26.40 | F32: 26.15 | G32: 25.75 | H32: 27.05 | I32: 27.45 | J32: 27.70 | K32: 27.2 | L32: 26.55 | M32: 10.11951
A33: 23 | B33: APLAPOLLO | C33: 1390.1 | D33: 1400.05 | E33: 1370.10 | F33: 1350.10 | G33: 1320.15 | H33: 1420.05 | I33: 1450.00 | J33: 1470.00 | K33: 1430 | L33: 1380.05 | M33: 0.13993
A34: 24 | B34: APLLTD | C34: 543.8 | D34: 543.22 | E34: 540.58 | F34: 537.37 | G34: 534.73 | H34: 546.43 | I34: 549.07 | J34: 552.28 | K34: 545.85 | L34: 540 | M34: 0.29085
A35: 25 | B35: APOLLOHOSP | C35: 1171.9 | D35: 1175.78 | E35: 1163.12 | F35: 1154.33 | G35: 1141.67 | H35: 1184.57 | I35: 1197.23 | J35: 1206.02 | K35: 1188.45 | L35: 1167 | M35: 2.6817
A36: 26 | B36: APOLLOTYRE | C36: 212.3 | D36: 213.55 | E36: 210.25 | F36: 208.20 | G36: 204.90 | H36: 215.60 | I36: 218.90 | J36: 220.95 | K36: 216.85 | L36: 211.5 | M36: 15.54812
A37: 27 | B37: ARVIND | C37: 83.95 | D37: 85.45 | E37: 81.15 | F37: 78.35 | G37: 74.05 | H37: 88.25 | I37: 92.55 | J37: 95.35 | K37: 89.75 | L37: 82.65 | M37: 134.51763
A38: 28 | B38: ASAHIINDIA | C38: 268.5 | D38: 269.57 | E38: 265.93 | F38: 263.37 | G38: 259.73 | H38: 272.13 | I38: 275.77 | J38: 278.33 | K38: 273.2 | L38: 267 | M38: 0.03189
A39: 29 | B39: ASHOKA | C39: 133.95 | D39: 133.93 | E39: 131.52 | F39: 129.08 | G39: 126.67 | H39: 136.37 | I39: 138.78 | J39: 141.22 | K39: 136.35 | L39: 131.5 | M39: 3.43515
A40: 30 | B40: ASHOKLEY | C40: 89.65 | D40: 89.97 | E40: 88.98 | F40: 88.32 | G40: 87.33 | H40: 90.63 | I40: 91.62 | J40: 92.28 | K40: 90.95 | L40: 89.3 | M40: 192.94489
A41: 31 | B41: ASIANPAINT | C41: 1382.35 | D41: 1385.67 | E41: 1376.68 | F41: 1371.02 | G41: 1362.03 | H41: 1391.33 | I41: 1400.32 | J41: 1405.98 | K41: 1394.65 | L41: 1380 | M41: 5.24331
A42: 32 | B42: ASTRAL | C42: 1199.95 | D42: 1201.10 | E42: 1187.35 | F42: 1174.75 | G42: 1161.00 | H42: 1213.70 | I42: 1227.45 | J42: 1240.05 | K42: 1214.85 | L42: 1188.5 | M42: 0.99446
A43: 33 | B43: ATUL | C43: 3330 | D43: 3355.05 | E43: 3295.10 | F43: 3260.20 | G43: 3200.25 | H43: 3389.95 | I43: 3449.90 | J43: 3484.80 | K43: 3415 | L43: 3320.15 | M43: 0.3841
A44: 34 | B44: AUBANK | C44: 584.5 | D44: 582.67 | E44: 577.33 | F44: 570.17 | G44: 564.83 | H44: 589.83 | I44: 595.17 | J44: 602.33 | K44: 588 | L44: 575.5 | M44: 0.75292
A45: 35 | B45: AUROPHARMA | C45: 735.85 | D45: 730.02 | E45: 722.38 | F45: 708.92 | G45: 701.28 | H45: 743.48 | I45: 751.12 | J45: 764.58 | K45: 737.65 | L45: 716.55 | M45: 20.51628
A46: 36 | B46: AVANTIFEED | C46: 412.2 | D46: 413.95 | E46: 405.90 | F46: 399.60 | G46: 391.55 | H46: 420.25 | I46: 428.30 | J46: 434.60 | K46: 422 | L46: 407.65 | M46: 10.29207
A47: 37 | B47: AXISBANK | C47: 733.4 | D47: 733.02 | E47: 728.78 | F47: 724.17 | G47: 719.93 | H47: 737.63 | I47: 741.87 | J47: 746.48 | K47: 737.25 | L47: 728.4 | M47: 77.44794
A48: 38 | B48: BAJAJ-AUTO | C48: 2955.7 | D48: 2940.12 | E48: 2915.63 | F48: 2875.57 | G48: 2851.08 | H48: 2980.18 | I48: 3004.67 | J48: 3044.73 | K48: 2964.6 | L48: 2900.05 | M48: 7.54427
A49: 39 | B49: BAJAJCON | C49: 348.65 | D49: 349.75 | E49: 346.50 | F49: 344.35 | G49: 341.10 | H49: 351.90 | I49: 355.15 | J49: 357.30 | K49: 353 | L49: 347.6 | M49: 0.19868
A50: 40 | B50: BAJAJELEC | C50: 490.4 | D50: 488.13 | E50: 484.27 | F50: 478.13 | G50: 474.27 | H50: 494.27 | I50: 498.13 | J50: 504.27 | K50: 492 | L50: 482 | M50: 3.41184
A51: 41 | B51: BAJAJFINSV | C51: 6616.95 | D51: 6602.32 | E51: 6564.63 | F51: 6512.32 | G51: 6474.63 | H51: 6654.63 | I51: 6692.32 | J51: 6744.63 | K51: 6640 | L51: 6550 | M51: 1.44867
A52: 42 | B52: BAJAJHIND | C52: 8.85 | D52: 8.95 | E52: 8.70 | F52: 8.55 | G52: 8.30 | H52: 9.10 | I52: 9.35 | J52: 9.50 | K52: 9.2 | L52: 8.8 | M52: 15.77601
A53: 43 | B53: BAJAJHLDNG | C53: 3276.9 | D53: 3265.23 | E53: 3232.47 | F53: 3188.03 | G53: 3155.27 | H53: 3309.67 | I53: 3342.43 | J53: 3386.87 | K53: 3298 | L53: 3220.8 | M53: 0.1653
A54: 44 | B54: BAJFINANCE | C54: 2768.3 | D54: 2754.63 | E54: 2730.27 | F54: 2692.23 | G54: 2667.87 | H54: 2792.67 | I54: 2817.03 | J54: 2855.07 | K54: 2779 | L54: 2716.6 | M54: 11.78087
A55: 45 | B55: BALKRISIND | C55: 904.7 | D55: 909.10 | E55: 895.70 | F55: 886.70 | G55: 873.30 | H55: 918.10 | I55: 931.50 | J55: 940.50 | K55: 922.5 | L55: 900.1 | M55: 2.68819
A56: 46 | B56: BALLARPUR | C56: 3.6 | D56: 3.65 | E56: 3.50 | F56: 3.40 | G56: 3.25 | H56: 3.75 | I56: 3.90 | J56: 4.00 | K56: 3.8 | L56: 3.55 | M56: 9.68413
A57: 47 | B57: BALMLAWRIE | C57: 188.4 | D57: 189.48 | E57: 184.07 | F57: 179.73 | G57: 174.32 | H57: 193.82 | I57: 199.23 | J57: 203.57 | K57: 194.9 | L57: 185.15 | M57: 0.43539
A58: 48 | B58: BALRAMCHIN | C58: 135.95 | D58: 135.95 | E58: 133.70 | F58: 131.45 | G58: 129.20 | H58: 138.20 | I58: 140.45 | J58: 142.70 | K58: 138.2 | L58: 133.7 | M58: 18.9641
A59: 49 | B59: BANKBARODA | C59: 113.6 | D59: 114.50 | E59: 112.15 | F59: 110.70 | G59: 108.35 | H59: 115.95 | I59: 118.30 | J59: 119.75 | K59: 116.85 | L59: 113.05 | M59: 169.38684
A60: 50 | B60: BANKINDIA | C60: 88.8 | D60: 89.53 | E60: 87.67 | F60: 86.53 | G60: 84.67 | H60: 90.67 | I60: 92.53 | J60: 93.67 | K60: 91.4 | L60: 88.4 | M60: 81.68221
A61: 51 | B61: BASF | C61: 1384 | D61: 1393.25 | E61: 1343.35 | F61: 1302.70 | G61: 1252.80 | H61: 1433.90 | I61: 1483.80 | J61: 1524.45 | K61: 1443.15 | L61: 1352.6 | M61: 0.14007
A62: 52 | B62: BATAINDIA | C62: 1328.95 | D62: 1334.68 | E62: 1318.92 | F62: 1308.88 | G62: 1293.12 | H62: 1344.72 | I62: 1360.48 | J62: 1370.52 | K62: 1350.45 | L62: 1324.65 | M62: 7.46047
A63: 53 | B63: BBTC | C63: 1251.6 | D63: 1257.43 | E63: 1238.17 | F63: 1224.73 | G63: 1205.47 | H63: 1270.87 | I63: 1290.13 | J63: 1303.57 | K63: 1276.7 | L63: 1244 | M63: 0.65025
A64: 54 | B64: BEL | C64: 87.2 | D64: 87.67 | E64: 86.33 | F64: 85.47 | G64: 84.13 | H64: 88.53 | I64: 89.87 | J64: 90.73 | K64: 89 | L64: 86.8 | M64: 121.03502
A65: 55 | B65: BEML | C65: 898.45 | D65: 895.83 | E65: 877.87 | F65: 857.28 | G65: 839.32 | H65: 916.42 | I65: 934.38 | J65: 954.97 | K65: 913.8 | L65: 875.25 | M65: 34.98197
A66: 56 | B66: BERGEPAINT | C66: 302.35 | D66: 301.02 | E66: 298.03 | F66: 293.72 | G66: 290.73 | H66: 305.33 | I66: 308.32 | J66: 312.63 | K66: 304 | L66: 296.7 | M66: 7.66371
A67: 57 | B67: BFUTILITIE | C67: 192.9 | D67: 193.20 | E67: 189.00 | F67: 185.10 | G67: 180.90 | H67: 197.10 | I67: 201.30 | J67: 205.20 | K67: 197.4 | L67: 189.3 | M67: 7.3214
A68: 58 | B68: BGRENERGY | C68: 60.15 | D68: 60.77 | E68: 58.98 | F68: 57.82 | G68: 56.03 | H68: 61.93 | I68: 63.72 | J68: 64.88 | K68: 62.55 | L68: 59.6 | M68: 0.77365
A69: 59 | B69: BHARATFIN | C69: 953.35 | D69: 954.52 | E69: 947.13 | F69: 940.92 | G69: 933.53 | H69: 960.73 | I69: 968.12 | J69: 974.33 | K69: 961.9 | L69: 948.3 | M69: 2.20538
A70: 60 | B70: BHARATFORG | C70: 507.35 | D70: 508.67 | E70: 500.78 | F70: 494.22 | G70: 486.33 | H70: 515.23 | I70: 523.12 | J70: 529.68 | K70: 516.55 | L70: 502.1 | M70: 12.00535
A71: 61 | B71: BHARTIARTL | C71: 308.7 | D71: 309.45 | E71: 306.90 | F71: 305.10 | G71: 302.55 | H71: 311.25 | I71: 313.80 | J71: 315.60 | K71: 312 | L71: 307.65 | M71: 40.02947
A72: 62 | B72: BHEL | C72: 67.1 | D72: 67.17 | E72: 66.43 | F72: 65.77 | G72: 65.03 | H72: 67.83 | I72: 68.57 | J72: 69.23 | K72: 67.9 | L72: 66.5 | M72: 93.35968
A73: 63 | B73: BIOCON | C73: 614.8 | D73: 615.30 | E73: 611.10 | F73: 607.40 | G73: 603.20 | H73: 619.00 | I73: 623.20 | J73: 626.90 | K73: 619.5 | L73: 611.6 | M73: 13.55805
A74: 64 | B74: BIRLACORPN | C74: 565.1 | D74: 557.37 | E74: 533.73 | F74: 502.37 | G74: 478.73 | H74: 588.73 | I74: 612.37 | J74: 643.73 | K74: 581 | L74: 526 | M74: 1.95001
A75: 65 | B75: BLISSGVS | C75: 171.25 | D75: 172.38 | E75: 169.37 | F75: 167.48 | G75: 164.47 | H75: 174.27 | I75: 177.28 | J75: 179.17 | K75: 175.4 | L75: 170.5 | M75: 8.46564
A76: 66 | B76: BLUEDART | C76: 3196.85 | D76: 3227.92 | E76: 3158.93 | F76: 3121.02 | G76: 3052.03 | H76: 3265.83 | I76: 3334.82 | J76: 3372.73 | K76: 3296.9 | L76: 3190 | M76: 0.03504
A77: 67 | B77: BLUESTARCO | C77: 650.1 | D77: 652.35 | E77: 644.75 | F77: 639.40 | G77: 631.80 | H77: 657.70 | I77: 665.30 | J77: 670.65 | K77: 659.95 | L77: 647 | M77: 0.14762
A78: 68 | B78: BOMDYEING | C78: 116 | D78: 117.10 | E78: 114.60 | F78: 113.20 | G78: 110.70 | H78: 118.50 | I78: 121.00 | J78: 122.40 | K78: 119.6 | L78: 115.7 | M78: 5.49532
A79: 69 | B79: BOSCHLTD | C79: 18429.85 | D79: 18382.37 | E79: 18247.48 | F79: 18065.12 | G79: 17930.23 | H79: 18564.73 | I79: 18699.62 | J79: 18881.98 | K79: 18517.25 | L79: 18200 | M79: 0.11836
A80: 70 | B80: BPCL | C80: 367.35 | D80: 367.80 | E80: 364.20 | F80: 361.05 | G80: 357.45 | H80: 370.95 | I80: 374.55 | J80: 377.70 | K80: 371.4 | L80: 364.65 | M80: 28.12574
A81: 71 | B81: BRFL | C81: 9 | D81: 8.90 | E81: 8.70 | F81: 8.40 | G81: 8.20 | H81: 9.20 | I81: 9.40 | J81: 9.70 | K81: 9.1 | L81: 8.6 | M81: 0.20147
A82: 72 | B82: BRIGADE | C82: 223.7 | D82: 224.23 | E82: 214.47 | F82: 205.23 | G82: 195.47 | H82: 233.47 | I82: 243.23 | J82: 252.47 | K82: 234 | L82: 215 | M82: 6.52528
A83: 73 | B83: BRITANNIA | C83: 3071.2 | D83: 3057.23 | E83: 3034.97 | F83: 2998.73 | G83: 2976.47 | H83: 3093.47 | I83: 3115.73 | J83: 3151.97 | K83: 3079.5 | L83: 3021 | M83: 1.90651
A84: 74 | B84: BSE | C84: 616.3 | D84: 615.48 | E84: 608.97 | F84: 601.63 | G84: 595.12 | H84: 622.82 | I84: 629.33 | J84: 636.67 | K84: 622 | L84: 608.15 | M84: 1.27784
A85: 75 | B85: BSOFT | C85: 103.9 | D85: 105.15 | E85: 101.35 | F85: 98.80 | G85: 95.00 | H85: 107.70 | I85: 111.50 | J85: 114.05 | K85: 108.95 | L85: 102.6 | M85: 16.55156
A86: 77 | B86: CADILAHC | C86: 324.95 | D86: 328.38 | E86: 320.77 | F86: 316.58 | G86: 308.97 | H86: 332.57 | I86: 340.18 | J86: 344.37 | K86: 336 | L86: 324.2 | M86: 5.99037
A87: 78 | B87: CANBK | C87: 254 | D87: 255.05 | E87: 251.80 | F87: 249.60 | G87: 246.35 | H87: 257.25 | I87: 260.50 | J87: 262.70 | K87: 258.3 | L87: 252.85 | M87: 36.46618
A88: 79 | B88: CANFINHOME | C88: 287.45 | D88: 289.15 | E88: 283.70 | F88: 279.95 | G88: 274.50 | H88: 292.90 | I88: 298.35 | J88: 302.10 | K88: 294.6 | L88: 285.4 | M88: 9.2613
A89: 80 | B89: CAPLIPOINT | C89: 406.95 | D89: 410.15 | E89: 401.80 | F89: 396.65 | G89: 388.30 | H89: 415.30 | I89: 423.65 | J89: 428.80 | K89: 418.5 | L89: 405 | M89: 0.3101
A90: 81 | B90: CARBORUNIV | C90: 383.8 | D90: 382.20 | E90: 377.60 | F90: 371.40 | G90: 366.80 | H90: 388.40 | I90: 393.00 | J90: 399.20 | K90: 386.8 | L90: 376 | M90: 0.46724
A91: 82 | B91: CARERATING | C91: 997.9 | D91: 997.90 | E91: 991.80 | F91: 985.70 | G91: 979.60 | H91: 1004.00 | I91: 1010.10 | J91: 1016.20 | K91: 1004 | L91: 991.8 | M91: 0.08311
A92: 83 | B92: CASTROLIND | C92: 161.8 | D92: 162.30 | E92: 160.60 | F92: 159.40 | G92: 157.70 | H92: 163.50 | I92: 165.20 | J92: 166.40 | K92: 164 | L92: 161.1 | M92: 8.71135
A93: 84 | B93: CCL | C93: 287.35 | D93: 288.75 | E93: 283.70 | F93: 280.05 | G93: 275.00 | H93: 292.40 | I93: 297.45 | J93: 301.10 | K93: 293.8 | L93: 285.1 | M93: 0.16408
A94: 85 | B94: CDSL | C94: 232.75 | D94: 233.05 | E94: 230.45 | F94: 228.15 | G94: 225.55 | H94: 235.35 | I94: 237.95 | J94: 240.25 | K94: 235.65 | L94: 230.75 | M94: 1.43291
A95: 86 | B95: CEATLTD | C95: 1126.05 | D95: 1124.68 | E95: 1115.37 | F95: 1104.68 | G95: 1095.37 | H95: 1135.37 | I95: 1144.68 | J95: 1155.37 | K95: 1134 | L95: 1114 | M95: 2.8692
A96: 87 | B96: CENTRALBK | C96: 32.95 | D96: 32.80 | E96: 31.65 | F96: 30.35 | G96: 29.20 | H96: 34.10 | I96: 35.25 | J96: 36.55 | K96: 33.95 | L96: 31.5 | M96: 19.83489
A97: 88 | B97: CENTURYPLY | C97: 187.7 | D97: 187.03 | E97: 185.22 | F97: 182.73 | G97: 180.92 | H97: 189.52 | I97: 191.33 | J97: 193.82 | K97: 188.85 | L97: 184.55 | M97: 1.19738
A98: 89 | B98: CENTURYTEX | C98: 856.3 | D98: 853.32 | E98: 845.58 | F98: 834.87 | G98: 827.13 | H98: 864.03 | I98: 871.77 | J98: 882.48 | K98: 861.05 | L98: 842.6 | M98: 3.55975
A99: 90 | B99: CERA | C99: 2570.2 | D99: 2581.32 | E99: 2548.68 | F99: 2527.17 | G99: 2494.53 | H99: 2602.83 | I99: 2635.47 | J99: 2656.98 | K99: 2613.95 | L99: 2559.8 | M99: 0.05771
A100: 91 | B100: CGPOWER | C100: 36.2 | D100: 36.28 | E100: 35.67 | F100: 35.13 | G100: 34.52 | H100: 36.82 | I100: 37.43 | J100: 37.97 | K100: 36.9 | L100: 35.75 | M100: 72.41162
A101: 92 | B101: CHAMBLFERT | C101: 162.8 | D101: 163.67 | E101: 161.33 | F101: 159.87 | G101: 157.53 | H101: 165.13 | I101: 167.47 | J101: 168.93 | K101: 166 | L101: 162.2 | M101: 0.51544
A102: 93 | B102: CHENNPETRO | C102: 254.7 | D102: 255.12 | E102: 251.53 | F102: 248.37 | G102: 244.78 | H102: 258.28 | I102: 261.87 | J102: 265.03 | K102: 258.7 | L102: 251.95 | M102: 3.04481
A103: 94 | B103: CHOLAFIN | C103: 1289.2 | D103: 1296.37 | E103: 1279.88 | F103: 1270.57 | G103: 1254.08 | H103: 1305.68 | I103: 1322.17 | J103: 1331.48 | K103: 1312.85 | L103: 1287.05 | M103: 1.6116
A104: 95 | B104: CIPLA | C104: 539.95 | D104: 540.53 | E104: 537.67 | F104: 535.38 | G104: 532.52 | H104: 542.82 | I104: 545.68 | J104: 547.97 | K104: 543.4 | L104: 538.25 | M104: 26.18767
A105: 96 | B105: COALINDIA | C105: 234.9 | D105: 234.00 | E105: 230.50 | F105: 226.10 | G105: 222.60 | H105: 238.40 | I105: 241.90 | J105: 246.30 | K105: 237.5 | L105: 229.6 | M105: 128.03612
A106: 97 | B106: COCHINSHIP | C106: 371.45 | D106: 373.13 | E106: 368.37 | F106: 365.28 | G106: 360.52 | H106: 376.22 | I106: 380.98 | J106: 384.07 | K106: 377.9 | L106: 370.05 | M106: 0.44441
A107: 98 | B107: COFFEEDAY | C107: 289.05 | D107: 291.15 | E107: 285.30 | F107: 281.55 | G107: 275.70 | H107: 294.90 | I107: 300.75 | J107: 304.50 | K107: 297 | L107: 287.4 | M107: 4.7985
A108: 99 | B108: COLPAL | C108: 1251.7 | D108: 1256.25 | E108: 1242.50 | F108: 1233.30 | G108: 1219.55 | H108: 1265.45 | I108: 1279.20 | J108: 1288.40 | K108: 1270 | L108: 1247.05 | M108: 3.47589
A109: 100 | B109: CONCOR | C109: 488.45 | D109: 486.93 | E109: 483.87 | F109: 479.28 | G109: 476.22 | H109: 491.52 | I109: 494.58 | J109: 499.17 | K109: 490 | L109: 482.35 | M109: 7.47344
A110: 101 | B110: COROMANDEL | C110: 480.7 | D110: 477.08 | E110: 472.17 | F110: 463.63 | G110: 458.72 | H110: 485.62 | I110: 490.53 | J110: 499.07 | K110: 482 | L110: 468.55 | M110: 2.25338
A111: 102 | B111: COX&KINGS | C111: 164 | D111: 164.92 | E111: 161.43 | F111: 158.87 | G111: 155.38 | H111: 167.48 | I111: 170.97 | J111: 173.53 | K111: 168.4 | L111: 162.35 | M111: 0.21532
A112: 103 | B112: CRISIL | C112: 1434.65 | D112: 1457.13 | E112: 1401.17 | F112: 1367.68 | G112: 1311.72 | H112: 1490.62 | I112: 1546.58 | J112: 1580.07 | K112: 1513.1 | L112: 1423.65 | M112: 0.35611
A113: 104 | B113: CROMPTON | C113: 220.55 | D113: 219.20 | E113: 216.90 | F113: 213.25 | G113: 210.95 | H113: 222.85 | I113: 225.15 | J113: 228.80 | K113: 221.5 | L113: 215.55 | M113: 2.7089
A114: 105 | B114: CUB | C114: 186.15 | D114: 186.77 | E114: 183.88 | F114: 181.62 | G114: 178.73 | H114: 189.03 | I114: 191.92 | J114: 194.18 | K114: 189.65 | L114: 184.5 | M114: 8.6118
A115: 106 | B115: CUMMINSIND | C115: 730.4 | D115: 734.40 | E115: 724.10 | F115: 717.80 | G115: 707.50 | H115: 740.70 | I115: 751.00 | J115: 757.30 | K115: 744.7 | L115: 728.1 | M115: 2.01353
A116: 107 | B116: CYIENT | C116: 675 | D116: 675.47 | E116: 668.03 | F116: 661.07 | G116: 653.63 | H116: 682.43 | I116: 689.87 | J116: 696.83 | K116: 682.9 | L116: 668.5 | M116: 4.22937
A117: 108 | B117: DABUR | C117: 432.2 | D117: 432.85 | E117: 430.15 | F117: 428.10 | G117: 425.40 | H117: 434.90 | I117: 437.60 | J117: 439.65 | K117: 435.55 | L117: 430.8 | M117: 8.32863
A118: 109 | B118: DBCORP | C118: 197.6 | D118: 196.03 | E118: 193.02 | F118: 188.43 | G118: 185.42 | H118: 200.62 | I118: 203.63 | J118: 208.22 | K118: 199.05 | L118: 191.45 | M118: 1.10945
A119: 110 | B119: DBL | C119: 558.95 | D119: 562.72 | E119: 551.43 | F119: 543.92 | G119: 532.63 | H119: 570.23 | I119: 581.52 | J119: 589.03 | K119: 574 | L119: 555.2 | M119: 5.27216
A120: 111 | B120: DBREALTY | C120: 20.65 | D120: 20.85 | E120: 20.20 | F120: 19.75 | G120: 19.10 | H120: 21.30 | I120: 21.95 | J120: 22.40 | K120: 21.5 | L120: 20.4 | M120: 1.56532
A121: 112 | B121: DCAL | C121: 203.75 | D121: 204.15 | E121: 200.30 | F121: 196.85 | G121: 193.00 | H121: 207.60 | I121: 211.45 | J121: 214.90 | K121: 208 | L121: 200.7 | M121: 1.02049
A122: 113 | B122: DCBBANK | C122: 196 | D122: 195.80 | E122: 194.70 | F122: 193.40 | G122: 192.30 | H122: 197.10 | I122: 198.20 | J122: 199.50 | K122: 196.9 | L122: 194.5 | M122: 15.001
A123: 114 | B123: DCMSHRIRAM | C123: 458.55 | D123: 456.85 | E123: 443.50 | F123: 428.45 | G123: 415.10 | H123: 471.90 | I123: 485.25 | J123: 500.30 | K123: 470.2 | L123: 441.8 | M123: 1.50849
A124: 115 | B124: DEEPAKFERT | C124: 134.2 | D124: 134.78 | E124: 132.92 | F124: 131.63 | G124: 129.77 | H124: 136.07 | I124: 137.93 | J124: 139.22 | K124: 136.65 | L124: 133.5 | M124: 1.3966
A125: 116 | B125: DELTACORP | C125: 254.4 | D125: 255.40 | E125: 251.80 | F125: 249.20 | G125: 245.60 | H125: 258.00 | I125: 261.60 | J125: 264.20 | K125: 259 | L125: 252.8 | M125: 6.89018
A126: 117 | B126: DEN | C126: 69.05 | D126: 69.53 | E126: 65.52 | F126: 61.98 | G126: 57.97 | H126: 73.07 | I126: 77.08 | J126: 80.62 | K126: 73.55 | L126: 66 | M126: 0.52375
A127: 118 | B127: DHFL | C127: 139.85 | D127: 140.98 | E127: 137.72 | F127: 135.58 | G127: 132.32 | H127: 143.12 | I127: 146.38 | J127: 148.52 | K127: 144.25 | L127: 138.85 | M127: 133.2831
A128: 119 | B128: DISHTV | C128: 37.3 | D128: 37.75 | E128: 36.65 | F128: 36.00 | G128: 34.90 | H128: 38.40 | I128: 39.50 | J128: 40.15 | K128: 38.85 | L128: 37.1 | M128: 122.26163
A129: 120 | B129: DIVISLAB | C129: 1647.4 | D129: 1649.77 | E129: 1633.63 | F129: 1619.87 | G129: 1603.73 | H129: 1663.53 | I129: 1679.67 | J129: 1693.43 | K129: 1665.9 | L129: 1636 | M129: 4.28683
A130: 121 | B130: DIXON | C130: 2474.55 | D130: 2470.17 | E130: 2392.33 | F130: 2310.12 | G130: 2232.28 | H130: 2552.38 | I130: 2630.22 | J130: 2712.43 | K130: 2548 | L130: 2387.95 | M130: 0.49998
A131: 122 | B131: DLF | C131: 175.35 | D131: 175.30 | E131: 173.85 | F131: 172.35 | G131: 170.90 | H131: 176.80 | I131: 178.25 | J131: 179.75 | K131: 176.75 | L131: 173.8 | M131: 30.05893
A132: 123 | B132: DMART | C132: 1450.4 | D132: 1454.68 | E132: 1440.72 | F132: 1431.03 | G132: 1417.07 | H132: 1464.37 | I132: 1478.33 | J132: 1488.02 | K132: 1468.65 | L132: 1445 | M132: 2.41894
A133: 124 | B133: DREDGECORP | C133: 437.1 | D133: 436.02 | E133: 422.63 | F133: 408.17 | G133: 394.78 | H133: 450.48 | I133: 463.87 | J133: 478.33 | K133: 449.4 | L133: 421.55 | M133: 6.91427
A134: 125 | B134: DRREDDY | C134: 2615.05 | D134: 2635.83 | E134: 2585.72 | F134: 2556.38 | G134: 2506.27 | H134: 2665.17 | I134: 2715.28 | J134: 2744.62 | K134: 2685.95 | L134: 2606.5 | M134: 6.84806
A135: 126 | B135: ECLERX | C135: 1094.7 | D135: 1096.88 | E135: 1083.77 | F135: 1072.83 | G135: 1059.72 | H135: 1107.82 | I135: 1120.93 | J135: 1131.87 | K135: 1110 | L135: 1085.95 | M135: 1.02048
A136: 127 | B136: EDELWEISS | C136: 162.5 | D136: 162.50 | E136: 161.05 | F136: 159.60 | G136: 158.15 | H136: 163.95 | I136: 165.40 | J136: 166.85 | K136: 163.95 | L136: 161.05 | M136: 23.84564
A137: 128 | B137: EICHERMOT | C137: 21871.05 | D137: 21788.18 | E137: 21482.92 | F137: 21094.78 | G137: 20789.52 | H137: 22176.32 | I137: 22481.58 | J137: 22869.72 | K137: 22093.45 | L137: 21400.05 | M137: 1.95792
A138: 129 | B138: EIDPARRY | C138: 209.65 | D138: 208.88 | E138: 206.77 | F138: 203.88 | G138: 201.77 | H138: 211.77 | I138: 213.88 | J138: 216.77 | K138: 211 | L138: 206 | M138: 1.89917
A139: 130 | B139: EIHOTEL | C139: 198 | D139: 196.03 | E139: 190.97 | F139: 183.93 | G139: 178.87 | H139: 203.07 | I139: 208.13 | J139: 215.17 | K139: 201.1 | L139: 189 | M139: 8.60533
A140: 131 | B140: EMAMILTD | C140: 383.1 | D140: 386.35 | E140: 377.85 | F140: 372.60 | G140: 364.10 | H140: 391.60 | I140: 400.10 | J140: 405.35 | K140: 394.85 | L140: 381.1 | M140: 6.20653
A141: 132 | B141: ENDURANCE | C141: 1168.55 | D141: 1170.15 | E141: 1160.40 | F141: 1152.25 | G141: 1142.50 | H141: 1178.30 | I141: 1188.05 | J141: 1196.20 | K141: 1179.9 | L141: 1162 | M141: 9.16051
A142: 133 | B142: ENGINERSIN | C142: 110.5 | D142: 111.07 | E142: 108.83 | F142: 107.17 | G142: 104.93 | H142: 112.73 | I142: 114.97 | J142: 116.63 | K142: 113.3 | L142: 109.4 | M142: 18.98197
A143: 134 | B143: EQUITAS | C143: 124.7 | D143: 125.42 | E143: 122.78 | F143: 120.87 | G143: 118.23 | H143: 127.33 | I143: 129.97 | J143: 131.88 | K143: 128.05 | L143: 123.5 | M143: 12.69581
A144: 135 | B144: ERIS | C144: 635.1 | D144: 630.37 | E144: 619.73 | F144: 604.37 | G144: 593.73 | H144: 645.73 | I144: 656.37 | J144: 671.73 | K144: 641 | L144: 615 | M144: 0.31114
A145: 136 | B145: EROSMEDIA | C145: 86.5 | D145: 86.63 | E145: 85.37 | F145: 84.23 | G145: 82.97 | H145: 87.77 | I145: 89.03 | J145: 90.17 | K145: 87.9 | L145: 85.5 | M145: 4.56578
A146: 137 | B146: ESCORTS | C146: 729.85 | D146: 729.45 | E146: 723.90 | F146: 717.95 | G146: 712.40 | H146: 735.40 | I146: 740.95 | J146: 746.90 | K146: 735 | L146: 723.5 | M146: 8.85003
A147: 138 | B147: EVEREADY | C147: 208.8 | D147: 210.98 | E147: 205.97 | F147: 203.13 | G147: 198.12 | H147: 213.82 | I147: 218.83 | J147: 221.67 | K147: 216 | L147: 208.15 | M147: 8.89734
A148: 139 | B148: EXIDEIND | C148: 224.45 | D148: 223.97 | E148: 221.43 | F148: 218.42 | G148: 215.88 | H148: 226.98 | I148: 229.52 | J148: 232.53 | K148: 226.5 | L148: 220.95 | M148: 9.96307
A149: 140 | B149: FCONSUMER | C149: 50.7 | D149: 50.68 | E149: 49.72 | F149: 48.73 | G149: 47.77 | H149: 51.67 | I149: 52.63 | J149: 53.62 | K149: 51.65 | L149: 49.7 | M149: 36.16692
A150: 141 | B150: FEDERALBNK | C150: 87.55 | D150: 87.77 | E150: 86.78 | F150: 86.02 | G150: 85.03 | H150: 88.53 | I150: 89.52 | J150: 90.28 | K150: 88.75 | L150: 87 | M150: 63.53771
A151: 142 | B151: FINCABLES | C151: 441.45 | D151: 438.15 | E151: 430.30 | F151: 419.15 | G151: 411.30 | H151: 449.30 | I151: 457.15 | J151: 468.30 | K151: 446 | L151: 427 | M151: 2.09107
A152: 143 | B152: FINPIPE | C152: 536.95 | D152: 536.82 | E152: 532.83 | F152: 528.72 | G152: 524.73 | H152: 540.93 | I152: 544.92 | J152: 549.03 | K152: 540.8 | L152: 532.7 | M152: 0.17451
A153: 144 | B153: FLFL | C153: 438.4 | D153: 439.50 | E153: 430.00 | F153: 421.60 | G153: 412.10 | H153: 447.90 | I153: 457.40 | J153: 465.80 | K153: 449 | L153: 431.1 | M153: 0.28588
A154: 145 | B154: FSL | C154: 45.8 | D154: 46.27 | E154: 45.13 | F154: 44.47 | G154: 43.33 | H154: 46.93 | I154: 48.07 | J154: 48.73 | K154: 47.4 | L154: 45.6 | M154: 15.45335
A155: 146 | B155: GAIL | C155: 349.65 | D155: 347.45 | E155: 343.90 | F155: 338.15 | G155: 334.60 | H155: 353.20 | I155: 356.75 | J155: 362.50 | K155: 351 | L155: 341.7 | M155: 27.17482
A156: 147 | B156: GATI | C156: 81.15 | D156: 82.02 | E156: 79.68 | F156: 78.22 | G156: 75.88 | H156: 83.48 | I156: 85.82 | J156: 87.28 | K156: 84.35 | L156: 80.55 | M156: 10.24002
A157: 148 | B157: GDL | C157: 122.45 | D157: 123.28 | E157: 120.77 | F157: 119.08 | G157: 116.57 | H157: 124.97 | I157: 127.48 | J157: 129.17 | K157: 125.8 | L157: 121.6 | M157: 0.41669
A158: 149 | B158: GEPIL | C158: 848.6 | D158: 840.50 | E158: 828.25 | F158: 807.90 | G158: 795.65 | H158: 860.85 | I158: 873.10 | J158: 893.45 | K158: 852.75 | L158: 820.15 | M158: 0.1055
A159: 150 | B159: GESHIP | C159: 288.1 | D159: 288.07 | E159: 285.13 | F159: 282.17 | G159: 279.23 | H159: 291.03 | I159: 293.97 | J159: 296.93 | K159: 291 | L159: 285.1 | M159: 0.45894
A160: 151 | B160: GET&D | C160: 288.55 | D160: 290.50 | E160: 285.05 | F160: 281.55 | G160: 276.10 | H160: 294.00 | I160: 299.45 | J160: 302.95 | K160: 295.95 | L160: 287 | M160: 0.10929
A161: 152 | B161: GHCL | C161: 237.1 | D161: 238.05 | E161: 234.05 | F161: 231.00 | G161: 227.00 | H161: 241.10 | I161: 245.10 | J161: 248.15 | K161: 242.05 | L161: 235 | M161: 0.68361
A162: 153 | B162: GICRE | C162: 243.1 | D162: 244.55 | E162: 239.80 | F162: 236.50 | G162: 231.75 | H162: 247.85 | I162: 252.60 | J162: 255.90 | K162: 249.3 | L162: 241.25 | M162: 0.50875
A163: 154 | B163: GILLETTE | C163: 6496.85 | D163: 6475.15 | E163: 6432.35 | F163: 6367.85 | G163: 6325.05 | H163: 6539.65 | I163: 6582.45 | J163: 6646.95 | K163: 6517.95 | L163: 6410.65 | M163: 0.04192
A164: 155 | B164: GLAXO | C164: 1311.7 | D164: 1303.75 | E164: 1287.70 | F164: 1263.70 | G164: 1247.65 | H164: 1327.75 | I164: 1343.80 | J164: 1367.80 | K164: 1319.8 | L164: 1279.75 | M164: 0.17079
A165: 156 | B165: GLENMARK | C165: 598.05 | D165: 602.55 | E165: 591.10 | F165: 584.15 | G165: 572.70 | H165: 609.50 | I165: 620.95 | J165: 627.90 | K165: 614 | L165: 595.6 | M165: 5.33133
A166: 157 | B166: GMDCLTD | C166: 85.6 | D166: 85.92 | E166: 84.83 | F166: 84.07 | G166: 82.98 | H166: 86.68 | I166: 87.77 | J166: 88.53 | K166: 87 | L166: 85.15 | M166: 1.03231
A167: 158 | B167: GMRINFRA | C167: 16.85 | D167: 16.87 | E167: 16.68 | F167: 16.52 | G167: 16.33 | H167: 17.03 | I167: 17.22 | J167: 17.38 | K167: 17.05 | L167: 16.7 | M167: 84.63138
A168: 159 | B168: GNFC | C168: 287.15 | D168: 285.23 | E168: 280.97 | F168: 274.78 | G168: 270.52 | H168: 291.42 | I168: 295.68 | J168: 301.87 | K168: 289.5 | L168: 279.05 | M168: 3.31128
A169: 160 | B169: GODFRYPHLP | C169: 946.25 | D169: 943.72 | E169: 924.43 | F169: 902.62 | G169: 883.33 | H169: 965.53 | I169: 984.82 | J169: 1006.63 | K169: 963 | L169: 921.9 | M169: 5.75695
A170: 161 | B170: GODREJAGRO | C170: 514.3 | D170: 516.98 | E170: 509.27 | F170: 504.23 | G170: 496.52 | H170: 522.02 | I170: 529.73 | J170: 534.77 | K170: 524.7 | L170: 511.95 | M170: 1.5049
A171: 162 | B171: GODREJCP | C171: 708 | D171: 707.92 | E171: 701.83 | F171: 695.67 | G171: 689.58 | H171: 714.08 | I171: 720.17 | J171: 726.33 | K171: 714 | L171: 701.75 | M171: 6.29722
A172: 163 | B172: GODREJIND | C172: 511.1 | D172: 511.55 | E172: 508.35 | F172: 505.60 | G172: 502.40 | H172: 514.30 | I172: 517.50 | J172: 520.25 | K172: 514.75 | L172: 508.8 | M172: 4.58957
A173: 164 | B173: GODREJPROP | C173: 702.85 | D173: 701.90 | E173: 694.95 | F173: 687.05 | G173: 680.10 | H173: 709.80 | I173: 716.75 | J173: 724.65 | K173: 708.85 | L173: 694 | M173: 1.77518
A174: 165 | B174: GPPL | C174: 88.8 | D174: 88.47 | E174: 87.43 | F174: 86.07 | G174: 85.03 | H174: 89.83 | I174: 90.87 | J174: 92.23 | K174: 89.5 | L174: 87.1 | M174: 1.73368
A175: 166 | B175: GRANULES | C175: 111.3 | D175: 109.15 | E175: 103.90 | F175: 96.50 | G175: 91.25 | H175: 116.55 | I175: 121.80 | J175: 129.20 | K175: 114.4 | L175: 101.75 | M175: 123.50943
A176: 167 | B176: GRAPHITE | C176: 457.65 | D176: 460.75 | E176: 451.90 | F176: 446.15 | G176: 437.30 | H176: 466.50 | I176: 475.35 | J176: 481.10 | K176: 469.6 | L176: 455 | M176: 12.7496
A177: 168 | B177: GRASIM | C177: 807.05 | D177: 805.57 | E177: 798.78 | F177: 790.52 | G177: 783.73 | H177: 813.83 | I177: 820.62 | J177: 828.88 | K177: 812.35 | L177: 797.3 | M177: 12.67215
A178: 169 | B178: GREAVESCOT | C178: 132.1 | D178: 131.93 | E178: 130.87 | F178: 129.63 | G178: 128.57 | H178: 133.17 | I178: 134.23 | J178: 135.47 | K178: 133 | L178: 130.7 | M178: 1.82816
A179: 170 | B179: GREENPLY | C179: 150.9 | D179: 148.67 | E179: 145.33 | F179: 139.77 | G179: 136.43 | H179: 154.23 | I179: 157.57 | J179: 163.13 | K179: 152 | L179: 143.1 | M179: 2.79778
A180: 171 | B180: GRUH | C180: 267.45 | D180: 263.82 | E180: 259.03 | F180: 250.62 | G180: 245.83 | H180: 272.23 | I180: 277.02 | J180: 285.43 | K180: 268.6 | L180: 255.4 | M180: 13.50845
A181: 172 | B181: GSFC | C181: 98.65 | D181: 98.18 | E181: 97.37 | F181: 96.08 | G181: 95.27 | H181: 99.47 | I181: 100.28 | J181: 101.57 | K181: 99 | L181: 96.9 | M181: 8.18853
A182: 173 | B182: GSKCONS | C182: 7040.15 | D182: 7043.03 | E182: 6960.12 | F182: 6880.08 | G182: 6797.17 | H182: 7123.07 | I182: 7205.98 | J182: 7286.02 | K182: 7125.95 | L182: 6963 | M182: 0.27601
A183: 174 | B183: GSPL | C183: 169.75 | D183: 169.72 | E183: 167.53 | F183: 165.32 | G183: 163.13 | H183: 171.93 | I183: 174.12 | J183: 176.33 | K183: 171.9 | L183: 167.5 | M183: 1.57569
A184: 175 | B184: GUJALKALI | C184: 524.9 | D184: 521.47 | E184: 515.43 | F184: 505.97 | G184: 499.93 | H184: 530.93 | I184: 536.97 | J184: 546.43 | K184: 527.5 | L184: 512 | M184: 0.58947
A185: 176 | B185: GUJFLUORO | C185: 1006.1 | D185: 1003.85 | E185: 983.90 | F185: 961.70 | G185: 941.75 | H185: 1026.05 | I185: 1046.00 | J185: 1068.20 | K185: 1023.8 | L185: 981.65 | M185: 1.01208
A186: 177 | B186: GUJGASLTD | C186: 135.7 | D186: 133.00 | E186: 128.70 | F186: 121.70 | G186: 117.40 | H186: 140.00 | I186: 144.30 | J186: 151.30 | K186: 137.3 | L186: 126 | M186: 23.56439
A187: 178 | B187: GULFOILLUB | C187: 875.45 | D187: 879.98 | E187: 870.47 | F187: 865.48 | G187: 855.97 | H187: 884.97 | I187: 894.48 | J187: 899.47 | K187: 889.5 | L187: 875 | M187: 0.119
A188: 179 | B188: GVKPIL | C188: 8.05 | D188: 8.05 | E188: 7.90 | F188: 7.75 | G188: 7.60 | H188: 8.20 | I188: 8.35 | J188: 8.50 | K188: 8.2 | L188: 7.9 | M188: 16.16142
A189: 180 | B189: HATHWAY | C189: 25.6 | D189: 25.90 | E189: 24.50 | F189: 23.40 | G189: 22.00 | H189: 27.00 | I189: 28.40 | J189: 29.50 | K189: 27.3 | L189: 24.8 | M189: 2.28289
A190: 181 | B190: HATSUN | C190: 684.4 | D190: 683.13 | E190: 671.27 | F190: 658.13 | G190: 646.27 | H190: 696.27 | I190: 708.13 | J190: 721.27 | K190: 695 | L190: 670 | M190: 0.06901
A191: 182 | B191: HAVELLS | C191: 727.85 | D191: 725.00 | E191: 720.50 | F191: 713.15 | G191: 708.65 | H191: 732.35 | I191: 736.85 | J191: 744.20 | K191: 729.5 | L191: 717.65 | M191: 11.94157
A192: 183 | B192: HCC | C192: 14.15 | D192: 14.10 | E192: 13.65 | F192: 13.15 | G192: 12.70 | H192: 14.60 | I192: 15.05 | J192: 15.55 | K192: 14.55 | L192: 13.6 | M192: 61.38957
A193: 184 | B193: HCL-INSYS | C193: 20.85 | D193: 21.08 | E193: 20.57 | F193: 20.28 | G193: 19.77 | H193: 21.37 | I193: 21.88 | J193: 22.17 | K193: 21.6 | L193: 20.8 | M193: 4.23655
A194: 185 | B194: HCLTECH | C194: 1009.05 | D194: 1015.00 | E194: 1000.05 | F194: 991.05 | G194: 976.10 | H194: 1024.00 | I194: 1038.95 | J194: 1047.95 | K194: 1029.95 | L194: 1006 | M194: 15.88047
A195: 186 | B195: HDFC | C195: 1884.05 | D195: 1881.05 | E195: 1874.10 | F195: 1864.15 | G195: 1857.20 | H195: 1891.00 | I195: 1897.95 | J195: 1907.90 | K195: 1888 | L195: 1871.1 | M195: 18.45737
A196: 187 | B196: HDFCBANK | C196: 2128.2 | D196: 2122.55 | E196: 2115.10 | F196: 2102.00 | G196: 2094.55 | H196: 2135.65 | I196: 2143.10 | J196: 2156.20 | K196: 2130 | L196: 2109.45 | M196: 17.63365
A197: 188 | B197: HDIL | C197: 24.55 | D197: 24.48 | E197: 24.27 | F197: 23.98 | G197: 23.77 | H197: 24.77 | I197: 24.98 | J197: 25.27 | K197: 24.7 | L197: 24.2 | M197: 28.02205
A198: 189 | B198: HEG | C198: 2195.5 | D198: 2210.17 | E198: 2175.33 | F198: 2155.17 | G198: 2120.33 | H198: 2230.33 | I198: 2265.17 | J198: 2285.33 | K198: 2245 | L198: 2190 | M198: 2.12626
A199: 190 | B199: HEIDELBERG | C199: 176.55 | D199: 177.78 | E199: 172.77 | F199: 168.98 | G199: 163.97 | H199: 181.57 | I199: 186.58 | J199: 190.37 | K199: 182.8 | L199: 174 | M199: 3.88173
A200: 191 | B200: HERITGFOOD | C200: 492.45 | D200: 494.80 | E200: 486.65 | F200: 480.85 | G200: 472.70 | H200: 500.60 | I200: 508.75 | J200: 514.55 | K200: 502.95 | L200: 489 | M200: 0.21973
A201: 192 | B201: HEROMOTOCO | C201: 2740.35 | D201: 2732.92 | E201: 2707.38 | F201: 2674.42 | G201: 2648.88 | H201: 2765.88 | I201: 2791.42 | J201: 2824.38 | K201: 2758.45 | L201: 2699.95 | M201: 6.7484
A202: 193 | B202: HEXAWARE | C202: 346.05 | D202: 346.13 | E202: 341.12 | F202: 336.18 | G202: 331.17 | H202: 351.07 | I202: 356.08 | J202: 361.02 | K202: 351.15 | L202: 341.2 | M202: 12.46873
A203: 194 | B203: HFCL | C203: 23.1 | D203: 23.30 | E203: 22.75 | F203: 22.40 | G203: 21.85 | H203: 23.65 | I203: 24.20 | J203: 24.55 | K203: 23.85 | L203: 22.95 | M203: 23.50581
A204: 195 | B204: HIMATSEIDE | C204: 176.45 | D204: 177.82 | E204: 173.13 | F204: 169.82 | G204: 165.13 | H204: 181.13 | I204: 185.82 | J204: 189.13 | K204: 182.5 | L204: 174.5 | M204: 1.41334
A205: 196 | B205: HINDALCO | C205: 195.55 | D205: 195.58 | E205: 193.57 | F205: 191.58 | G205: 189.57 | H205: 197.57 | I205: 199.58 | J205: 201.57 | K205: 197.6 | L205: 193.6 | M205: 100.50458
A206: 197 | B206: HINDCOPPER | C206: 49.3 | D206: 49.65 | E206: 48.70 | F206: 48.10 | G206: 47.15 | H206: 50.25 | I206: 51.20 | J206: 51.80 | K206: 50.6 | L206: 49.05 | M206: 6.22626
... 304 more rows

Sheet Bulk Deals
E6: Back To Main Page
A7: Subject : | B7: BULK DEAL | D7: =Main!B10 -> 2019-03-11
A9: Date | B9: Scrip code | C9: Scrip Name | D9: Client Name | E9: Buy / Sell | F9: Quantity Traded | G9: Trade Price / Wt.Avg.trade price | H9: Exchange
A10: 2019-03-08 | B10: 540025 | C10: ADVENZYMES | D10: CHANDRAKANT RATHI INNOVATIONS & PROJECTS PVT LTD | E10: SELL | F10: 1,166,880 | G10: 177 | H10: BSE
A11: 2019-03-08 | B11: 540025 | C11: ADVENZYMES | D11: ATHARVA GREEN ECOTECH LLP | E11: SELL | F11: 3,482,350 | G11: 176.95 | H11: BSE
A12: 2019-03-08 | B12: 540025 | C12: ADVENZYMES | D12: ORBIMED ASIA III MAURITIUS LIMITED | E12: BUY | F12: 5526624 | G12: 176.63 | H12: BSE
A13: 2019-03-08 | B13: 511463 | C13: ALEXANDER | D13: KAHAR NIKLESH KANAIYABHAI | E13: BUY | F13: 63292 | G13: 16.09 | H13: BSE
A14: 2019-03-08 | B14: 511463 | C14: ALEXANDER | D14: KAHAR NIKLESH KANAIYABHAI | E14: SELL | F14: 65834 | G14: 16.08 | H14: BSE
A15: 2019-03-08 | B15: 511463 | C15: ALEXANDER | D15: OMSHANTHI COMMODITIES | E15: BUY | F15: 75010 | G15: 16.1 | H15: BSE
A16: 2019-03-08 | B16: 511463 | C16: ALEXANDER | D16: OMSHANTHI COMMODITIES | E16: SELL | F16: 75010 | G16: 16.05 | H16: BSE
A17: 2019-03-08 | B17: 542460 | C17: ANUP | D17: AVADH MATERIAL AND EQUIPMENT SUPPLIERS LLP | E17: BUY | F17: 59633 | G17: 556.53 | H17: BSE
A18: 2019-03-08 | B18: 540024 | C18: ASHARI | D18: ARCADIA SHARE & STOCK BROKERS PVT. LTD | E18: SELL | F18: 54770 | G18: 6.66 | H18: BSE
A19: 2019-03-08 | B19: 540024 | C19: ASHARI | D19: VIJAY KUMAR AGGARWAL | E19: SELL | F19: 68183 | G19: 6.66 | H19: BSE
A20: 2019-03-08 | B20: 532382 | C20: BALAJITELE | D20: SHOBHA RAVI KAPOOR | E20: BUY | F20: 702964 | G20: 87 | H20: BSE
A21: 2019-03-08 | B21: 520127 | C21: BALTE | D21: CHETAN RASIKLAL SHAH | E21: SELL | F21: 103914 | G21: 4.74 | H21: BSE
A22: 2019-03-08 | B22: 537766 | C22: BCP | D22: ACHINTYA SECURITIES PVT. LTD. | E22: BUY | F22: 419869 | G22: 40.49 | H22: BSE
A23: 2019-03-08 | B23: 537766 | C23: BCP | D23: ACHINTYA SECURITIES PVT. LTD. | E23: SELL | F23: 419,869 | G23: 40.25 | H23: BSE
A24: 2019-03-08 | B24: 540361 | C24: DANUBE | D24: HELI JATIN SHAH | E24: BUY | F24: 63,944 | G24: 5.19 | H24: BSE
A25: 2019-03-08 | B25: 540361 | C25: DANUBE | D25: RAMCHANDRAN KRISHNAN NAIR | E25: SELL | F25: 54,027 | G25: 5.2 | H25: BSE
A26: 2019-03-08 | B26: 542155 | C26: DGL | D26: ASHOK KUMAR PODDAR | E26: BUY | F26: 52,000 | G26: 67.99 | H26: BSE
A27: 2019-03-08 | B27: 542155 | C27: DGL | D27: DHIRAJ JAIN | E27: SELL | F27: 92,000 | G27: 68 | H27: BSE
A28: 2019-03-08 | B28: 540455 | C28: ESCORP | D28: SHAH MUKESHKUMAR BABULAL | E28: SELL | F28: 240,000 | G28: 17.8 | H28: BSE
A29: 2019-03-08 | B29: 540455 | C29: ESCORP | D29: PANKAJ PIYUSH TRADE AND INVESTMENT LTD | E29: BUY | F29: 328,000 | G29: 17.8 | H29: BSE
A30: 2019-03-08 | B30: 540455 | C30: ESCORP | D30: AMARKUMAR SHAH HIRAL | E30: SELL | F30: 88,000 | G30: 17.8 | H30: BSE
A31: 2019-03-08 | B31: 540945 | C31: FSSPL | D31: NAVEEN GUPTA | E31: BUY | F31: 72,000 | G31: 6.05 | H31: BSE
A32: 2019-03-08 | B32: 540945 | C32: FSSPL | D32: NAVEEN GUPTA | E32: SELL | F32: 64,000 | G32: 6.25 | H32: BSE
A33: 2019-03-08 | B33: 540945 | C33: FSSPL | D33: DIPAK GANPATBHAI SAKARIYA | E33: BUY | F33: 216,000 | G33: 6.35 | H33: BSE
A34: 2019-03-08 | B34: 540945 | C34: FSSPL | D34: DIPAK GANPATBHAI SAKARIYA | E34: SELL | F34: 116,000 | G34: 6.23 | H34: BSE
A35: 2019-03-08 | B35: 540945 | C35: FSSPL | D35: DHAVAL VIPULBHAI SHAH | E35: SELL | F35: 104,000 | G35: 6.07 | H35: BSE
A36: 2019-03-08 | B36: 540614 | C36: GGENG | D36: SHRENI SHARES PRIVATE LIMITED | E36: SELL | F36: 162,000 | G36: 84.02 | H36: BSE
A37: 2019-03-08 | B37: 540614 | C37: GGENG | D37: ZEN INVESTMENTS | E37: BUY | F37: 96000 | G37: 82.97 | H37: BSE
A38: 2019-03-08 | B38: 540614 | C38: GGENG | D38: AKSHAY J. DOSHI HUF | E38: BUY | F38: 96000 | G38: 85.06 | H38: BSE
A39: 2019-03-08 | B39: 532482 | C39: GRANULES | D39: KRISHNA PRASAD CHIGURUPATI | E39: SELL | F39: 5000000 | G39: 101.08 | H39: BSE
A40: 2019-03-08 | B40: 540938 | C40: GUJHYSPIN | D40: SAMIR HARSHAD MEHTA | E40: SELL | F40: 250000 | G40: 4.84 | H40: BSE
A41: 2019-03-08 | B41: 540377 | C41: IFL | D41: INDIA FINSEC LIMITED | E41: SELL | F41: 174000 | G41: 14.15 | H41: BSE
A42: 2019-03-08 | B42: 540377 | C42: IFL | D42: TIA ENTERPRISES PRIVATE LIMITED | E42: BUY | F42: 114000 | G42: 14.15 | H42: BSE
A43: 2019-03-08 | B43: 540377 | C43: IFL | D43: SUNIL GOUR | E43: BUY | F43: 66000 | G43: 14.15 | H43: BSE
A44: 2019-03-08 | B44: 522165 | C44: INDSILHYD | D44: JAGARTIUS UNIVERSAL | E44: SELL | F44: 141137 | G44: 65 | H44: BSE
A45: 2019-03-08 | B45: 540222 | C45: LAURUSLABS | D45: AMANSA HOLDINGS PRIVATE LIMITED | E45: BUY | F45: 1018308 | G45: 350 | H45: BSE
A46: 2019-03-08 | B46: 590082 | C46: LOHIASEC | D46: KOTIRATAN DISTRIBUTORS PRIVATE LIMITED | E46: BUY | F46: 33800 | G46: 38 | H46: BSE
A47: 2019-03-08 | B47: 590082 | C47: LOHIASEC | D47: PUSHTI DISTRIBUTORS PRIVATE LIMITED | E47: SELL | F47: 33800 | G47: 38 | H47: BSE
A48: 2019-03-08 | B48: 539938 | C48: MIL | D48: NARESH JAYANTILAL SHAH | E48: SELL | F48: 25500 | G48: 107.4 | H48: BSE
A49: 2019-03-08 | B49: 539938 | C49: MIL | D49: SANJAY JAYKANT SHAH | E49: BUY | F49: 25500 | G49: 107.4 | H49: BSE
A50: 2019-03-08 | B50: 538446 | C50: MONEYBOXX | D50: NEERAJ KUMAR GARG | E50: BUY | F50: 180000 | G50: 8.8 | H50: BSE
A51: 2019-03-08 | B51: 538446 | C51: MONEYBOXX | D51: ARYAMAN BROKING LIMITED | E51: SELL | F51: 210000 | G51: 8.8 | H51: BSE
A52: 2019-03-08 | B52: 526905 | C52: PADMAIND | D52: RICHI DILIP DOSHI | E52: SELL | F52: 52400 | G52: 96.15 | H52: BSE
A53: 2019-03-08 | B53: 511557 | C53: PROFINC | D53: NISHIL SURENDRABHAI MARFATIA | E53: BUY | F53: 71117 | G53: 289.73 | H53: BSE
A54: 2019-03-08 | B54: 511557 | C54: PROFINC | D54: NISHIL SURENDRABHAI MARFATIA | E54: SELL | F54: 68208 | G54: 288.96 | H54: BSE
A55: 2019-03-08 | B55: 531869 | C55: SACHEMT | D55: AMIT KANTILAL KOTHARI | E55: BUY | F55: 667215 | G55: 24.66 | H55: BSE
A56: 2019-03-08 | B56: 531869 | C56: SACHEMT | D56: AMIT KANTILAL KOTHARI | E56: SELL | F56: 439215 | G56: 25.38 | H56: BSE
A57: 2019-03-08 | B57: 531869 | C57: SACHEMT | D57: BABA BHOOTHNATH NIRMAN PVT LTD | E57: SELL | F57: 115000 | G57: 24.2 | H57: BSE
A58: 2019-03-08 | B58: 531869 | C58: SACHEMT | D58: SWAL LIMITED | E58: SELL | F58: 102380 | G58: 24.2 | H58: BSE
A59: 2019-03-08 | B59: 531869 | C59: SACHEMT | D59: RAJESH SURYAKANT GANDHI HUF | E59: BUY | F59: 100000 | G59: 24.2 | H59: BSE
A60: 2019-03-08 | B60: 531869 | C60: SACHEMT | D60: RAJESH SURYAKANT GANDHI | E60: BUY | F60: 236337 | G60: 24.45 | H60: BSE
A61: 2019-03-08 | B61: 531869 | C61: SACHEMT | D61: RAJESH SURYAKANT GANDHI HUF | E61: SELL | F61: 48638 | G61: 26.75 | H61: BSE
A62: 2019-03-08 | B62: 531869 | C62: SACHEMT | D62: RAJESH SURYAKANT GANDHI | E62: SELL | F62: 100000 | G62: 25.29 | H62: BSE
A63: 2019-03-08 | B63: 531869 | C63: SACHEMT | D63: BP COMTRADE PVT LTD | E63: BUY | F63: 161796 | G63: 24.49 | H63: BSE
A64: 2019-03-08 | B64: 531869 | C64: SACHEMT | D64: ALPHA LEON ENTERPRISES LLP | E64: BUY | F64: 541467 | G64: 24.26 | H64: BSE
A65: 2019-03-08 | B65: 531869 | C65: SACHEMT | D65: BP COMTRADE PVT LTD | E65: SELL | F65: 170815 | G65: 24.29 | H65: BSE
A66: 2019-03-08 | B66: 531869 | C66: SACHEMT | D66: ALPHA LEON ENTERPRISES LLP | E66: SELL | F66: 485165 | G66: 24.41 | H66: BSE
A67: 2019-03-08 | B67: 531869 | C67: SACHEMT | D67: MANOJ MAHNOT (HUF) . | E67: SELL | F67: 117121 | G67: 24.2 | H67: BSE
A68: 2019-03-08 | B68: 539520 | C68: SHAILJA | D68: SAMIR PRAKASH MEHTA | E68: BUY | F68: 45322 | G68: 18.61 | H68: BSE
A69: 2019-03-08 | B69: 539520 | C69: SHAILJA | D69: SAMIR PRAKASH MEHTA | E69: SELL | F69: 9822 | G69: 18.01 | H69: BSE
A70: 2019-03-08 | B70: 539520 | C70: SHAILJA | D70: KUSUM AGARWAL | E70: SELL | F70: 20000 | G70: 18.2 | H70: BSE
A71: 2019-03-08 | B71: 539520 | C71: SHAILJA | D71: SATISH KUMAR DALMIYA | E71: SELL | F71: 30000 | G71: 18.2 | H71: BSE
A72: 2019-03-08 | B72: 539520 | C72: SHAILJA | D72: YASH MANISH MEHTA | E72: BUY | F72: 50000 | G72: 18.2 | H72: BSE
A73: 2019-03-08 | B73: 539520 | C73: SHAILJA | D73: AJAY BASUDEO MODI HUF | E73: BUY | F73: 40000 | G73: 18.27 | H73: BSE
A74: 2019-03-08 | B74: 539520 | C74: SHAILJA | D74: NAVEEN GUPTA | E74: BUY | F74: 26582 | G74: 18.27 | H74: BSE
A75: 2019-03-08 | B75: 539520 | C75: SHAILJA | D75: NAVEEN GUPTA | E75: SELL | F75: 26380 | G75: 18.65 | H75: BSE
A76: 2019-03-08 | B76: 539520 | C76: SHAILJA | D76: HIRAL KIRTI SAVLA | E76: BUY | F76: 30000 | G76: 18.35 | H76: BSE
A77: 2019-03-08 | B77: 539520 | C77: SHAILJA | D77: HIRAL KIRTI SAVLA | E77: SELL | F77: 33500 | G77: 18.21 | H77: BSE
A78: 2019-03-08 | B78: 539520 | C78: SHAILJA | D78: VIKAS JAGDISHCHANDRA SINGHANIA | E78: BUY | F78: 20000 | G78: 18.56 | H78: BSE
A79: 2019-03-08 | B79: 540693 | C79: SHISHIND | D79: BEELINE BROKING LIMITED | E79: BUY | F79: 24000 | G79: 47 | H79: BSE
A80: 2019-03-08 | B80: 530289 | C80: SPCAPIT | D80: ADVANI PRIVATE LIMITED | E80: BUY | F80: 80000 | G80: 14.8 | H80: BSE
A81: 2019-03-08 | B81: 530821 | C81: SSPDL | D81: CHERUKURI RAMAKRISHNA | E81: SELL | F81: 84825 | G81: 29.47 | H81: BSE
A82: 2019-03-08 | B82: 539835 | C82: SUPERIOR | D82: DEEPAK GAUR | E82: BUY | F82: 22150 | G82: 15.5 | H82: BSE
A83: 2019-03-08 | B83: 532904 | C83: SUPREMEINF | D83: CLARICENT ADVISORY SERVICES LLP | E83: BUY | F83: 680000 | G83: 24.8 | H83: BSE
A84: 2019-03-08 | B84: 532904 | C84: SUPREMEINF | D84: GAGANDEEP CREDIT CAPITAL PRIVATE LIMITED | E84: SELL | F84: 680000 | G84: 24.8 | H84: BSE
A85: 2019-03-08 | B85: 500411 | C85: THERMAX | D85: RELIANCE MUTUAL FUND | E85: BUY | F85: 1000000 | G85: 940 | H85: BSE
A86: 2019-03-08 | B86: 500411 | C86: THERMAX | D86: IMPAX ENVIRONMENTAL MARKETS PLC | E86: SELL | F86: 604436 | G86: 940.02 | H86: BSE
A87: 2019-03-08 | B87: 531644 | C87: TOKYOFIN | D87: KUSHALCHANDRA JASRAJJI MODY | E87: SELL | F87: 67000 | G87: 8.18 | H87: BSE
A88: 2019-03-08 | B88: 531644 | C88: TOKYOFIN | D88: PRIYAJ HARESH SHAH | E88: BUY | F88: 67000 | G88: 8.18 | H88: BSE
A89: 2019-03-08 | B89: 526582 | C89: TPLPLAST | D89: JITAL ASHISH THAKER | E89: BUY | F89: 150000 | G89: 162 | H89: BSE
A90: 2019-03-08 | B90: 526582 | C90: TPLPLAST | D90: JITAL ASHISH THAKER | E90: SELL | F90: 150000 | G90: 140.22 | H90: BSE
A91: 2019-03-08 | B91: 526582 | C91: TPLPLAST | D91: RITESH KUMAR AGARWAL | E91: BUY | F91: 100000 | G91: 139 | H91: BSE
A92: 2019-03-08 | B92: 526582 | C92: TPLPLAST | D92: RITESH KUMAR AGARWAL | E92: SELL | F92: 100000 | G92: 160 | H92: BSE
A93: 2019-03-08 | B93: 526582 | C93: TPLPLAST | D93: ACHINTYA SECURITIES PVT. LTD. | E93: BUY | F93: 112350 | G93: 159.76 | H93: BSE
A94: 2019-03-08 | B94: 526582 | C94: TPLPLAST | D94: PINKI AGARWAL | E94: BUY | F94: 144849 | G94: 139.79 | H94: BSE
A95: 2019-03-08 | B95: 526582 | C95: TPLPLAST | D95: ACHINTYA SECURITIES PVT. LTD. | E95: SELL | F95: 112350 | G95: 140.16 | H95: BSE
A96: 2019-03-08 | B96: 526582 | C96: TPLPLAST | D96: PINKI AGARWAL | E96: SELL | F96: 144849 | G96: 162 | H96: BSE
A97: 2019-03-08 | B97: 532356 | C97: TRIVENI | D97: DHRUV MANMOHAN SAWHNEY | E97: BUY | F97: 1739000 | G97: 57.6 | H97: BSE
A98: 2019-03-08 | B98: 532356 | C98: TRIVENI | D98: RATI SAWHNEY | E98: SELL | F98: 1739000 | G98: 57.6 | H98: BSE
A99: 2019-03-08 | B99: 507685 | C99: WIPRO | D99: AZIM PREMJI TRUST | E99: SELL | F99: 26666667 | G99: 256.58 | H99: BSE
A100: 2019-03-08 | B100: ADVENZYMES | C100: Advanced Enzyme Tech Ltd | D100: MULTIPLEX CAPITAL LTD. | E100: BUY | F100: 2255 | G100: 175.09 | H100: NSE
A101: 2019-03-08 | B101: ADVENZYMES | C101: Advanced Enzyme Tech Ltd | D101: ORBIMED ASIA III MAURITIUS LIMITED | E101: BUY | F101: 5526624 | G101: 176.43 | H101: NSE
A102: 2019-03-08 | B102: ANUP | C102: The Anup Engineering Ltd | D102: AVADH MATERIAL AND EQUIPMENT SUPPLIERS LLP | E102: BUY | F102: 139369 | G102: 548.35 | H102: NSE
A103: 2019-03-08 | B103: BEML | C103: BEML Limited | D103: ALPHAGREP SECURITIES PRIVATE LIMITED | E103: BUY | F103: 275772 | G103: 903.38 | H103: NSE
A104: 2019-03-08 | B104: ELGIEQUIP | C104: Elgi Equipments Ltd | D104: SBI MUTUAL FUND | E104: BUY | F104: 1826000 | G104: 257.4 | H104: NSE
A105: 2019-03-08 | B105: IRISDOREME | C105: Iris Clothings Limited | D105: AJINKYA MERCANTILE PRIVATE LTD | E105: BUY | F105: 235200 | G105: 140 | H105: NSE
A106: 2019-03-08 | B106: IRISDOREME | C106: Iris Clothings Limited | D106: DISCORD EXIM PRIVATE LIMITED | E106: BUY | F106: 187200 | G106: 140 | H106: NSE
A107: 2019-03-08 | B107: JETAIRWAYS | C107: Jet Airways (India) Ltd. | D107: TOWER RESEARCH CAPITAL MARKETS INDIA PRIVATE LIMITED | E107: BUY | F107: 771031 | G107: 242.47 | H107: NSE
A108: 2019-03-08 | B108: LAURUSLABS | C108: Laurus Labs Limited | D108: AMANSA HOLDINGS PRIVATE LIMITED | E108: BUY | F108: 1209249 | G108: 350 | H108: NSE
A109: 2019-03-08 | B109: PODDARMENT | C109: Poddar Pigments Limited | D109: INTEGRATED ENTERPRISES (INDIA) PRIVATE LIMITED | E109: BUY | F109: 115000 | G109: 167 | H109: NSE
A110: 2019-03-08 | B110: RIIL | C110: Reliance Indl Infra Ltd | D110: EKTA MANAVADARIYA | E110: BUY | F110: 145457 | G110: 333.75 | H110: NSE
A111: 2019-03-08 | B111: SEQUENT | C111: Sequent Scientific Ltd. | D111: SBI MUTUAL FUND | E111: BUY | F111: 3500000 | G111: 71.65 | H111: NSE
A112: 2019-03-08 | B112: SICAL | C112: Sical Logistics Limited | D112: CLARICENT ADVISORY SERVICES LLP | E112: BUY | F112: 2000000 | G112: 135.3 | H112: NSE
A113: 2019-03-08 | B113: SINTERCOM | C113: Sintercom India Limited | D113: BELLWETHER CAPITAL PRIVATE LIMITED | E113: BUY | F113: 238000 | G113: 70 | H113: NSE
A114: 2019-03-08 | B114: SOLARA | C114: Solara Active Pha Sci Ltd | D114: SBI MUTUAL FUND | E114: BUY | F114: 196523 | G114: 378.5 | H114: NSE
A115: 2019-03-08 | B115: SUZLON | C115: Suzlon Energy Limited | D115: SHARE INDIA SECURITIES LIMITED | E115: BUY | F115: 41494487 | G115: 7.26 | H115: NSE
A116: 2019-03-08 | B116: TPLPLASTEH | C116: TPL Plastech Limited | D116: ACHINTYA SECURITIES PRIVATE LIMITED | E116: BUY | F116: 117874 | G116: 159.2 | H116: NSE
A117: 2019-03-08 | B117: TPLPLASTEH | C117: TPL Plastech Limited | D117: AGARWAL PINKI | E117: BUY | F117: 149087 | G117: 141.39 | H117: NSE
A118: 2019-03-08 | B118: TPLPLASTEH | C118: TPL Plastech Limited | D118: JITAL ASHISH THAKER | E118: BUY | F118: 150000 | G118: 162.5 | H118: NSE
A119: 2019-03-08 | B119: TPLPLASTEH | C119: TPL Plastech Limited | D119: RITESH KUMAR AGARWAL | E119: BUY | F119: 100000 | G119: 140 | H119: NSE
A120: 2019-03-08 | B120: VIKASECO | C120: Vikas EcoTech Limited | D120: MARGI JIGNESHBHAI SHAH | E120: BUY | F120: 2175000 | G120: 11.45 | H120: NSE
A121: 2019-03-08 | B121: XELPMOC | C121: Xelpmoc Design | D121: THE RAM FUND LP | E121: BUY | F121: 96000 | G121: 67.5 | H121: NSE
A122: 2019-03-08 | B122: XELPMOC | C122: Xelpmoc Design | D122: UNIVERSITY OF NOTRE DAME DU LAC | E122: BUY | F122: 254000 | G122: 67.5 | H122: NSE
A123: 2019-03-08 | B123: ADVENZYMES | C123: Advanced Enzyme Tech Ltd | D123: ATHARVA GREEN ECOTECH LLP | E123: SELL | F123: 3482350 | G123: 176.95 | H123: NSE
A124: 2019-03-08 | B124: ADVENZYMES | C124: Advanced Enzyme Tech Ltd | D124: MULTIPLEX CAPITAL LTD. | E124: SELL | F124: 649755 | G124: 181.56 | H124: NSE
A125: 2019-03-08 | B125: BEML | C125: BEML Limited | D125: ALPHAGREP SECURITIES PRIVATE LIMITED | E125: SELL | F125: 275772 | G125: 903.66 | H125: NSE
A126: 2019-03-08 | B126: ELGIEQUIP | C126: Elgi Equipments Ltd | D126: SBI MUTUAL FUND | E126: SELL | F126: 1826000 | G126: 257.4 | H126: NSE
A127: 2019-03-08 | B127: IRISDOREME | C127: Iris Clothings Limited | D127: AUM SARVAGYAYA PARTNERS | E127: SELL | F127: 409600 | G127: 140 | H127: NSE
A128: 2019-03-08 | B128: JETAIRWAYS | C128: Jet Airways (India) Ltd. | D128: TOWER RESEARCH CAPITAL MARKETS INDIA PRIVATE LIMITED | E128: SELL | F128: 771031 | G128: 242.7 | H128: NSE
A129: 2019-03-08 | B129: PODDARMENT | C129: Poddar Pigments Limited | D129: INTEGRATED INVESTMENT MANAGEMENT SERVICES LLP | E129: SELL | F129: 115000 | G129: 167 | H129: NSE
A130: 2019-03-08 | B130: RIIL | C130: Reliance Indl Infra Ltd | D130: EKTA MANAVADARIYA | E130: SELL | F130: 145457 | G130: 332.51 | H130: NSE
A131: 2019-03-08 | B131: SEQUENT | C131: Sequent Scientific Ltd. | D131: SBI MUTUAL FUND | E131: SELL | F131: 3500000 | G131: 71.65 | H131: NSE
A132: 2019-03-08 | B132: SICAL | C132: Sical Logistics Limited | D132: GAGANDEEP CREDIT CAPITAL PVT. LTD. | E132: SELL | F132: 2003570 | G132: 135.3 | H132: NSE
A133: 2019-03-08 | B133: SINTERCOM | C133: Sintercom India Limited | D133: JAGDISH N MASTER | E133: SELL | F133: 250000 | G133: 70 | H133: NSE
A134: 2019-03-08 | B134: SOLARA | C134: Solara Active Pha Sci Ltd | D134: SBI MUTUAL FUND | E134: SELL | F134: 196523 | G134: 378.5 | H134: NSE
A135: 2019-03-08 | B135: SUZLON | C135: Suzlon Energy Limited | D135: SHARE INDIA SECURITIES LIMITED | E135: SELL | F135: 41038487 | G135: 7.27 | H135: NSE
A136: 2019-03-08 | B136: TPLPLASTEH | C136: TPL Plastech Limited | D136: ACHINTYA SECURITIES PRIVATE LIMITED | E136: SELL | F136: 117874 | G136: 141.49 | H136: NSE
A137: 2019-03-08 | B137: TPLPLASTEH | C137: TPL Plastech Limited | D137: AGARWAL PINKI | E137: SELL | F137: 149087 | G137: 162.5 | H137: NSE
A138: 2019-03-08 | B138: TPLPLASTEH | C138: TPL Plastech Limited | D138: JITAL ASHISH THAKER | E138: SELL | F138: 150000 | G138: 141.35 | H138: NSE
A139: 2019-03-08 | B139: TPLPLASTEH | C139: TPL Plastech Limited | D139: RITESH KUMAR AGARWAL | E139: SELL | F139: 100000 | G139: 159.48 | H139: NSE
A140: 2019-03-08 | B140: XELPMOC | C140: Xelpmoc Design | D140: WASHINGTON UNIVERSITY CHANAKYA CAPITAL PARTNERS | E140: SELL | F140: 448510 | G140: 67.5 | H140: NSE

Sheet Call Tracker (Equity & F&O)
M5: Back To Main Page
A6: Retail Research Technical Calls & Fundamental Performance Report for the month of March -2019
M7: =Main!B10 -> 2019-03-11
B8: Positional Call
A9: Sr.no | B9: Date | D9: Company | E9: Rec | F9: Rec Price | G9: Stop Loss*** | H9: Call Closed At | I9: Target | J9: Remark | K9: Profit / Loss per Share | L9: Gain / Loss % | M9: Status | N9: Closed Date | O9: NSE Closed Price
A10: 1 | B10: 2019-01-24 | D10: ITC | E10: Buy | F10: 280 | G10: 268 | H10: 292 | I10: 305 | J10: Profit of Rs.12/- | K10: =H10-F10 -> 12 | L10: =K10/F10 -> 4.29% | M10: Successful | N10: 2019-03-08 | R10: R
A11: 2 | B11: 2019-03-01 | D11: UPL | E11: Sell | F11: 879-884 | G11: 922.2 | I11: 800 | J11: Open | O11: =VLOOKUP(D11,Sheet2!A11:M1806,6,0) -> 872.05 | R11: R
A12: 3 | B12: 2019-03-01 | D12: BEL | E12: Buy | F12: 83 | G12: 78.5 | H12: 86.25 | I12: 92 | J12: Profit of Rs.3.25/- | K12: 3.25 | L12: =K12/F12 -> 3.92% | M12: Successful | N12: 2019-03-05 | R12: H
A13: 4 | B13: 2019-03-01 | D13: ZEEL | E13: Sell | F13: 478.5 | G13: 507.3 | H13: 458.5 | I13: 435-425 | J13: Profit of Rs.20/- | K13: =F13-H13 -> 20 | L13: =K13/F13 -> 4.18% | M13: Successful | N13: 2019-03-07 | R13: R
A14: 5 | B14: 2019-03-06 | D14: MARUTI | E14: Buy | F14: 7010-7040 | G14: 6700 | I14: 7500-7600 | J14: Open | O14: =VLOOKUP(D14,Sheet2!A14:M1809,6,0) -> 7029.05 | R14: H
A15: 6 | B15: 2019-03-07 | D15: BPCL | E15: Sell | F15: 376.5 | G15: 395.6 | H15: 365 | I15: 345-335 | J15: Part Profit of Rs.11.5/- | K15: =F15-H15 -> 11.5 | L15: =K15/F15 -> 3.05% | M15: Successful | N15: 2019-03-08 | R15: R
A16: 7 | B16: 2019-03-07 | D16: RAYMOND | E16: Sell | F16: 825-830 | G16: 888.8 | I16: 720-730 | J16: Open | O16: =VLOOKUP(D16,Sheet2!A16:M1811,6,0) -> 815.15 | R16: R
A17: 8 | B17: 2019-03-08 | D17: BHEL | E17: Sell | F17: 67-68 | G17: 70.5 | I17: 63-61 | J17: Open | O17: =VLOOKUP(D17,Sheet2!A17:M1812,6,0) -> 68.1 | R17: H
A32: CLBS = Closing Basis *** | F32: Reinitiated $
A33: Dividend adjusted <> | F33: Revised stoploss #
A34: Part book {}
A35: Master Trade High Risk
A36: Sr.no | B36: Date | D36: Company | E36: Rec | F36: Rec Price | G36: Stop Loss | H36: Call Closed At | I36: Target | J36: Remark | K36: Profit / Loss per share | L36: Gain / Loss per Lot | M36: Lot | N36: Status | O36: Closed Date
A37: 1 | B37: 2019-03-01 | D37: BATAINDIA MAR FUT | E37: Sell | F37: 1288 | G37: 1335 | H37: 1322 | I37: 1240 | J37: Loss of Rs.21/- | K37: =F37-H37 -> -34 | L37: =-M37*21 -> -11550 | M37: 550 | N37: UnSuccessful | O37: 2019-03-06 | R37: H
D38: BATAINDIA MAR 1240 PE | E38: Sell | F38: 23.5 | H38: 10.5 | K38: =F38-H38 -> 13 | R38: H
A39: 2 | B39: 2019-03-05 | D39: NIFTY MAR | E39: Sell | F39: 10940 | G39: 11166.6 | H39: 11065 | I39: 10700 | J39: Loss of Rs.125/- | K39: =F39-H39 -> -125 | L39: =M39*K39 -> -9375 | M39: 75 | N39: UnSuccessful | O39: 2019-03-06 | R39: R
A40: 3 | B40: 2019-03-08 | D40: ULTRACEMCO MAR FUT | E40: Sell | F40: 3920-3930 | G40: 4030 | I40: 3780 | J40: Open | R40: H
D41: ULTRACEMCO MAR 3800 PE | E41: Sell | F41: 55-60 | R41: H
A51: Master Trade Medium Risk
A52: Sr.no | B52: Date | D52: Company | E52: Rec | F52: Rec Price | G52: Stop Loss | H52: Call Closed At | I52: Target | J52: Remark | K52: Profit/ Loss per lot | L52: Gain / Loss per Lot | M52: Lot | N52: Status | O52: Closed Date
A53: 1 | B53: 2019-03-01 | D53: LT Mar 1320 CE | E53: Buy | F53: 25 | H53: 34.5 | J53: Profit of Rs.5/- | K53: =H53-F53 -> 9.5 | L53: =5*M53 -> 1875 | M53: 375 | N53: Successful | O53: 2019-03-07 | R53: H
D54: LT Mar 1360 CE | E54: Sell | F54: 12 | H54: 16.5 | K54: =F54-H54 -> -4.5 | R54: H
A55: 2 | B55: 2019-03-05 | D55: NIFTY 07-Mar 10850 PE | E55: Buy | F55: 52 | H55: 0 | I55: 80-100 | J55: Loss of Rs.52/- | K55: =H55-F55 -> -52 | L55: =M55*K55 -> -3900 | M55: 75 | N55: UnSuccessful | O55: 2019-03-07 | R55: R
A56: 3 | B56: 2019-03-06 | D56: HDFCBANK MAR 2100 CE | E56: Buy | F56: 35 | G56: 18 | H56: 42.5 | I56: 60 | J56: Profit of Rs.7.5/- | K56: =H56-F56 -> 7.5 | L56: =K56*M56 -> 1875 | M56: 250 | N56: Successful | O56: 2019-03-07 | R56: H
A57: 4 | B57: 2019-03-07 | D57: ASHOKLEY 90 PE MAR | E57: Buy | F57: 2.5 | G57: 1.2 | H57: 2.95 | I57: 5 | J57: Profit of Rs.0.45/- | K57: =H57-F57 -> 0.45 | L57: =K57*M57 -> 1800 | M57: 4000 | N57: Successful | O57: 2019-03-07 | R57: R
A58: 5 | B58: 2019-03-08 | D58: GAIL 320 PE MAR | E58: Buy | F58: 2.3 | G58: 1.1 | H58: 1.5 | I58: 5 | J58: Loss of Rs.0.8/- | K58: =H58-F58 -> -0.8 | L58: =M58*K58 -> -60 | M58: 75 | N58: UnSuccessful | O58: 2019-03-08 | R58: H
A59: 6 | B59: 2019-03-08 | D59: LT 1340 PE MAR | E59: Buy | F59: 25 | G59: 14 | H59: 31 | I59: 45-50 | J59: Profit of Rs.6/- | K59: =H59-F59 -> 6 | L59: =K59*M59 -> 2250 | M59: 375 | N59: Successful | O59: 2019-03-08 | R59: H
B66: Smart Delivery Trade
A67: Sr.no | B67: Date | D67: Company | E67: Rec | F67: Rec Price | G67: Stop Loss*** | H67: Call Closed At | I67: Target | J67: Remark | K67: Profit / Loss per Share | L67: Gain / Loss % | M67: Status | N67: Closed Date | O67: NSE Closed Price
A68: 1 | B68: 2019-02-21 | D68: ICICIBANK | E68: Buy | F68: 351.5 | G68: 339 | H68: 360.5 | I68: 370-375 | J68: Profit of Rs.9/- | K68: =H68-F68 -> 9 | L68: =K68/F68 -> 2.56% | M68: Successful | N68: 2019-03-05 | R68: H
A69: 2 | B69: 2019-02-22 | D69: HDFC | E69: Buy | F69: 1877-1883 | G69: 1819 | I69: 2000 | J69: Open | O69: =VLOOKUP(D69,Sheet2!A77:M1572,6,0) -> 1880.2 | R69: H
A70: 3 | B70: 2019-02-27 | D70: CONCOR | E70: Buy | F70: 474.5 | G70: 458.7 | H70: 486 | I70: 500-510 | J70: Profit of Rs.11.5/- | K70: =H70-F70 -> 11.5 | L70: =K70/F70 -> 2.42% | M70: Successful | N70: 2019-03-05 | R70: R
A71: 4 | B71: 2019-03-01 | D71: MINDTREE | E71: Buy | F71: 916 | G71: 888.8 | H71: 933.5 | I71: 970 | J71: Profit of Rs.17.5/- | K71: =H71-F71 -> 17.5 | L71: =K71/F71 -> 1.91% | M71: Successful | N71: 2019-03-01 | R71: R
A72: 5 | B72: 2019-03-05 | D72: TATACHEM | E72: Buy | F72: 576 | G72: 548 | H72: 591 | I72: 620 | J72: Profit of Rs.15/- | K72: 15 | L72: 2.60% | M72: Successful | N72: 2019-03-08 | R72: H
A73: 6 | B73: 2019-03-06 | D73: DLF | E73: Buy | F73: 174 | G73: 167 | H73: 178.5 | I73: 182 | J73: Profit of Rs.4.5/- | K73: =H73-F73 -> 4.5 | L73: =K73/F73 -> 2.59% | M73: Successful | N73: 2019-03-06 | R73: H
A74: 7 | B74: 2019-03-06 | D74: DISHTV | E74: Sell | F74: 41.25 | G74: 43.2 | H74: 39.85 | I74: 38-37 | J74: Profit of Rs.1.4/- | K74: =F74-H74 -> 1.4 | L74: 3.39% | M74: Successful | N74: 2019-03-07 | R74: H
A75: 8 | B75: 2019-03-08 | D75: TITAN | E75: Sell | F75: 1045-1050 | G75: 1077.7 | I75: 990-980 | J75: Open | O75: =VLOOKUP(D75,Sheet2!A83:M1578,6,0) -> 1043.3 | R75: R
A76: 9 | B76: 2019-03-08 | D76: NIITTECH | E76: Sell | F76: 1318-1322 | G76: 1361.6 | I76: 1250-1240 | J76: Open | O76: =VLOOKUP(D76,Sheet2!A84:M1579,6,0) -> 1323.4 | R76: R
A77: 10 | B77: 2019-03-08 | D77: RADICO | E77: Sell | F77: 392-395 | G77: 406.6 | I77: 375-370 | J77: Open | O77: =VLOOKUP(D77,Sheet2!A85:M1580,6,0) -> 391.25 | R77: R
A78: 11 | B78: 2019-03-08 | D78: TORNTPHARM | E78: Buy | F78: 1770-1780 | G78: 1717.7 | I78: 1860-1880 | J78: Open | O78: =VLOOKUP(D78,Sheet2!A86:M1581,6,0) -> 1775.4 | R78: R
A83: CLBS = Closing Basis *** | F83: Reinitiated $
A84: Dividend adjusted <> | F84: Revised stoploss #
B87: Momentum Call
A88: Sr.no | B88: Date | D88: Company | E88: Rec | F88: Rec Price | G88: Stop Loss | H88: Call Closed At | I88: Target | J88: Remark | K88: Profit / Loss per Share/Lot | L88: Gain / Loss % | M88: Gain / Loss per Lot | N88: Lot | O88: Status | P88: Closed Date
A89: 1 | B89: 2019-02-26 | D89: INDUSINDBK MAR FUT | E89: Buy | F89: 1492.5 | G89: 1455 | H89: 1511 | I89: 1550-1560 | J89: Profit of Rs.18.5/- | K89: =H89-F89 -> 18.5 | M89: =N89*K89 -> 5550 | N89: 300 | O89: Successful | P89: 2019-03-01 | R89: H
A90: 2 | B90: 2019-03-01 | D90: TORNTPHARM MAR FUT | E90: Buy | F90: 1802.5 | G90: 1780 | H90: 1780 | I90: 1840 | J90: Loss of Rs 22.5/- | K90: -22.5 | M90: -11250 | N90: 500 | O90: UnSuccessful | P90: 2019-03-05 | R90: N
A91: 3 | B91: 2019-03-05 | D91: TATAMOTORS MAR FUT | E91: Sell | F91: 185.5 | G91: 192 | H91: 192 | I91: 173 | J91: Loss of Rs 6.5/- | K91: =F91-H91 -> -6.5 | M91: =N91*K91 -> -13000 | N91: 2000 | O91: UnSuccessful | P91: 2019-03-05 | R91: R
A92: 4 | B92: 2019-03-05 | D92: ASIANPAINT MAR FUT | E92: Buy | F92: 1398 | G92: 1378 | H92: 1409 | I92: 1430 | J92: Profit of Rs.11/- | K92: =H92-F92 -> 11 | M92: 6600 | N92: 600 | O92: Successful | P92: 2019-03-05 | R92: N
A93: 5 | B93: 2019-03-05 | D93: COLPAL MAR FUT | E93: Buy | F93: 1249 | G93: 1233 | H93: 1260 | I93: 1275 | J93: Profit of Rs.11/- | K93: 11 | M93: 7700 | N93: 700 | O93: Successful | P93: 2019-03-06 | R93: N
A94: 6 | B94: 2019-03-06 | D94: PIDILITIND MAR FUT | E94: Buy | F94: 1157 | G94: 1135 | H94: 1135 | I94: 1200 | J94: Loss of Rs 22/- | K94: -22 | M94: -11000 | N94: 500 | O94: UnSuccessful | P94: 2019-03-08 | R94: N
A95: 7 | B95: 2019-03-06 | D95: SUNPHARMA MAR FUT | E95: Buy | F95: 460 | G95: 448 | H95: 469.5 | I95: 480 | J95: Profit of Rs.9.5/- | K95: =H95-F95 -> 9.5 | M95: =N95*K95 -> 11400 | N95: 1200 | O95: Successful | P95: 2019-03-06 | R95: H
A96: 8 | B96: 2019-03-06 | D96: ASIANPAINT MAR FUT | E96: Buy | F96: 1398 | G96: 1378 | H96: 1412 | I96: 1430 | J96: Profit of Rs.14/- | K96: 14 | M96: 8400 | N96: 600 | O96: Successful | P96: 2019-03-07 | R96: N
A97: 9 | B97: 2019-03-07 | D97: HINDUNILVR MAR FUT | E97: Buy | F97: 1719-1722 | G97: 1695 | I97: 1760 | J97: Open | R97: H
A98: 10 | B98: 2019-03-07 | D98: BSOFT MAR FUT | E98: Buy | F98: 112.5 | G98: 108 | H98: 108 | I98: 120 | J98: Loss of Rs 4.5/- | K98: =H98-F98 -> -4.5 | M98: =N98*K98 -> -10125 | N98: 2250 | O98: UnSuccessful | P98: 2019-03-08 | R98: H
A99: 11 | B99: 2019-03-07 | D99: SUNPHARMA | E99: Buy | F99: 457-458 | G99: 445 | I99: 485 | J99: Open | R99: H
A100: 12 | B100: 2019-03-08 | D100: AMARAJABAT MAR FUT | E100: Buy | F100: 739-741 | G100: 724 | I100: 770 | J100: Open | R100: N
A101: 13 | B101: 2019-03-08 | D101: ASIANPAINT MAR FUT | E101: Buy | F101: 1389-1391 | G101: 1370 | I101: 1425 | J101: Open | R101: N
A102: 14 | B102: 2019-03-08 | D102: TATACHEM MAR FUT | E102: Buy | F102: 575-577 | G102: 559 | I102: 600 | J102: Open | R102: H
A103: 15 | B103: 2019-03-08 | D103: AMBUJACEM MAR FUT | E103: Sell | F103: 227-228 | G103: 233.3 | I103: 218-220 | J103: Open | R103: R
A117: CLBS = Closing Basis ***
A118: Dividend adjusted <> | F118: Reinitiated $
F119: Revised stoploss #
B120: Quick Pick Intraday
A121: Sr.no | B121: Date | D121: Company | E121: Rec | F121: Rec Price | G121: Stop Loss*** | H121: Call Closed At | I121: Target | J121: Remark | K121: Profit / Loss per Share | L121: Status | M121: Closed Date
A135: Techno -Funda (positional)
A136: Sr.no | B136: Date | D136: Company | E136: Rec | F136: Rec Price | G136: Stop Loss*** | H136: Call Closed At | I136: Target | J136: Remark | K136: Profit / Loss per Share | L136: Gain / Loss % | M136: Status | N136: Closed Date | O136: NSE Closed Price
A139: CLBS = Closing Basis *** | F139: Reinitiated $
A140: Dividend adjusted <> | F140: Revised stoploss #
B145: Investment Idea
A146: Sr.no | B146: Date | D146: Company | E146: Rec | F146: Rec Price | G146: Point of Review | H146: Close Rate | I146: Target | J146: Remark | K146: Profit / Loss per Share | L146: Gain / Loss % | M146: Status | N146: Closed Date
A147: 1 | B147: 2013-11-01 | D147: L&T Finance Holding | E147: Accu | F147: 82.00 | G147: - | H147: 100 | I147: 100.00 | J147: Target Achieved | K147: =H147-F147 -> 18.00 | L147: =K147/F147 -> 21.95% | M147: Successful | N147: 2016-10-14
A148: 2 | B148: 2014-06-04 | D148: Finolex Inds | E148: Buy | F148: 257.00 | G148: - | H148: 300 | I148: 300.00 | J148: Target Achieved | K148: =H148-F148 -> 43.00 | L148: 16.73% | M148: Successful | N148: 2014-07-02
A149: =1+A148 -> 3 | B149: 2014-07-08 | D149: JK Cement | E149: Buy | F149: 393.00 | G149: - | H149: 468 | I149: 468.00 | J149: Target Achieved | K149: =H149-F149 -> 75.00 | L149: 19.08% | M149: Successful | N149: 2014-08-12
A150: 4 | B150: 2014-08-06 | D150: Finolex Cables | E150: Buy | F150: 205.00 | G150: - | H150: 275 | I150: 250.00 | J150: Target Achieved | K150: 70.00 | L150: 34.15% | M150: Successful | N150: 2014-11-19
A151: 5 | B151: 2014-09-04 | D151: Exide Inds | E151: Buy | F151: 162.00 | G151: - | H151: 190 | I151: 190.00 | J151: Target Achieved | K151: 28.00 | L151: 17.28% | M151: Successful | N151: 2015-01-02
A152: 6 | B152: 2014-09-04 | D152: Deepak Nitrite | E152: Buy | F152: 75.00 | G152: - | H152: 91.5 | I152: 95-100 | J152: Profit of Rs.16.50/- | K152: 16.50 | L152: 22.00% | M152: Successful | N152: 2014-11-11
A153: 7 | B153: 2014-10-01 | D153: Mercks | E153: Buy | F153: 850.00 | G153: - | H153: 982.5 | I153: 1050.00 | J153: Profit of Rs.132.50/- | K153: 132.50 | L153: 15.59% | M153: Successful | N153: 2015-02-04
A154: 8 | B154: 2014-10-01 | D154: Grindwell Norton | E154: Buy | F154: 475.00 | G154: - | H154: 515 | I154: 600.00 | J154: Profit of Rs.40/- | K154: 40.00 | L154: 8.42% | M154: Successful | N154: 2014-10-27
A155: 9 | B155: 2014-10-01 | D155: Snowman Logistics | E155: Buy | F155: 86.00 | G155: - | H155: 99 | I155: 140.00 | J155: Profit of Rs.13.00/- | K155: 13.00 | L155: 15.12% | M155: Successful | N155: 2014-10-27
A156: 10 | B156: 2014-10-14 | D156: Birla Corp | E156: Buy | F156: 496.60 | G156: - | H156: 621 | I156: 580.00 | J156: Target Achieved | K156: 124.40 | L156: 25.05% | M156: Successful | N156: 2016-08-23
A157: 11 | B157: 2014-10-14 | D157: Ultratech Cem | E157: Buy | F157: 2481.90 | G157: - | H157: 2840 | I157: 2870.00 | J157: Profit of Rs.358.10/- | K157: 358.10 | L157: 14.43% | M157: Successful | N157: 2015-01-13
A158: =1+A155 -> 10 | B158: 2014-10-16 | D158: Sintex Inds | E158: Buy | F158: 84.50 | G158: - | H158: 93 | I158: 110.00 | J158: Profit of Rs.8.50/- | K158: 8.50 | L158: 10.06% | M158: Successful | N158: 2014-10-27
A159: =1+A158 -> 11 | B159: 2014-10-16 | D159: HSIL | E159: Buy | F159: 401.00 | G159: - | H159: 428 | I159: 450.00 | J159: Profit of Rs.27.00/- | K159: 27.00 | L159: 6.73% | M159: Successful | N159: 2015-01-16
A160: 12 | B160: 2014-10-16 | D160: Eveready Inds | E160: Buy | F160: 101.00 | G160: - | H160: 112 | I160: 120.00 | J160: Profit of Rs.11.00/- | K160: 11.00 | L160: 10.89% | M160: Successful | N160: 2014-10-27
A161: 13 | B161: 2014-11-11 | D161: Pennar Inds | E161: Buy | F161: 59.00 | G161: - | H161: 76 | I161: 76.00 | J161: Target Achieved | K161: 17.00 | L161: 28.81% | M161: Successful | N161: 2017-10-24
A162: 14 | B162: 2014-11-11 | D162: Snowman Logistics | E162: Buy | F162: 99.00 | G162: - | H162: 120 | I162: 120.00 | J162: Profit of Rs.21/- | K162: 21.00 | L162: 21.21% | M162: Successful | N162: 2014-11-17
A163: 15 | B163: 2014-11-13 | D163: Dharamsi Morarji Chem | E163: Buy | F163: 22.00 | G163: - | H163: 33.55 | I163: 32.00 | J163: Profit of Rs 11.55/- | K163: 11.55 | L163: 52.50% | M163: Successful | N163: 2015-07-03
A164: 16 | B164: 2014-12-03 | D164: Tatachem | E164: Buy | F164: 440.00 | G164: - | H164: 520 | I164: 520.00 | J164: Profit of Rs 80.00/- | K164: 80.00 | L164: 18.18% | M164: Successful | N164: 2015-07-23
A165: 17 | B165: 2014-12-03 | D165: Advanta | E165: Buy | F165: 360.00 | G165: - | H165: 427 | I165: 425.00 | J165: Profit of Rs.67.00/- | K165: 67.00 | L165: 18.61% | M165: Successful | N165: 2015-02-23
A166: 18 | B166: 2015-01-08 | D166: GDL | E166: Buy | F166: 360.00 | G166: - | H166: 455 | I166: 420.00 | J166: Profit of Rs.95.00/- | K166: 95.00 | L166: 26.39% | M166: Successful | N166: 2015-01-20
A167: 19 | B167: 2015-01-08 | D167: NRB Bearing | E167: Buy | F167: 130.00 | H167: 175.5 | I167: 165.00 | J167: Profit of Rs 45.50/- | K167: 45.50 | L167: 35.00% | M167: Successful | N167: 2017-12-19
A168: 20 | B168: 2015-02-05 | D168: GSFC | E168: Accu | F168: 98.00 | H168: 120 | I168: 120.00 | J168: Target Achieved | K168: 22.00 | L168: 22.45% | M168: Successful | N168: 2017-01-18
A169: 21 | B169: 2015-02-05 | D169: Sundrmfast | E169: Accu | F169: 196.00 | H169: 262 | I169: 255.00 | J169: Target Achieved | K169: 66.00 | L169: 33.67% | M169: Successful | N169: 2016-08-17
A170: 22 | B170: 2015-03-04 | D170: GPPL | E170: Accu | F170: 235 | H170: 77.00 | I170: 280-285 | J170: Loss of Rs.158/- | K170: =H170-F170 -> -158.00 | L170: -67.23% | M170: Unsuccessful | N170: 2019-02-26
A171: 23 | B171: 2015-03-04 | D171: ORIENTCEM | E171: Accu | F171: 185.00 | H171: 224 | I171: 220-225 | J171: Target Achieved | K171: 39.00 | L171: =K171/F171 -> 21.08% | M171: Successful | N171: 2016-10-04
A172: 24 | B172: 2015-03-27 | D172: PFS | E172: Accu | F172: 49-50 | I172: 67.00 | J172: Open
A173: 25 | B173: 2015-03-30 | D173: Walchandnagar Ind Ltd | E173: Accu | F173: 183.50 | H173: 219 | I173: 218.00 | J173: Profit of Rs.35.50/- | K173: 35.50 | L173: =K173/F173 -> 19.35% | M173: Successful | N173: 2015-04-09
A174: 26 | B174: 2015-04-20 | D174: Kalpataru Power Transmission Ltd | E174: Accu | F174: =(227+237)/2 -> 232.00 | H174: 298 | I174: 298.00 | J174: Target Achieved | K174: 66.00 | L174: 28.45% | M174: Successful | N174: 2017-03-29
A175: 27 | B175: 2015-05-04 | D175: Mastek Ltd | E175: Buy | F175: 385.00 | H175: =212.5+331 -> 543.5 | I175: 510.00 | J175: Profit of Rs 158.50/- | K175: 158.50 | L175: 41.17% | M175: Successful | N175: 2015-08-19
A176: 28 | B176: 2015-05-04 | D176: Suprajit Eng | E176: Buy | F176: 115.50 | H176: 146 | I176: 142.00 | J176: Profit of Rs 30.50/- | K176: 30.50 | L176: 26.41% | M176: Successful | N176: 2015-07-17
A177: 29 | B177: 2015-05-27 | D177: TCI | E177: Buy | F177: 237.50 | H177: 279.5 | I177: 278.00 | J177: Target Achieved | K177: 42.00 | L177: 17.68% | M177: Successful | N177: 2015-08-06
A178: 30 | B178: 2015-06-19 | D178: HSIL | E178: Accu | F178: 340.00 | H178: 448 | I178: 448.00 | J178: Target Achieved | K178: 108.00 | L178: 31.76% | M178: Successful | N178: 2017-10-10
A179: 31 | B179: 2015-07-06 | D179: Capital First | E179: Accu | F179: 390.00 | H179: 460 | I179: 460.00 | J179: Target Achieved | K179: 70.00 | L179: 17.95% | M179: Successful | N179: 2016-04-18
A180: 32 | B180: 2015-07-10 | D180: Dolphin OffShore | E180: Accu | F180: 122.5 | H180: 61.00 | I180: 172.00 | J180: Loss of Rs.61.50/- | K180: -61.50 | L180: -50.20% | M180: Unsuccessful | N180: 2018-08-21
A181: 33 | B181: 2015-08-03 | D181: Allcargo logistics | E181: Accu | F181: 297.50 | H181: 350 | I181: 360.00 | J181: Profit of Rs 52.50/- | K181: 52.50 | L181: =K181/F181 -> 17.65% | M181: Successful | N181: 2015-08-16
A182: 34 | B182: 2015-08-03 | D182: Camline Fine | E182: Accu | F182: 115.50 | H182: 149 | I182: 140.00 | J182: Profit of Rs 33.50/- | K182: 33.50 | L182: 29.00% | M182: Successful | N182: 2017-01-05
A183: 35 | B183: 2015-09-04 | D183: TCI | E183: Accu | F183: 226.00 | H183: 292 | I183: 292.00 | J183: Target Achieved | K183: 66.00 | L183: 29.20% | M183: Successful | N183: 2015-10-09
A184: 36 | B184: 2015-09-07 | D184: Kalpataru Power Transmission Ltd | E184: Accu | F184: 232.50 | H184: 312.5 | I184: 310.00 | J184: Target Achieved | K184: 80.00 | L184: 34.41% | M184: Successful | N184: 2017-03-29
A185: 37 | B185: 2015-09-21 | D185: LLOYD ELECTRIC & ENG LTD | E185: Accu | F185: 196.50 | H185: 238 | I185: 238.00 | J185: Target Achieved | K185: 41.50 | L185: 21.12% | M185: Successful | N185: 2015-10-14
A186: 38 | B186: 2015-09-24 | D186: L&T Finance Holding | E186: Accu | F186: 65.00 | H186: 82 | I186: 82.00 | J186: Target Achieved | K186: 17.00 | L186: 26.15% | M186: Successful | N186: 2016-07-27
A187: 39 | B187: 2015-10-14 | D187: KEC International ltd | E187: Accu | F187: 144.00 | H187: 182.5 | I187: 181.00 | J187: Target Achieved | K187: 38.50 | L187: 26.74% | M187: Successful | N187: 2017-03-23
A188: 40 | B188: 2015-10-14 | D188: Gruh Finance | E188: Accu | F188: 264.00 | H188: 311 | I188: 311.00 | J188: Target Achieved | K188: 47.00 | L188: 17.80% | M188: Successful | N188: 2016-08-22
A189: 41 | B189: 2015-11-10 | D189: Pidilitind | E189: Buy | F189: 549.50 | H189: 630 | I189: 630.00 | J189: Target Achieved | K189: 80.50 | L189: 14.65% | M189: Successful | N189: 2016-02-19
A190: 42 | B190: 2015-12-04 | D190: Zensar Technology | E190: Accu | F190: 1027.50 | H190: 1315 | I190: 1250.00 | J190: Target Achieved | K190: =H190-F190 -> 287.50 | L190: 27.98% | M190: Successful | N190: 2018-05-24
A191: 43 | B191: 2015-12-29 | D191: Vinati Organics Ltd | E191: Accu | F191: 465.00 | H191: 540 | I191: 540.00 | J191: Target Achieved | K191: 75.00 | L191: =K191/F191 -> 16.13% | M191: Successful | N191: 2016-06-09
A192: 44 | B192: 2016-01-11 | D192: GSFC | E192: Buy | F192: 81.00 | H192: 110 | I192: 110.00 | J192: Target Achieved | K192: 29.00 | L192: 35.80% | M192: Successful | N192: 2017-01-10
A193: 45 | B193: 2016-01-13 | D193: SSWL | E193: Buy | F193: 417.50 | H193: 547 | I193: 535.00 | J193: Target Achieved | K193: 129.50 | L193: 31.02% | M193: Successful | N193: 2016-07-27
A194: 46 | B194: 2016-02-08 | D194: Persistent System Ltd | E194: Accu | F194: 650.00 | H194: 800 | I194: 800.00 | J194: Target Achieved | K194: 150.00 | L194: 23.08% | M194: Successful | N194: 2018-02-23
A195: 47 | B195: 2016-03-04 | D195: UPL | E195: Accu | F195: 437.50 | H195: 504.5 | I195: 522.00 | J195: Profit of Rs.67/- | K195: 67.00 | L195: 15.31% | M195: Successful | N195: 2016-04-20
A196: 48 | B196: 2016-03-09 | D196: Ashoka Buildcon Ltd | E196: Accu | F196: 189.50 | H196: 218 | I196: 218.00 | J196: Target Achieved | K196: 28.50 | L196: 15.04% | M196: Successful | N196: 2017-10-26
A197: 49 | B197: 2016-04-11 | D197: PTC INDIA FIN SERV LTD | E197: Accu | F197: 36-37 | I197: 60.00 | J197: Open
A198: 50 | B198: 2016-04-12 | D198: CAMLINFINE $ | E198: Accu | F198: 93.00 | H198: 149 | I198: 140.00 | J198: Profit of Rs 56/- | K198: 56.00 | L198: =K198/F198 -> 60.22% | M198: Successful | N198: 2017-01-05
A199: 51 | B199: 2016-04-12 | D199: Greaves Cotton Ltd. | E199: Accu | F199: 130.00 | H199: 150 | I199: 150-155 | J199: Target Achieved | K199: 20.00 | L199: 15.38% | M199: Successful | N199: 2016-07-13
A200: 52 | B200: 2016-04-13 | D200: DHFL | E200: Accu | F200: 196.00 | H200: 299 | I200: 299.00 | J200: Target Achieved | K200: 103.00 | L200: 52.55% | M200: Successful | N200: 2016-09-07
A201: 53 | B201: 2016-04-13 | D201: Magma | E201: Accu | F201: 88.00 | H201: 103 | I201: 103.00 | J201: Target Achieved | K201: 15.00 | L201: 17.05% | M201: Successful | N201: 2016-06-09
A202: 54 | B202: 2016-05-02 | D202: KEC International ltd $ | E202: Accu | F202: 127.50 | H202: 148 | I202: 148-150 | J202: Target Achieved | K202: 20.50 | L202: 16.08% | M202: Successful | N202: 2016-07-13
A203: 55 | B203: 2016-05-03 | D203: Mindtree | E203: Accu | F203: 675.00 | H203: 815 | I203: 790-800 | J203: Target Achieved | K203: 140.00 | L203: 20.74% | M203: Successful | N203: 2018-02-23
A204: 56 | B204: 2016-06-01 | D204: Atulauto | E204: Accu | F204: 495-505 | I204: 565-570 | J204: Open
A205: 57 | B205: 2016-06-06 | D205: TRITURBINE | E205: Accu | F205: 110.00 | H205: 126.5 | I205: 125.00 | J205: Profit of Rs.16.50/- | K205: 16.50 | L205: =K205/F205 -> 15.00% | M205: Successful | N205: 2016-07-01
A206: 58 | B206: 2016-06-17 | D206: Pennar Industries Ltd | E206: Accu | F206: 44.00 | H206: 69.5 | I206: 69.50 | J206: Profit of Rs.25.50/- | K206: 25.50 | L206: =K206/F206 -> 57.95% | M206: Successful | N206: 2017-08-30
A207: 59 | B207: 2016-06-28 | D207: EVEREADY INDS. IND. LTD. | E207: Accu | F207: 262.50 | H207: 340 | I207: 333.00 | J207: Profit of Rs.77.50/- | K207: 77.50 | L207: =K207/F207 -> 29.52% | M207: Successful | N207: 2017-10-09
A208: 60 | B208: 2016-06-28 | D208: FIEM INDUSTRIES LIMITED | E208: Accu | F208: 840.00 | H208: 1230 | I208: 1230.00 | J208: Target Achieved | K208: 390.00 | L208: =K208/F208 -> 46.43% | M208: Successful | N208: 2016-10-06
A209: 61 | B209: 2016-07-05 | D209: Bajaj Corp Ltd | E209: Accu | F209: 395 | H209: 468.50 | I209: 510.00 | J209: Part profit of Rs.73.50/- | K209: 73.50 | L209: =K209/F209 -> 19% | M209: Successful | N209: 2017-08-30
A210: 62 | B210: 2016-08-02 | D210: GPPL $ | E210: Buy | F210: 169.5 | H210: 77.00 | I210: 198-200 | J210: Loss of Rs.92.5/- | K210: -92.50 | L210: =K210/F210 -> -54.57% | M210: Unsuccessful | N210: 2019-02-26
A211: 63 | B211: 2016-08-04 | D211: WONDERLA HOLIDAYS LTD | E211: Accu | F211: 395-405 | I211: 475.00 | J211: Open
A212: 64 | B212: 2016-08-11 | D212: CAMLINFINE | E212: Accu | F212: 86.50 | H212: 130 | I212: 130.00 | J212: Profit of Rs.43.50/- | K212: =H212-F212 -> 43.50 | L212: =K212/F212 -> 50.29% | M212: Successful | N212: 2017-12-22
A213: 65 | B213: 2016-08-18 | D213: GRANULES | E213: Accu | F213: 133.5 | H213: 126.50 | I213: 178.00 | J213: Exit | K213: -7.00 | L213: -5.24% | M213: Unsuccessful | N213: 2016-09-02
A214: 66 | B214: 2016-08-31 | D214: VA TECH WABAG | E214: Accu | F214: 560.00 | H214: 725 | I214: 725.00 | J214: Target Achieved | K214: 165.00 | L214: 29.46% | M214: Successful | N214: 2016-03-27
A215: 67 | B215: 2016-09-01 | D215: SKIPPER LIMITED | E215: Accu | F215: 160.50 | H215: 210 | I215: 210.00 | J215: Target Achieved | K215: 49.50 | L215: 30.84% | M215: Successful | N215: 2017-05-16
A216: 68 | B216: 2016-10-03 | D216: IFB Industries | E216: Accu | F216: 430.00 | H216: 596 | I216: 575.00 | J216: Profit of Rs.166/- | K216: 166.00 | L216: 38.60% | M216: Successful | N216: 2017-02-03
A217: 69 | B217: 2016-10-14 | D217: ASIANTILES | E217: Accu | F217: 280.00 | H217: 345 | I217: 345.00 | J217: Target Achieved | K217: 65.00 | L217: 23.21% | M217: Successful | N217: 2017-03-20
A218: 70 | B218: 2016-10-14 | D218: DEEPIND | E218: Accu | F218: 245.00 | H218: 325.5 | I218: 330.00 | J218: Profit of Rs.80.5/- | K218: 80.50 | L218: 32.86% | M218: Successful | N218: 2017-02-03
A219: 71 | B219: 2016-10-17 | D219: DCBBANK | E219: Accu | F219: 125.00 | H219: 160 | I219: 160.00 | J219: Target Achieved | K219: 35.00 | L219: 28.00% | M219: Successful | N219: 2017-03-09
A220: 72 | B220: 2016-10-17 | D220: ORIENTREF | E220: Accu | F220: 114.00 | H220: 145 | I220: 145.00 | J220: Target Achieved | K220: 31.00 | L220: =K220/F220 -> 27.19% | M220: Successful | N220: 2017-05-04
A221: 73 | B221: 2016-10-17 | D221: GANECOS | E221: Accu | F221: 212.00 | H221: 280 | I221: 276.00 | J221: Profit of Rs.68/- | K221: 68.00 | L221: =K221/F221 -> 32.08% | M221: Successful | N221: 2017-05-03
A222: 74 | B222: 2016-11-04 | D222: NBCC | E222: Accu | F222: 155.00 | H222: 210 | I222: 210.00 | J222: Profit of Rs.55/- | K222: 55.00 | L222: =K222/F222 -> 35.48% | M222: Successful | N222: 2017-07-28
A223: 75 | B223: 2016-12-06 | D223: PRECAM | E223: Accu | F223: 150.5 | H223: 72.50 | I223: 174.00 | J223: Loss of Rs.78/- | K223: -78.00 | L223: =K223/F223 -> -51.83% | M223: Unsuccessful | N223: 2018-08-21
A224: 76 | B224: 2016-12-08 | D224: INFRATEL | E224: Accu | F224: 380.00 | H224: 478 | I224: 468.00 | J224: Target Achieved | K224: 98.00 | L224: =K224/F224 -> 25.79% | M224: Successful | N224: 2017-10-17
A225: 77 | B225: 2016-12-30 | D225: GODREJPROP | E225: Accu | F225: 305.00 | H225: 375 | I225: 375.00 | J225: Target Achieved | K225: 70.00 | L225: 22.95% | M225: Successful | N225: 2017-02-02
A226: 78 | B226: 2017-01-04 | D226: DEEPAKNTR | E226: Accu | F226: 99.50 | H226: 158 | I226: 158.00 | J226: Target Achieved | K226: 58.50 | L226: 58.79% | M226: Successful | N226: 2017-06-12
A227: 79 | B227: 2017-02-20 | D227: SUBROS | E227: Accu | F227: 202.50 | H227: 234 | I227: 234.00 | J227: Target Achieved | K227: 31.50 | L227: 15.56% | M227: Successful | N227: 2017-04-11
A228: 80 | B228: 2017-02-20 | D228: RECLTD | E228: Accu | F228: 140.50 | H228: 220 | I228: 220.00 | J228: Target Achieved | K228: 79.50 | L228: 56.58% | M228: Successful | N228: 2017-05-09
A229: 81 | B229: 2017-03-24 | D229: VRLLOG | E229: Accu | F229: 300.50 | H229: 417.5 | I229: 420.00 | J229: Profit of Rs.117/- | K229: 117.00 | L229: 38.94% | M229: Successful | N229: 2017-12-01
A230: 82 | B230: 2017-03-24 | D230: FIEMIND | E230: Accu | F230: 850.00 | H230: 1042.5 | I230: 1023.00 | J230: Profit of Rs 192.50/- | K230: 192.50 | L230: 22.65% | M230: Successful | N230: 2017-04-05
A231: 83 | B231: 2017-04-05 | D231: RATNAMANI | E231: Accu | F231: 785.00 | H231: 930 | I231: 920.00 | J231: Profit of Rs.145/- | K231: 145.00 | L231: 18.47% | M231: Successful | N231: 2017-08-29
A232: 84 | B232: 2017-04-06 | D232: ZEEMEDIA | E232: Accu | F232: 40 | H232: 13.10 | I232: 60.00 | J232: Loss of Rs.26.9/- | K232: =H232-F232 -> -26.90 | L232: -67.25% | M232: Unsuccessful | N232: 2018-02-07
A233: 85 | B233: 2017-04-12 | D233: DABUR | E233: Accu | F233: 289.50 | H233: 354 | I233: 360.00 | J233: Profit of Rs.64.5/- | K233: 64.50 | L233: =K233/F233 -> 22.28% | M233: Successful | N233: 2017-11-01
A234: 86 | B234: 2017-04-20 | D234: KPRMILL | E234: Accu | F234: 700.00 | H234: 840 | I234: 840.00 | J234: Profit of Rs.140/- | K234: 140.00 | L234: =K234/F234 -> 20.00% | M234: Successful | N234: 2017-06-07
A235: 87 | B235: 2017-05-22 | D235: GREAVESCOT | E235: Accu | F235: 153-158 | I235: 190.00 | J235: Open
A236: 88 | B236: 2017-06-01 | D236: ESSELPACK | E236: Accu | F236: 130 | H236: 155.50 | I236: 170.00 | J236: Part profit of Rs.51/- | K236: =H236-F236 -> 25.50 | L236: =K236/F236 -> 20% | M236: Successful | N236: 2017-11-17
A237: 89 | B237: 2017-06-15 | D237: KEI | E237: Accu | F237: 214.50 | H237: 262 | I237: 262.00 | J237: Profit of Rs.47.5/- | K237: =H237-F237 -> 47.50 | L237: 22.14% | M237: Successful | N237: 2017-08-30
A238: 90 | B238: 2017-07-17 | D238: MAYURUNIQ | E238: Accu | F238: 370.00 | H238: 447.5 | I238: 450.00 | J238: Target Achieved | K238: 77.50 | L238: 20.95% | M238: Successful | N238: 2017-10-27
A239: 91 | B239: 2017-07-27 | D239: RAMCOCEM | E239: Accu | F239: 657.50 | H239: 825 | I239: 820.00 | J239: Target Achieved | K239: 167.50 | L239: 25.48% | M239: Successful | N239: 2017-12-21
A240: 92 | B240: 2017-08-17 | D240: FINPIPE | E240: Accu | F240: 605.00 | H240: 750 | I240: 750.00 | J240: Profit of Rs.145/- | K240: 145.00 | L240: 23.97% | M240: Successful | N240: 2017-10-19
A241: 93 | B241: 2017-09-01 | D241: SHK | E241: Accu | F241: 255 | H241: 307.50 | I241: 320.00 | J241: Part profit of Rs.52.5/- | K241: 52.50 | L241: 21% | M241: Successful | N241: 2017-12-29
A242: 94 | B242: 2017-09-19 | D242: SKIPPER | E242: Accu | F242: 215.00 | H242: 258 | I242: 258.00 | J242: Target Achieved | K242: 43.00 | L242: 20.00% | M242: Successful | N242: 2017-11-01
A243: 95 | B243: 2017-09-20 | D243: CAMLINFINE | E243: Accu | F243: 75.00 | H243: 90 | I243: 90.00 | J243: Profit of Rs.15.00/- | K243: 15.00 | L243: 20.00% | M243: Successful | N243: 2017-10-11
A244: 96 | B244: 2017-10-03 | D244: GNA | E244: Accu | F244: 315.00 | H244: 392 | I244: 384.00 | J244: Profit of Rs.77/- | K244: 77.00 | L244: 24.44% | M244: Successful | N244: 2017-10-09
A245: 97 | B245: 2017-10-05 | D245: NOCIL | E245: Accu | F245: 145.00 | H245: 179 | I245: 180.00 | J245: Profit of Rs.34/- | K245: 34.00 | L245: 23.45% | M245: Successful | N245: 2017-10-17
A246: 98 | B246: 2017-10-06 | D246: CENTURYPLY | E246: Accu | F246: 256.00 | H246: 323 | I246: 320.00 | J246: Target Achieved | K246: 67.00 | L246: 26.17% | M246: Successful | N246: 2017-11-28
A247: 99 | B247: 2017-10-09 | D247: RECLTD | E247: Accu | F247: 152.5 | H247: 183.50 | I247: 210.00 | J247: Part Profit of Rs.31/- | K247: 31.00 | L247: 20% | M247: Successful | N247: 2017-11-03
A248: 100 | B248: 2017-10-09 | D248: EIHOTEL | E248: Accu | F248: 137.50 | H248: 184 | I248: 183.00 | J248: Profit of Rs.46.5/- | K248: 46.50 | L248: 33.82% | M248: Successful | N248: 2018-01-08
A249: 101 | B249: 2017-10-10 | D249: BOROSIL | E249: Accu | F249: 895.00 | H249: 1122.5 | I249: 1078.00 | J249: Profit of Rs.227.5/- | K249: 227.50 | L249: 25.42% | M249: Successful | N249: 2018-01-17
A250: 102 | B250: 2017-10-10 | D250: NRBBEARING | E250: Accu | F250: 125.50 | H250: 158 | I250: 155.00 | J250: Profit of Rs.32.5/- | K250: 32.50 | L250: 25.90% | M250: Successful | N250: 2017-11-28
A251: 103 | B251: 2017-10-12 | D251: CYIENT | E251: Accu | F251: 525.00 | H251: 629 | I251: 629.00 | J251: Target Achieved | K251: 104.00 | L251: 19.81% | M251: Successful | N251: 2018-01-19
A252: 104 | B252: 2017-11-07 | D252: HATSUN | E252: Accu | F252: 740.00 | H252: 892.5 | I252: 900.00 | J252: Profit of Rs.152.5/- | K252: 152.50 | L252: 20.61% | M252: Successful | N252: 2017-11-13
A253: 105 | B253: 2017-12-04 | D253: SANGHIIND | E253: Accu | F253: 118.50 | H253: 143.5 | I253: 145.00 | J253: Profit of Rs.25/- | K253: 25.00 | L253: 21.10% | M253: Successful | N253: 2017-12-28
A254: 106 | B254: 2017-12-05 | D254: ALLCARGO | E254: Accu | F254: 177.5 | H254: 215.00 | I254: 230.00 | J254: Part Profit of Rs.37.5/- | K254: 37.50 | L254: 21% | M254: Successful | N254: 2017-12-27
A255: 107 | B255: 2017-12-21 | D255: KAJARIACER | E255: Accu | F255: 710-720 | I255: 872.00 | J255: Open
A256: 108 | B256: 2017-12-29 | D256: GNA | E256: Accu | F256: 435.00 | H256: 542.5 | I256: 539.00 | J256: Target Achieved | K256: =H256-F256 -> 107.50 | L256: =K256/F256 -> 24.71% | M256: Successful | N256: 2018-04-16
A257: 109 | B257: 2017-12-29 | D257: ZENSARTECH | E257: Accu | F257: 885.00 | H257: 1090 | I257: 1084.00 | J257: Target Achieved | K257: 205.00 | L257: =K257/F257 -> 23.16% | M257: Successful | N257: 2018-04-23
A258: 110 | B258: 2018-02-07 | D258: GREAVESCOT | E258: Accu | F258: 130-132 | I258: 190.00 | J258: Open
A259: 111 | B259: 2018-02-27 | D259: MOLDTKPAC | E259: Accu | F259: 320-330 | I259: 398.00 | J259: Open
A260: 112 | B260: 2018-03-05 | D260: LICHSGFIN | E260: Accu | F260: 505-515 | I260: 672.00 | J260: Open
A261: 113 | B261: 2018-04-02 | D261: EVERESTIND | E261: Accu | F261: 492.5 | H261: 589.00 | I261: 613.00 | J261: Part Profit of Rs.37.5/- | K261: =H261-F261 -> 96.50 | L261: =K261/F261 -> 20% | M261: Successful | N261: 2018-08-21
A262: 114 | B262: 2018-04-04 | D262: GPPL | E262: Accu | F262: 141.5 | H262: 77.00 | I262: 180.00 | J262: Loss of Rs.64.5/- | K262: -64.50 | L262: -45.58% | M262: Unsuccessful | N262: 2019-02-26
A263: 115 | B263: 2018-04-19 | D263: MANPASAND | E263: Accu | F263: 430 | H263: 220.00 | I263: 537.00 | J263: Loss of Rs.210/- | K263: =H263-F263 -> -210.00 | L263: =K263/F263 -> -48.84% | M263: Unsuccessful | N263: 2018-06-01
A264: 116 | B264: 2018-04-30 | D264: HEIDELBERG | E264: Accu | F264: 154-158 | I264: 196.00 | J264: Open
A265: 117 | B265: 2018-05-17 | D265: PHILIPCARB | E265: Accu | F265: 230-240 | I265: 348.00 | J265: Open
A266: 118 | B266: 2018-06-07 | D266: KEC | E266: Accu | F266: 340-345 | I266: 439.00 | J266: Open
A267: 119 | B267: 2018-07-04 | D267: ASHOKLEY | E267: Accu | F267: 125-130 | I267: 170.00 | J267: Open
A268: 120 | B268: 2018-07-13 | D268: FCONSUMER | E268: Accu | F268: 46-47 | I268: 59.00 | J268: Open
A269: 121 | B269: 2018-07-25 | D269: ZEEMEDIA | E269: Accu | F269: 27.5 | H269: 13.10 | I269: 60.00 | J269: Loss of Rs.14.40/- | K269: =H269-F269 -> -14.40 | L269: =K269/F269 -> -52.36% | M269: Unsuccessful | N269: 2018-02-07
A270: 122 | B270: 2018-08-06 | D270: GABRIEL | E270: Accu | F270: 148-152 | I270: 182.00 | J270: Open
A271: 123 | B271: 2018-08-23 | D271: INDIANHUME | E271: Accu | F271: 285.00 | H271: 355 | I271: 364.00 | J271: Profit of Rs.70/- | K271: =H271-F271 -> 70.00 | L271: =K271/F271 -> 24.56% | M271: Successful | N271: 2018-12-21
... 25 more rows

Sheet Sheet2 (hidden)
A1: SYMBOL | B1: SERIES | C1: OPEN | D1: HIGH | E1: LOW | F1: CLOSE | G1: LAST | H1: PREVCLOSE | I1: TOTTRDQTY | J1: TOTTRDVAL | K1: TIMESTAMP | L1: TOTALTRADES | M1: ISIN | N1: ISIN
A2: 20MICRONS | B2: EQ | C2: 41.4 | D2: 41.4 | E2: 39 | F2: 39.45 | G2: 39.5 | H2: 40.55 | I2: 20465 | J2: 823732.65 | K2: 2019-03-07 | L2: 350 | M2: INE144J01027
A3: 21STCENMGM | B3: EQ | C3: 18.45 | D3: 18.8 | E3: 18.15 | F3: 18.5 | G3: 18.5 | H3: 18.45 | I3: 879 | J3: 16358.45 | K3: 2019-03-07 | L3: 17 | M3: INE253B01015
A4: 3IINFOTECH | B4: EQ | C4: 3.75 | D4: 3.85 | E4: 3.65 | F4: 3.65 | G4: 3.7 | H4: 3.8 | I4: 2861941 | J4: 10673046.8 | K4: 2019-03-07 | L4: 909 | M4: INE748C01020
A5: 3MINDIA | B5: EQ | C5: 23270 | D5: 24199.1 | E5: 23016.7 | F5: 23834.5 | G5: 23800 | H5: 23252.1 | I5: 5869 | J5: 139849795.2 | K5: 2019-03-07 | L5: 3117 | M5: INE470A01017
A6: 3PLAND | B6: EQ | C6: 11.2 | D6: 11.2 | E6: 10.6 | F6: 10.6 | G6: 10.6 | H6: 10.7 | I6: 30 | J6: 326.2 | K6: 2019-03-07 | L6: 4 | M6: INE105C01023
A7: 5PAISA | B7: EQ | C7: 230.15 | D7: 237 | E7: 226 | F7: 227.1 | G7: 226.5 | H7: 229.2 | I7: 6648 | J7: 1525494.2 | K7: 2019-03-07 | L7: 242 | M7: INE618L01018
A8: 63MOONS | B8: EQ | C8: 85.4 | D8: 85.9 | E8: 82.65 | F8: 83.05 | G8: 82.75 | H8: 85.25 | I8: 190022 | J8: 15958418.9 | K8: 2019-03-07 | L8: 3279 | M8: INE111B01023
A9: 8KMILES | B9: EQ | C9: 110 | D9: 111.25 | E9: 107.5 | F9: 108.05 | G9: 107.75 | H9: 110 | I9: 131671 | J9: 14293724.55 | K9: 2019-03-07 | L9: 2035 | M9: INE650K01021
A10: A2ZINFRA | B10: BE | C10: 19.2 | D10: 19.2 | E10: 18.25 | F10: 18.25 | G10: 18.35 | H10: 19.2 | I10: 594008 | J10: 10910729.1 | K10: 2019-03-07 | L10: 680 | M10: INE619I01012
A11: AARTIDRUGS | B11: EQ | C11: 633 | D11: 640.5 | E11: 624 | F11: 634.65 | G11: 637.95 | H11: 628.75 | I11: 15487 | J11: 9794146.8 | K11: 2019-03-07 | L11: 1134 | M11: INE767A01016
A12: AARTIIND | B12: EQ | C12: 1526.8 | D12: 1545 | E12: 1472.65 | F12: 1484.05 | G12: 1480 | H12: 1517.35 | I12: 111984 | J12: 167723669.8 | K12: 2019-03-07 | L12: 9351 | M12: INE769A01020
A13: AARVEEDEN | B13: EQ | C13: 23.5 | D13: 24.15 | E13: 23.3 | F13: 23.6 | G13: 23.4 | H13: 23.25 | I13: 17965 | J13: 422631.65 | K13: 2019-03-07 | L13: 437 | M13: INE273D01019
A14: AAVAS | B14: EQ | C14: 1166 | D14: 1238.9 | E14: 1165 | F14: 1226.2 | G14: 1222 | H14: 1166.2 | I14: 226934 | J14: 274537859.7 | K14: 2019-03-07 | L14: 7847 | M14: INE216P01012
A15: ABAN | B15: EQ | C15: 75 | D15: 77.9 | E15: 72.55 | F15: 73.65 | G15: 74.2 | H15: 72.1 | I15: 4005200 | J15: 299734179.9 | K15: 2019-03-07 | L15: 29425 | M15: INE421A01028
A16: ABB | B16: EQ | C16: 1252 | D16: 1294.9 | E16: 1244.75 | F16: 1270.7 | G16: 1271 | H16: 1244.55 | I16: 174204 | J16: 222003102.4 | K16: 2019-03-07 | L16: 8476 | M16: INE117A01022
A17: ABBOTINDIA | B17: EQ | C17: 7360 | D17: 7400 | E17: 7261.5 | F17: 7280.65 | G17: 7285 | H17: 7362.7 | I17: 2927 | J17: 21451845.2 | K17: 2019-03-07 | L17: 879 | M17: INE358A01014
A18: ABCAPITAL | B18: EQ | C18: 100 | D18: 102.75 | E18: 97.8 | F18: 98.5 | G18: 98.5 | H18: 99.8 | I18: 3375216 | J18: 338764611.2 | K18: 2019-03-07 | L18: 43749 | M18: INE674K01013
A19: ABFRL | B19: EQ | C19: 219 | D19: 224.8 | E19: 219 | F19: 223.7 | G19: 224 | H19: 219.85 | I19: 716755 | J19: 159814313.9 | K19: 2019-03-07 | L19: 8670 | M19: INE647O01011
A20: ACC | B20: EQ | C20: 1550 | D20: 1571.85 | E20: 1537 | F20: 1555.05 | G20: 1558.7 | H20: 1554.4 | I20: 757839 | J20: 1180286101 | K20: 2019-03-07 | L20: 32789 | M20: INE012A01025
A21: ACCELYA | B21: EQ | C21: 934.95 | D21: 949.85 | E21: 933.05 | F21: 935.7 | G21: 935 | H21: 934.95 | I21: 4317 | J21: 4066693.65 | K21: 2019-03-07 | L21: 356 | M21: INE793A01012
A22: ACE | B22: EQ | C22: 94 | D22: 101.4 | E22: 93.3 | F22: 96.1 | G22: 96.6 | H22: 93.85 | I22: 1064794 | J22: 104427652.7 | K22: 2019-03-07 | L22: 8737 | M22: INE731H01025
A23: ADANIENT | B23: EQ | C23: 139 | D23: 140.95 | E23: 135.3 | F23: 136.9 | G23: 136.95 | H23: 139.25 | I23: 3496617 | J23: 483329484.2 | K23: 2019-03-07 | L23: 21476 | M23: INE423A01024
A24: ADANIGAS | B24: EQ | C24: 113.55 | D24: 117.7 | E24: 113.1 | F24: 115.2 | G24: 114.95 | H24: 113.1 | I24: 1018859 | J24: 117527561.6 | K24: 2019-03-07 | L24: 7809 | M24: INE399L01023
A25: ADANIGREEN | B25: EQ | C25: 36 | D25: 36.45 | E25: 34.95 | F25: 35.6 | G25: 35.7 | H25: 35.4 | I25: 816819 | J25: 28952368.55 | K25: 2019-03-07 | L25: 2698 | M25: INE364U01010
A26: ADANIPORTS | B26: EQ | C26: 338 | D26: 342.5 | E26: 335 | F26: 340.9 | G26: 340.7 | H26: 337.05 | I26: 3047318 | J26: 1035528453 | K26: 2019-03-07 | L26: 34043 | M26: INE742F01042
A27: ADANIPOWER | B27: EQ | C27: 51 | D27: 51.6 | E27: 50.2 | F27: 50.4 | G27: 50.45 | H27: 50.7 | I27: 11306396 | J27: 573865441.6 | K27: 2019-03-07 | L27: 21749 | M27: INE814H01011
A28: ADANITRANS | B28: EQ | C28: 209 | D28: 211.45 | E28: 204.1 | F28: 204.65 | G28: 205.8 | H28: 208.25 | I28: 158905 | J28: 32927418.1 | K28: 2019-03-07 | L28: 10085 | M28: INE931S01010
A29: ADFFOODS | B29: EQ | C29: 262.45 | D29: 263 | E29: 253.55 | F29: 259.5 | G29: 260 | H29: 262.95 | I29: 30047 | J29: 7721704.1 | K29: 2019-03-07 | L29: 966 | M29: INE982B01019
A30: ADHUNIK | B30: EQ | C30: 1.75 | D30: 1.75 | E30: 1.75 | F30: 1.75 | G30: 1.75 | H30: 1.7 | I30: 10018 | J30: 17531.5 | K30: 2019-03-07 | L30: 14 | M30: INE400H01019
A31: ADHUNIKIND | B31: EQ | C31: 56 | D31: 56 | E31: 48.3 | F31: 53.2 | G31: 53 | H31: 53.65 | I31: 14833 | J31: 789782.6 | K31: 2019-03-07 | L31: 79 | M31: INE452L01012
A32: ADLABS | B32: EQ | C32: 9.5 | D32: 9.75 | E32: 9.1 | F32: 9.1 | G32: 9.15 | H32: 9.5 | I32: 162226 | J32: 1505252.65 | K32: 2019-03-07 | L32: 336 | M32: INE172N01012
A33: ADORWELD | B33: EQ | C33: 344 | D33: 356 | E33: 342.05 | F33: 345.6 | G33: 346.95 | H33: 340.55 | I33: 14852 | J33: 5169450.35 | K33: 2019-03-07 | L33: 830 | M33: INE045A01017
A34: ADROITINFO | B34: EQ | C34: 20 | D34: 20 | E34: 19.6 | F34: 19.6 | G34: 19.6 | H34: 19.6 | I34: 1331 | J34: 26464 | K34: 2019-03-07 | L34: 16 | M34: INE737B01033
A35: ADSL | B35: EQ | C35: 13.95 | D35: 14.65 | E35: 13.55 | F35: 14.2 | G35: 14.25 | H35: 13.85 | I35: 50413 | J35: 708728.45 | K35: 2019-03-07 | L35: 164 | M35: INE102I01027
A36: ADVANIHOTR | B36: EQ | C36: 66.95 | D36: 67.05 | E36: 66.05 | F36: 66.3 | G36: 66.5 | H36: 66.75 | I36: 1478 | J36: 97893.1 | K36: 2019-03-07 | L36: 37 | M36: INE199C01026
A37: ADVENZYMES | B37: EQ | C37: 157.05 | D37: 166.5 | E37: 157 | F37: 162.9 | G37: 161.65 | H37: 156.05 | I37: 1762309 | J37: 285451370.6 | K37: 2019-03-07 | L37: 19941 | M37: INE837H01020
A38: AEGISCHEM | B38: EQ | C38: 204.65 | D38: 206.5 | E38: 200.05 | F38: 202.4 | G38: 202 | H38: 205.05 | I38: 169607 | J38: 34564735.75 | K38: 2019-03-07 | L38: 5751 | M38: INE208C01025
A39: AGARIND | B39: EQ | C39: 171.95 | D39: 174 | E39: 169 | F39: 171.2 | G39: 169.05 | H39: 171.05 | I39: 1750 | J39: 297712.6 | K39: 2019-03-07 | L39: 50 | M39: INE204E01012
A40: AGCNET | B40: EQ | C40: 104.3 | D40: 109 | E40: 104.2 | F40: 107.9 | G40: 108.4 | H40: 103.85 | I40: 11389 | J40: 1228033.55 | K40: 2019-03-07 | L40: 167 | M40: INE676A01019
A41: AGLSL | B41: EQ | C41: 60.4 | D41: 62.8 | E41: 60.15 | F41: 60.95 | G41: 60.6 | H41: 61.05 | I41: 34750 | J41: 2127282.4 | K41: 2019-03-07 | L41: 246 | M41: INE517U01013
A42: AGRITECH | B42: EQ | C42: 55 | D42: 55 | E42: 52.15 | F42: 52.4 | G42: 52.3 | H42: 53.05 | I42: 5085 | J42: 267953.1 | K42: 2019-03-07 | L42: 99 | M42: INE449G01018
A43: AHLEAST | B43: EQ | C43: 244.25 | D43: 245.9 | E43: 239 | F43: 240.05 | G43: 240.05 | H43: 240.6 | I43: 642 | J43: 154806.75 | K43: 2019-03-07 | L43: 214 | M43: INE926K01017
A44: AHLUCONT | B44: EQ | C44: 322.1 | D44: 324.4 | E44: 312.55 | F44: 320.05 | G44: 320 | H44: 319.15 | I44: 18215 | J44: 5809837.25 | K44: 2019-03-07 | L44: 1000 | M44: INE758C01029
A45: AHLWEST | B45: EQ | C45: 340 | D45: 340 | E45: 338 | F45: 338 | G45: 338 | H45: 349.9 | I45: 25 | J45: 8480 | K45: 2019-03-07 | L45: 3 | M45: INE915K01010
A46: AIAENG | B46: EQ | C46: 1790 | D46: 1798.9 | E46: 1771.25 | F46: 1790.1 | G46: 1797 | H46: 1798.5 | I46: 100348 | J46: 179261993.2 | K46: 2019-03-07 | L46: 5385 | M46: INE212H01026
A47: AIFL | B47: BE | C47: 17.75 | D47: 17.75 | E47: 17.75 | F47: 17.75 | G47: 17.75 | H47: 16.95 | I47: 8687 | J47: 154194.25 | K47: 2019-03-07 | L47: 29 | M47: INE428O01016
A48: AIONJSW | B48: EQ | C48: 31.05 | D48: 31.05 | E48: 29.7 | F48: 30 | G48: 30.15 | H48: 30.7 | I48: 73998 | J48: 2231478.7 | K48: 2019-03-07 | L48: 409 | M48: INE743C01021
A49: AJANTPHARM | B49: EQ | C49: 992 | D49: 994.4 | E49: 967 | F49: 973.45 | G49: 971.9 | H49: 991.95 | I49: 322181 | J49: 315868518 | K49: 2019-03-07 | L49: 13816 | M49: INE031B01049
A50: AJMERA | B50: EQ | C50: 174 | D50: 180.9 | E50: 173.1 | F50: 174.2 | G50: 174.85 | H50: 171.45 | I50: 241535 | J50: 42795826.3 | K50: 2019-03-07 | L50: 4081 | M50: INE298G01027
A51: AKSHARCHEM | B51: EQ | C51: 353.65 | D51: 353.8 | E51: 342.25 | F51: 346.7 | G51: 347 | H51: 345.2 | I51: 2240 | J51: 781672.15 | K51: 2019-03-07 | L51: 183 | M51: INE542B01011
A52: AKSHOPTFBR | B52: EQ | C52: 21.1 | D52: 21.4 | E52: 20.75 | F52: 20.95 | G52: 20.95 | H52: 21.1 | I52: 736443 | J52: 15527687.1 | K52: 2019-03-07 | L52: 3144 | M52: INE523B01011
A53: AKZOINDIA | B53: EQ | C53: 1760 | D53: 1771.95 | E53: 1747.05 | F53: 1753.45 | G53: 1750 | H53: 1756.75 | I53: 1433 | J53: 2518495.65 | K53: 2019-03-07 | L53: 359 | M53: INE133A01011
A54: ALANKIT | B54: EQ | C54: 27.9 | D54: 27.9 | E54: 27.15 | F54: 27.75 | G54: 27.7 | H54: 27.55 | I54: 600567 | J54: 16616630.8 | K54: 2019-03-07 | L54: 1449 | M54: INE914E01040
A55: ALBERTDAVD | B55: EQ | C55: 423.55 | D55: 426.5 | E55: 415.35 | F55: 420.55 | G55: 421 | H55: 423.3 | I55: 4572 | J55: 1922679.3 | K55: 2019-03-07 | L55: 177 | M55: INE155C01010
A56: ALBK | B56: EQ | C56: 51.25 | D56: 56 | E56: 50.75 | F56: 54.85 | G56: 55.85 | H56: 51.45 | I56: 17007492 | J56: 911659696.6 | K56: 2019-03-07 | L56: 38696 | M56: INE428A01015
A57: ALCHEM | B57: BE | C57: 1.85 | D57: 1.9 | E57: 1.8 | F57: 1.85 | G57: 1.85 | H57: 1.85 | I57: 26894 | J57: 50917.05 | K57: 2019-03-07 | L57: 25 | M57: INE964B01033
A58: ALEMBICLTD | B58: EQ | C58: 42.5 | D58: 43.4 | E58: 42.5 | F58: 42.75 | G58: 43.05 | H58: 43.25 | I58: 197636 | J58: 8463228.25 | K58: 2019-03-07 | L58: 720 | M58: INE426A01027
A59: ALICON | B59: EQ | C59: 562.05 | D59: 590 | E59: 561.95 | F59: 572.05 | G59: 572.05 | H59: 572.5 | I59: 767 | J59: 439534.1 | K59: 2019-03-07 | L59: 234 | M59: INE062D01024
A60: ALKALI | B60: EQ | C60: 54.45 | D60: 54.5 | E60: 48.3 | F60: 50.3 | G60: 49 | H60: 53.35 | I60: 93855 | J60: 4955233.75 | K60: 2019-03-07 | L60: 897 | M60: INE773I01017
A61: ALKEM | B61: EQ | C61: 1758.95 | D61: 1758.95 | E61: 1745 | F61: 1750.15 | G61: 1750 | H61: 1746.8 | I61: 31521 | J61: 55157167.75 | K61: 2019-03-07 | L61: 4919 | M61: INE540L01014
A62: ALKYLAMINE | B62: EQ | C62: 785.25 | D62: 797 | E62: 779.25 | F62: 791.6 | G62: 789 | H62: 785.2 | I62: 5808 | J62: 4596291.95 | K62: 2019-03-07 | L62: 208 | M62: INE150B01021
A63: ALLCARGO | B63: EQ | C63: 108.5 | D63: 110 | E63: 105.4 | F63: 107.8 | G63: 106.95 | H63: 108.35 | I63: 198991 | J63: 21588380 | K63: 2019-03-07 | L63: 2171 | M63: INE418H01029
A64: ALLSEC | B64: EQ | C64: 184.6 | D64: 189.9 | E64: 183.35 | F64: 189.2 | G64: 189.75 | H64: 185.6 | I64: 6154 | J64: 1149601.5 | K64: 2019-03-07 | L64: 246 | M64: INE835G01018
A65: ALMONDZ | B65: EQ | C65: 23 | D65: 23 | E65: 23 | F65: 23 | G65: 23 | H65: 23.05 | I65: 151 | J65: 3473 | K65: 2019-03-07 | L65: 2 | M65: INE326B01027
A66: ALOKTEXT | B66: EQ | C66: 3.7 | D66: 3.75 | E66: 3.65 | F66: 3.7 | G66: 3.7 | H66: 3.7 | I66: 834190 | J66: 3072863.9 | K66: 2019-03-07 | L66: 466 | M66: INE270A01011
A67: ALPA | B67: EQ | C67: 24 | D67: 24.75 | E67: 23.55 | F67: 24.25 | G67: 24.2 | H67: 24.4 | I67: 10635 | J67: 258535.85 | K67: 2019-03-07 | L67: 151 | M67: INE385I01010
A68: ALPHAGEO | B68: EQ | C68: 447.75 | D68: 463.7 | E68: 441 | F68: 460.1 | G68: 459.85 | H68: 441.8 | I68: 13424 | J68: 6139086.55 | K68: 2019-03-07 | L68: 705 | M68: INE137C01018
A69: AMARAJABAT | B69: EQ | C69: 754.4 | D69: 755 | E69: 740.4 | F69: 742.6 | G69: 741.25 | H69: 747.05 | I69: 310457 | J69: 232021535 | K69: 2019-03-07 | L69: 7697 | M69: INE885A01032
A70: AMBER | B70: EQ | C70: 733.45 | D70: 748 | E70: 728.7 | F70: 743.95 | G70: 747.7 | H70: 722.75 | I70: 14356 | J70: 10612308.7 | K70: 2019-03-07 | L70: 1417 | M70: INE371P01015
A71: AMBIKCO | B71: EQ | C71: 1150 | D71: 1150 | E71: 1139.95 | F71: 1148.1 | G71: 1145 | H71: 1149.95 | I71: 3409 | J71: 3917171.1 | K71: 2019-03-07 | L71: 187 | M71: INE540G01014
A72: AMBUJACEM | B72: EQ | C72: 221.5 | D72: 224.9 | E72: 219.15 | F72: 221.2 | G72: 221.2 | H72: 220.25 | I72: 6193867 | J72: 1382537097 | K72: 2019-03-07 | L72: 29082 | M72: INE079A01024
A73: AMDIND | B73: EQ | C73: 22.2 | D73: 25.5 | E73: 22.2 | F73: 24.2 | G73: 23.25 | H73: 22.85 | I73: 69362 | J73: 1671993.8 | K73: 2019-03-07 | L73: 514 | M73: INE005I01014
A74: AMJLAND | B74: EQ | C74: 21.25 | D74: 21.25 | E74: 20.6 | F74: 20.65 | G74: 20.6 | H74: 20.6 | I74: 3299 | J74: 68705.05 | K74: 2019-03-07 | L74: 33 | M74: INE606A01024
A75: AMRUTANJAN | B75: EQ | C75: 302.75 | D75: 321.9 | E75: 302.75 | F75: 312.15 | G75: 312.5 | H75: 299.5 | I75: 59079 | J75: 18526541.9 | K75: 2019-03-07 | L75: 2104 | M75: INE098F01031
A76: ANANTRAJ | B76: EQ | C76: 34 | D76: 35.75 | E76: 33.75 | F76: 34.25 | G76: 34.3 | H76: 34 | I76: 854230 | J76: 29780605.7 | K76: 2019-03-07 | L76: 2723 | M76: INE242C01024
A77: ANDHRABANK | B77: EQ | C77: 26.35 | D77: 27.25 | E77: 26.05 | F77: 26.7 | G77: 26.65 | H77: 26.4 | I77: 1032904 | J77: 27563403.65 | K77: 2019-03-07 | L77: 2782 | M77: INE434A01013
A78: ANDHRACEMT | B78: EQ | C78: 6.5 | D78: 6.6 | E78: 6.2 | F78: 6.25 | G78: 6.25 | H78: 6.35 | I78: 299999 | J78: 1887318.35 | K78: 2019-03-07 | L78: 517 | M78: INE666E01012
A79: ANDHRSUGAR | B79: EQ | C79: 364 | D79: 374.8 | E79: 361 | F79: 366.45 | G79: 365 | H79: 362.7 | I79: 134889 | J79: 49737493.8 | K79: 2019-03-07 | L79: 3513 | M79: INE715B01013
A80: ANGIND | B80: BE | C80: 1.1 | D80: 1.15 | E80: 1.05 | F80: 1.15 | G80: 1.15 | H80: 1.1 | I80: 24386 | J80: 27768 | K80: 2019-03-07 | L80: 17 | M80: INE017D01010
A81: ANIKINDS | B81: EQ | C81: 17.6 | D81: 18.2 | E81: 16.8 | F81: 17.3 | G81: 16.8 | H81: 17.6 | I81: 14602 | J81: 254768.4 | K81: 2019-03-07 | L81: 76 | M81: INE087B01017
A82: ANKITMETAL | B82: BE | C82: 0.5 | D82: 0.5 | E82: 0.4 | F82: 0.5 | G82: 0.5 | H82: 0.5 | I82: 58470 | J82: 25668.1 | K82: 2019-03-07 | L82: 48 | M82: INE106I01010
A83: ANSALAPI | B83: EQ | C83: 11.5 | D83: 11.6 | E83: 11.15 | F83: 11.35 | G83: 11.3 | H83: 11.55 | I83: 110693 | J83: 1257377.05 | K83: 2019-03-07 | L83: 328 | M83: INE436A01026
A84: ANSALHSG | B84: BE | C84: 13.1 | D84: 13.4 | E84: 12.5 | F84: 12.8 | G84: 12.8 | H84: 13.1 | I84: 46612 | J84: 593808.4 | K84: 2019-03-07 | L84: 179 | M84: INE880B01015
A85: ANTGRAPHIC | B85: BE | C85: 0.45 | D85: 0.5 | E85: 0.45 | F85: 0.5 | G85: 0.5 | H85: 0.5 | I85: 29913 | J85: 14337 | K85: 2019-03-07 | L85: 18 | M85: INE414B01021
A86: ANUP | B86: BE | C86: 546.9 | D86: 546.9 | E86: 546.9 | F86: 546.9 | G86: 546.9 | H86: 520.9 | I86: 22190 | J86: 12135711 | K86: 2019-03-07 | L86: 312 | M86: INE294Z01018
A87: APARINDS | B87: EQ | C87: 651.2 | D87: 667 | E87: 650.25 | F87: 655 | G87: 655 | H87: 656.4 | I87: 3317 | J87: 2173163.15 | K87: 2019-03-07 | L87: 361 | M87: INE372A01015
A88: APCL | B88: EQ | C88: 139.3 | D88: 144.45 | E88: 135 | F88: 138.45 | G88: 137.05 | H88: 137.3 | I88: 3891 | J88: 541904.05 | K88: 2019-03-07 | L88: 121 | M88: INE071F01012
A89: APCOTEXIND | B89: EQ | C89: 470 | D89: 473 | E89: 460 | F89: 462.4 | G89: 460.65 | H89: 469.35 | I89: 2793 | J89: 1299423.15 | K89: 2019-03-07 | L89: 245 | M89: INE116A01024
A90: APEX | B90: EQ | C90: 351 | D90: 368 | E90: 347.2 | F90: 352.15 | G90: 353 | H90: 351.15 | I90: 255575 | J90: 91495510.75 | K90: 2019-03-07 | L90: 7104 | M90: INE346W01013
A91: APLAPOLLO | B91: EQ | C91: 1390 | D91: 1416.85 | E91: 1371.05 | F91: 1399.7 | G91: 1399 | H91: 1393 | I91: 21413 | J91: 29864780.65 | K91: 2019-03-07 | L91: 2185 | M91: INE702C01019
A92: APLLTD | B92: EQ | C92: 542.5 | D92: 546.4 | E92: 541.3 | F92: 544.15 | G92: 545.5 | H92: 548.25 | I92: 29294 | J92: 15935540.75 | K92: 2019-03-07 | L92: 3384 | M92: INE901L01018
A93: APOLLO | B93: EQ | C93: 112 | D93: 112 | E93: 106.3 | F93: 108.6 | G93: 109.75 | H93: 111 | I93: 13528 | J93: 1468949.9 | K93: 2019-03-07 | L93: 508 | M93: INE713T01010
A94: APOLLOHOSP | B94: EQ | C94: 1195.35 | D94: 1202 | E94: 1179.3 | F94: 1186.95 | G94: 1186 | H94: 1192.75 | I94: 642857 | J94: 768046021.6 | K94: 2019-03-07 | L94: 32181 | M94: INE437A01024
A95: APOLLOTYRE | B95: EQ | C95: 219.85 | D95: 220 | E95: 216 | F95: 216.5 | G95: 216.9 | H95: 219.45 | I95: 1750522 | J95: 380606075.9 | K95: 2019-03-07 | L95: 20621 | M95: INE438A01022
A96: APOLSINHOT | B96: BE | C96: 979.95 | D96: 1002.6 | E96: 935 | F96: 961.9 | G96: 962 | H96: 954.9 | I96: 1395 | J96: 1345521.15 | K96: 2019-03-07 | L96: 82 | M96: INE451F01024
A97: APTECHT | B97: EQ | C97: 179.45 | D97: 187.4 | E97: 177.8 | F97: 179.15 | G97: 179.35 | H97: 178.6 | I97: 381794 | J97: 69544150.45 | K97: 2019-03-07 | L97: 7127 | M97: INE266F01018
A98: ARCHIDPLY | B98: EQ | C98: 45.65 | D98: 45.65 | E98: 43.4 | F98: 43.65 | G98: 43.95 | H98: 44.2 | I98: 16323 | J98: 715950.85 | K98: 2019-03-07 | L98: 207 | M98: INE877I01016
A99: ARCHIES | B99: EQ | C99: 25.3 | D99: 25.3 | E99: 24.3 | F99: 24.55 | G99: 24.7 | H99: 25 | I99: 47921 | J99: 1183725.6 | K99: 2019-03-07 | L99: 366 | M99: INE731A01020
A100: ARCOTECH | B100: EQ | C100: 6 | D100: 6 | E100: 6 | F100: 6 | G100: 6 | H100: 5.75 | I100: 18319 | J100: 109914 | K100: 2019-03-07 | L100: 36 | M100: INE574I01035
A101: ARIES | B101: EQ | C101: 82.75 | D101: 82.75 | E101: 79.9 | F101: 81.05 | G101: 80.5 | H101: 82.7 | I101: 26182 | J101: 2126590.35 | K101: 2019-03-07 | L101: 543 | M101: INE298I01015
A102: ARIHANT | B102: EQ | C102: 32 | D102: 32 | E102: 30 | F102: 30 | G102: 30 | H102: 30 | I102: 1862 | J102: 56152.5 | K102: 2019-03-07 | L102: 11 | M102: INE413D01011
A103: ARIHANTSUP | B103: EQ | C103: 55.05 | D103: 65.45 | E103: 55 | F103: 64.55 | G103: 64.25 | H103: 55 | I103: 140108 | J103: 8804153.1 | K103: 2019-03-07 | L103: 16560 | M103: INE643K01018
A104: ARMANFIN | B104: EQ | C104: 385 | D104: 389.4 | E104: 365.05 | F104: 368.45 | G104: 371 | H104: 382.5 | I104: 3590 | J104: 1342834.3 | K104: 2019-03-07 | L104: 351 | M104: INE109C01017
A105: AROGRANITE | B105: EQ | C105: 52 | D105: 52 | E105: 49.8 | F105: 49.9 | G105: 49.8 | H105: 51.7 | I105: 13509 | J105: 680584.1 | K105: 2019-03-07 | L105: 219 | M105: INE210C01013
A106: ARROWGREEN | B106: BE | C106: 77.75 | D106: 79.2 | E106: 77 | F106: 77.65 | G106: 77.25 | H106: 78.85 | I106: 6426 | J106: 504546.5 | K106: 2019-03-07 | L106: 113 | M106: INE570D01018
A107: ARROWTEX | B107: EQ | C107: 19.7 | D107: 19.7 | E107: 18.4 | F107: 18.85 | G107: 19 | H107: 19.05 | I107: 12175 | J107: 228359.95 | K107: 2019-03-07 | L107: 117 | M107: INE933J01015
A108: ARSHIYA | B108: EQ | C108: 31.35 | D108: 31.35 | E108: 29.8 | F108: 30.3 | G108: 30.5 | H108: 31.05 | I108: 97514 | J108: 2972993.7 | K108: 2019-03-07 | L108: 557 | M108: INE968D01022
A109: ARSSINFRA | B109: EQ | C109: 35.75 | D109: 36.95 | E109: 35.4 | F109: 35.6 | G109: 35.9 | H109: 35.9 | I109: 19807 | J109: 713115.45 | K109: 2019-03-07 | L109: 86 | M109: INE267I01010
A110: ARVIND | B110: EQ | C110: 87 | D110: 90.75 | E110: 85.45 | F110: 89.3 | G110: 88.85 | H110: 85.55 | I110: 9845285 | J110: 872622206.2 | K110: 2019-03-07 | L110: 44175 | M110: INE034A01011
A111: ARVSMART | B111: EQ | C111: 128.2 | D111: 128.9 | E111: 125 | F111: 125.6 | G111: 125.25 | H111: 128.05 | I111: 12011 | J111: 1515914.45 | K111: 2019-03-07 | L111: 420 | M111: INE034S01021
A112: ASAHIINDIA | B112: EQ | C112: 277.05 | D112: 278.75 | E112: 268.05 | F112: 270.25 | G112: 270.8 | H112: 276.95 | I112: 7400 | J112: 2012121.2 | K112: 2019-03-07 | L112: 609 | M112: INE439A01020
A113: ASAHISONG | B113: EQ | C113: 172 | D113: 178 | E113: 172 | F113: 172.85 | G113: 175.25 | H113: 171.5 | I113: 3192 | J113: 557273.8 | K113: 2019-03-07 | L113: 160 | M113: INE228I01012
A114: ASAL | B114: EQ | C114: 56.95 | D114: 57 | E114: 53.05 | F114: 54.35 | G114: 53.55 | H114: 56.9 | I114: 6579 | J114: 361243.95 | K114: 2019-03-07 | L114: 67 | M114: INE900C01027
A115: ASHAPURMIN | B115: EQ | C115: 30.5 | D115: 30.5 | E115: 29.2 | F115: 29.3 | G115: 29.2 | H115: 30.9 | I115: 172631 | J115: 5123124.5 | K115: 2019-03-07 | L115: 789 | M115: INE348A01023
A116: ASHIANA | B116: EQ | C116: 112.95 | D116: 119 | E116: 112.05 | F116: 116.3 | G116: 116.5 | H116: 112.8 | I116: 55593 | J116: 6424398 | K116: 2019-03-07 | L116: 599 | M116: INE365D01021
A117: ASHIMASYN | B117: BE | C117: 13.55 | D117: 13.95 | E117: 13.05 | F117: 13.7 | G117: 13.95 | H117: 13.5 | I117: 11756 | J117: 157848.4 | K117: 2019-03-07 | L117: 52 | M117: INE440A01010
A118: ASHOKA | B118: EQ | C118: 138.4 | D118: 138.7 | E118: 133.05 | F118: 134.45 | G118: 134.5 | H118: 137.55 | I118: 594780 | J118: 80342930.25 | K118: 2019-03-07 | L118: 5232 | M118: INE442H01029
A119: ASHOKLEY | B119: EQ | C119: 90.95 | D119: 92.1 | E119: 89.4 | F119: 90.9 | G119: 91.3 | H119: 90.6 | I119: 23050857 | J119: 2098386267 | K119: 2019-03-07 | L119: 77359 | M119: INE208A01029
A120: ASIANHOTNR | B120: EQ | C120: 140.5 | D120: 147 | E120: 140.5 | F120: 145 | G120: 145 | H120: 144.8 | I120: 2993 | J120: 435758.5 | K120: 2019-03-07 | L120: 87 | M120: INE363A01022
A121: ASIANPAINT | B121: EQ | C121: 1398.6 | D121: 1405.5 | E121: 1392 | F121: 1395.45 | G121: 1395.5 | H121: 1393.7 | I121: 746742 | J121: 1044874190 | K121: 2019-03-07 | L121: 38260 | M121: INE021A01026
A122: ASIANTILES | B122: EQ | C122: 197.35 | D122: 211.7 | E122: 196.3 | F122: 206.6 | G122: 206.9 | H122: 195.3 | I122: 467449 | J122: 96352589.3 | K122: 2019-03-07 | L122: 5005 | M122: INE022I01019
A123: ASPINWALL | B123: EQ | C123: 175 | D123: 182.8 | E123: 170.6 | F123: 174.15 | G123: 170.6 | H123: 172.15 | I123: 3999 | J123: 697342.2 | K123: 2019-03-07 | L123: 60 | M123: INE991I01015
A124: ASSAMCO | B124: BE | C124: 2.65 | D124: 2.65 | E124: 2.45 | F124: 2.55 | G124: 2.6 | H124: 2.55 | I124: 695701 | J124: 1785532.6 | K124: 2019-03-07 | L124: 363 | M124: INE442A01024
A125: ASTEC | B125: EQ | C125: 525.85 | D125: 530 | E125: 518.3 | F125: 522.15 | G125: 525 | H125: 523.7 | I125: 5025 | J125: 2635400.9 | K125: 2019-03-07 | L125: 423 | M125: INE563J01010
A126: ASTERDM | B126: EQ | C126: 157.75 | D126: 158 | E126: 156 | F126: 157 | G126: 157.85 | H126: 156.9 | I126: 13839 | J126: 2171412.05 | K126: 2019-03-07 | L126: 681 | M126: INE914M01019
A127: ASTRAL | B127: EQ | C127: 1174.8 | D127: 1232.75 | E127: 1166 | F127: 1199.5 | G127: 1200 | H127: 1165.8 | I127: 130082 | J127: 156663673.8 | K127: 2019-03-07 | L127: 14227 | M127: INE006I01046
A128: ASTRAMICRO | B128: EQ | C128: 83.35 | D128: 85.75 | E128: 83.25 | F128: 84 | G128: 84 | H128: 82.2 | I128: 262291 | J128: 22155482.95 | K128: 2019-03-07 | L128: 2172 | M128: INE386C01029
A129: ASTRAZEN | B129: EQ | C129: 2068.3 | D129: 2076.6 | E129: 1956.1 | F129: 1976.4 | G129: 1979.9 | H129: 2068.3 | I129: 11445 | J129: 23063502.2 | K129: 2019-03-07 | L129: 1800 | M129: INE203A01020
A130: ASTRON | B130: EQ | C130: 101 | D130: 104.7 | E130: 100.9 | F130: 101.8 | G130: 101.9 | H130: 101.9 | I130: 213927 | J130: 22056201.35 | K130: 2019-03-07 | L130: 2061 | M130: INE646X01014
A131: ATFL | B131: EQ | C131: 578.95 | D131: 579 | E131: 570.5 | F131: 574.15 | G131: 570.5 | H131: 571.85 | I131: 1648 | J131: 948322.45 | K131: 2019-03-07 | L131: 124 | M131: INE209A01019
A132: ATLANTA | B132: EQ | C132: 19.15 | D132: 19.15 | E132: 18.2 | F132: 19.15 | G132: 19.15 | H132: 18.25 | I132: 25977 | J132: 495623.05 | K132: 2019-03-07 | L132: 149 | M132: INE285H01022
A133: ATLASCYCLE | B133: BE | C133: 77.9 | D133: 78.4 | E133: 72.1 | F133: 76.3 | G133: 76 | H133: 74.7 | I133: 5892 | J133: 454855.85 | K133: 2019-03-07 | L133: 94 | M133: INE446A01025
A134: ATUL | B134: EQ | C134: 3419.95 | D134: 3440 | E134: 3370 | F134: 3378.15 | G134: 3384 | H134: 3415.95 | I134: 3061 | J134: 10391072.9 | K134: 2019-03-07 | L134: 793 | M134: INE100A01010
A135: ATULAUTO | B135: EQ | C135: 348 | D135: 349 | E135: 338.1 | F135: 340.55 | G135: 338.15 | H135: 346.25 | I135: 12028 | J135: 4119717.9 | K135: 2019-03-07 | L135: 604 | M135: INE951D01028
A136: AUBANK | B136: EQ | C136: 594.6 | D136: 594.9 | E136: 575.3 | F136: 580.65 | G136: 580 | H136: 589.15 | I136: 300944 | J136: 176141509.6 | K136: 2019-03-07 | L136: 10466 | M136: INE949L01017
A137: AURIONPRO | B137: EQ | C137: 121.55 | D137: 121.55 | E137: 116.25 | F137: 117.7 | G137: 116.25 | H137: 121.2 | I137: 30852 | J137: 3671231.4 | K137: 2019-03-07 | L137: 314 | M137: INE132H01018
A138: AUROPHARMA | B138: EQ | C138: 735 | D138: 740.8 | E138: 720.1 | F138: 725.2 | G138: 722.4 | H138: 733.35 | I138: 1309875 | J138: 960984071.6 | K138: 2019-03-07 | L138: 50151 | M138: INE406A01037
A139: AUSOMENT | B139: EQ | C139: 37.8 | D139: 37.8 | E139: 37 | F139: 37.05 | G139: 37.05 | H139: 36.05 | I139: 5877 | J139: 221423.8 | K139: 2019-03-07 | L139: 36 | M139: INE218C01016
A140: AUTOAXLES | B140: EQ | C140: 1291.85 | D140: 1299.05 | E140: 1251.1 | F140: 1257.35 | G140: 1260.95 | H140: 1291.85 | I140: 8282 | J140: 10517916.05 | K140: 2019-03-07 | L140: 1023 | M140: INE449A01011
A141: AUTOIND | B141: EQ | C141: 59 | D141: 59.7 | E141: 56 | F141: 56.65 | G141: 56.8 | H141: 58.25 | I141: 9494 | J141: 548230.35 | K141: 2019-03-07 | L141: 214 | M141: INE718H01014
A142: AUTOLITIND | B142: EQ | C142: 39.8 | D142: 41.95 | E142: 37.3 | F142: 38 | G142: 37.8 | H142: 39.05 | I142: 30936 | J142: 1197998.25 | K142: 2019-03-07 | L142: 326 | M142: INE448A01013
A143: AVADHSUGAR | B143: EQ | C143: 521.05 | D143: 530.55 | E143: 491 | F143: 495.55 | G143: 494.5 | H143: 514.7 | I143: 189939 | J143: 96849374.45 | K143: 2019-03-07 | L143: 5264 | M143: INE349W01017
A144: AVANTIFEED | B144: EQ | C144: 388 | D144: 416.9 | E144: 384 | F144: 405.85 | G144: 406.25 | H144: 384.7 | I144: 1980451 | J144: 806609393.8 | K144: 2019-03-07 | L144: 41077 | M144: INE871C01038
A145: AVTNPL | B145: EQ | C145: 26.85 | D145: 26.9 | E145: 26.3 | F145: 26.35 | G145: 26.3 | H145: 26.85 | I145: 17010 | J145: 453150.2 | K145: 2019-03-07 | L145: 126 | M145: INE488D01021
A146: AXISBANK | B146: EQ | C146: 720.75 | D146: 739.45 | E146: 720.75 | F146: 733.75 | G146: 734.25 | H146: 720.6 | I146: 11263734 | J146: 8224338081 | K146: 2019-03-07 | L146: 188476 | M146: INE238A01034
A147: AXISCADES | B147: EQ | C147: 69 | D147: 75 | E147: 66.3 | F147: 73.8 | G147: 73.4 | H147: 67.7 | I147: 182969 | J147: 13057915.75 | K147: 2019-03-07 | L147: 2505 | M147: INE555B01013
A148: AXISGOLD | B148: EQ | C148: 2832 | D148: 2832 | E148: 2803.15 | F148: 2816 | G148: 2816 | H148: 2826.9 | I148: 55 | J148: 154909.9 | K148: 2019-03-07 | L148: 23 | M148: INF846K01347
A149: AXISNIFTY | B149: EQ | C149: 1131.81 | D149: 1132.86 | E149: 1123.34 | F149: 1132.86 | G149: 1132.86 | H149: 1126.03 | I149: 9 | J149: 10179.55 | K149: 2019-03-07 | L149: 5 | M149: INF846K01ZL0
A150: AYMSYNTEX | B150: EQ | C150: 37.85 | D150: 38.75 | E150: 37 | F150: 37.7 | G150: 37.5 | H150: 37 | I150: 4376 | J150: 166352.6 | K150: 2019-03-07 | L150: 97 | M150: INE193B01039
A151: BAFNAPHARM | B151: EQ | C151: 11.7 | D151: 12.2 | E151: 10.7 | F151: 11.4 | G151: 11.3 | H151: 11.15 | I151: 44523 | J151: 520367.9 | K151: 2019-03-07 | L151: 279 | M151: INE878I01014
A152: BAGFILMS | B152: EQ | C152: 5.3 | D152: 5.3 | E152: 5.1 | F152: 5.15 | G152: 5.2 | H152: 5.2 | I152: 114170 | J152: 590170.35 | K152: 2019-03-07 | L152: 177 | M152: INE116D01028
A153: BAJAJ-AUTO | B153: EQ | C153: 2927 | D153: 2927 | E153: 2900 | F153: 2919.9 | G153: 2919.5 | H153: 2927.6 | I153: 392086 | J153: 1142438426 | K153: 2019-03-07 | L153: 25083 | M153: INE917I01010
A154: BAJAJCON | B154: EQ | C154: 354.95 | D154: 355.5 | E154: 348.5 | F154: 349.45 | G154: 349.85 | H154: 352.85 | I154: 29011 | J154: 10186703.5 | K154: 2019-03-07 | L154: 1334 | M154: INE933K01021
A155: BAJAJELEC | B155: EQ | C155: 474 | D155: 483.5 | E155: 471.5 | F155: 481.4 | G155: 482.05 | H155: 476.9 | I155: 224725 | J155: 107554451.8 | K155: 2019-03-07 | L155: 6120 | M155: INE193E01025
A156: BAJAJFINSV | B156: EQ | C156: 6580.1 | D156: 6668.6 | E156: 6565 | F156: 6598.5 | G156: 6581.7 | H156: 6609.15 | I156: 199032 | J156: 1314514515 | K156: 2019-03-07 | L156: 25320 | M156: INE918I01018
A157: BAJAJHIND | B157: EQ | C157: 9.2 | D157: 9.4 | E157: 8.95 | F157: 9.1 | G157: 9.05 | H157: 9.05 | I157: 4398589 | J157: 40348641.35 | K157: 2019-03-07 | L157: 3016 | M157: INE306A01021
A158: BAJAJHLDNG | B158: EQ | C158: 3220 | D158: 3298 | E158: 3220 | F158: 3274.35 | G158: 3274.95 | H158: 3220.1 | I158: 63115 | J158: 206587798.2 | K158: 2019-03-07 | L158: 5472 | M158: INE118A01012
A159: BAJFINANCE | B159: EQ | C159: 2774.95 | D159: 2782.3 | E159: 2725 | F159: 2734.8 | G159: 2730.2 | H159: 2766.7 | I159: 859851 | J159: 2368176539 | K159: 2019-03-07 | L159: 49281 | M159: INE296A01024
A160: BALAJITELE | B160: EQ | C160: 85.15 | D160: 90.9 | E160: 85.1 | F160: 87.55 | G160: 87.55 | H160: 84.1 | I160: 167405 | J160: 14757026.7 | K160: 2019-03-07 | L160: 1652 | M160: INE794B01026
A161: BALAMINES | B161: EQ | C161: 432.1 | D161: 434 | E161: 428.05 | F161: 431.15 | G161: 433.05 | H161: 430.1 | I161: 13286 | J161: 5723548.7 | K161: 2019-03-07 | L161: 661 | M161: INE050E01027
A162: BALKRISHNA | B162: EQ | C162: 39.7 | D162: 41.1 | E162: 39.1 | F162: 40.65 | G162: 40.1 | H162: 40.1 | I162: 2661 | J162: 106938.25 | K162: 2019-03-07 | L162: 83 | M162: INE875R01011
A163: BALKRISIND | B163: EQ | C163: 913 | D163: 927.3 | E163: 903.9 | F163: 920.8 | G163: 923 | H163: 911.95 | I163: 421994 | J163: 387541121.8 | K163: 2019-03-07 | L163: 11237 | M163: INE787D01026
A164: BALLARPUR | B164: EQ | C164: 4.05 | D164: 4.05 | E164: 3.7 | F164: 3.7 | G164: 3.7 | H164: 4 | I164: 1537741 | J164: 5883809 | K164: 2019-03-07 | L164: 950 | M164: INE294A01037
A165: BALMLAWRIE | B165: EQ | C165: 193.9 | D165: 194 | E165: 186.05 | F165: 187.15 | G165: 186.35 | H165: 192 | I165: 36378 | J165: 6835257.7 | K165: 2019-03-07 | L165: 910 | M165: INE164A01016
A166: BALPHARMA | B166: EQ | C166: 74.2 | D166: 74.35 | E166: 72.95 | F166: 73.85 | G166: 73.05 | H166: 73.85 | I166: 13143 | J166: 970055.5 | K166: 2019-03-07 | L166: 118 | M166: INE083D01012
A167: BALRAMCHIN | B167: EQ | C167: 142.4 | D167: 143.85 | E167: 132.1 | F167: 136.4 | G167: 136.45 | H167: 141.55 | I167: 4197811 | J167: 584049744.9 | K167: 2019-03-07 | L167: 31356 | M167: INE119A01028
A168: BANARBEADS | B168: EQ | C168: 43.6 | D168: 44.85 | E168: 41.15 | F168: 43 | G168: 43 | H168: 44.3 | I168: 5386 | J168: 234126.1 | K168: 2019-03-07 | L168: 36 | M168: INE655B01011
A169: BANARISUG | B169: EQ | C169: 1625.05 | D169: 1633.05 | E169: 1580 | F169: 1593.25 | G169: 1580 | H169: 1617.55 | I169: 990 | J169: 1577974.1 | K169: 2019-03-07 | L169: 194 | M169: INE459A01010
A170: BANCOINDIA | B170: EQ | C170: 167.4 | D170: 167.4 | E170: 161 | F170: 162.5 | G170: 162.2 | H170: 165.3 | I170: 26570 | J170: 4347430 | K170: 2019-03-07 | L170: 662 | M170: INE213C01025
A171: BANDHANBNK | B171: EQ | C171: 506 | D171: 507 | E171: 494.2 | F171: 496.65 | G171: 494.5 | H171: 501.05 | I171: 564316 | J171: 282863741.9 | K171: 2019-03-07 | L171: 19494 | M171: INE545U01014
A172: BANG | B172: EQ | C172: 37.45 | D172: 38.8 | E172: 36.35 | F172: 37.75 | G172: 38 | H172: 37.05 | I172: 35694 | J172: 1346001.7 | K172: 2019-03-07 | L172: 332 | M172: INE863I01016
A173: BANKBARODA | B173: EQ | C173: 112 | D173: 116.9 | E173: 111.15 | F173: 115.2 | G173: 115.2 | H173: 112.1 | I173: 25364521 | J173: 2914381472 | K173: 2019-03-07 | L173: 70889 | M173: INE028A01039
A174: BANKBEES | B174: EQ | C174: 2805 | D174: 2824.5 | E174: 2800 | F174: 2820.52 | G174: 2818 | H174: 2805.84 | I174: 3426 | J174: 9613765.24 | K174: 2019-03-07 | L174: 232 | M174: INF732E01078
A175: BANKINDIA | B175: EQ | C175: 90 | D175: 92.3 | E175: 88.45 | F175: 90.7 | G175: 90.85 | H175: 89.8 | I175: 11420223 | J175: 1035821183 | K175: 2019-03-07 | L175: 31458 | M175: INE084A01016
A176: BANSWRAS | B176: EQ | C176: 71.1 | D176: 74.8 | E176: 69.3 | F176: 72.95 | G176: 72.25 | H176: 70.8 | I176: 8666 | J176: 628815.85 | K176: 2019-03-07 | L176: 100 | M176: INE629D01012
A177: BARTRONICS | B177: EQ | C177: 6.85 | D177: 7.2 | E177: 6.8 | F177: 6.9 | G177: 6.8 | H177: 6.8 | I177: 27413 | J177: 190028.3 | K177: 2019-03-07 | L177: 77 | M177: INE855F01034
A178: BASF | B178: EQ | C178: 1425.5 | D178: 1463 | E178: 1390.1 | F178: 1425.7 | G178: 1430 | H178: 1411.35 | I178: 8082 | J178: 11603091.85 | K178: 2019-03-07 | L178: 1508 | M178: INE373A01013
A179: BASML | B179: EQ | C179: 190.75 | D179: 198 | E179: 190 | F179: 198 | G179: 198 | H179: 195.35 | I179: 1110 | J179: 214964.4 | K179: 2019-03-07 | L179: 39 | M179: INE186H01014
A180: BATAINDIA | B180: EQ | C180: 1345 | D180: 1358 | E180: 1338.55 | F180: 1349.45 | G180: 1351.7 | H180: 1344.35 | I180: 1130700 | J180: 1526935718 | K180: 2019-03-07 | L180: 36497 | M180: INE176A01028
A181: BAYERCROP | B181: EQ | C181: 4329.8 | D181: 4329.8 | E181: 4275 | F181: 4296.1 | G181: 4294.05 | H181: 4325.4 | I181: 15566 | J181: 66694533.15 | K181: 2019-03-07 | L181: 1041 | M181: INE462A01022
A182: BBL | B182: EQ | C182: 1124.6 | D182: 1129.1 | E182: 1105.2 | F182: 1121.75 | G182: 1126.4 | H182: 1124.8 | I182: 4186 | J182: 4679282.55 | K182: 2019-03-07 | L182: 417 | M182: INE464A01028
A183: BBTC | B183: EQ | C183: 1287.7 | D183: 1288.95 | E183: 1263.5 | F183: 1275.05 | G183: 1273 | H183: 1282.2 | I183: 68296 | J183: 87075229.95 | K183: 2019-03-07 | L183: 3527 | M183: INE050A01025
A184: BCG | B184: EQ | C184: 3.1 | D184: 3.25 | E184: 3.1 | F184: 3.15 | G184: 3.2 | H184: 3.1 | I184: 423172 | J184: 1342170.85 | K184: 2019-03-07 | L184: 300 | M184: INE425B01027
A185: BDL | B185: EQ | C185: 287.65 | D185: 288 | E185: 277.05 | F185: 279.5 | G185: 278.2 | H185: 284.95 | I185: 32988 | J185: 9335307.35 | K185: 2019-03-07 | L185: 2038 | M185: INE171Z01018
A186: BEARDSELL | B186: EQ | C186: 16 | D186: 16.05 | E186: 15.3 | F186: 15.95 | G186: 15.95 | H186: 15.75 | I186: 14860 | J186: 234348.8 | K186: 2019-03-07 | L186: 61 | M186: INE520H01022
A187: BEDMUTHA | B187: EQ | C187: 18.25 | D187: 18.25 | E187: 16.4 | F187: 17.6 | G187: 17.6 | H187: 16.75 | I187: 2367 | J187: 41439.45 | K187: 2019-03-07 | L187: 26 | M187: INE844K01012
A188: BEL | B188: EQ | C188: 92.75 | D188: 92.75 | E188: 88.9 | F188: 89.35 | G188: 89.35 | H188: 92.1 | I188: 11339245 | J188: 1021065296 | K188: 2019-03-07 | L188: 69858 | M188: INE263A01024
A189: BEML | B189: EQ | C189: 910.65 | D189: 911 | E189: 876.2 | F189: 888.45 | G189: 888.6 | H189: 910.65 | I189: 2295409 | J189: 2039879830 | K189: 2019-03-07 | L189: 45721 | M189: INE258A01016
A190: BEPL | B190: EQ | C190: 76.9 | D190: 81.25 | E190: 75.7 | F190: 77.65 | G190: 77.75 | H190: 76.9 | I190: 955472 | J190: 75070189.65 | K190: 2019-03-07 | L190: 6590 | M190: INE922A01025
A191: BERGEPAINT | B191: EQ | C191: 304 | D191: 305.95 | E191: 298.9 | F191: 300.25 | G191: 299.15 | H191: 304.55 | I191: 503691 | J191: 152192207.9 | K191: 2019-03-07 | L191: 11907 | M191: INE463A01038
A192: BFINVEST | B192: EQ | C192: 250 | D192: 260.95 | E192: 248 | F192: 254.95 | G192: 255.55 | H192: 250.75 | I192: 151559 | J192: 38599429.55 | K192: 2019-03-07 | L192: 3395 | M192: INE878K01010
A193: BFUTILITIE | B193: EQ | C193: 192.3 | D193: 197 | E193: 189 | F193: 191.65 | G193: 191.3 | H193: 191.3 | I193: 716556 | J193: 138404338.2 | K193: 2019-03-07 | L193: 11195 | M193: INE243D01012
A194: BGLOBAL | B194: BE | C194: 2.45 | D194: 2.5 | E194: 2.4 | F194: 2.4 | G194: 2.4 | H194: 2.45 | I194: 16544 | J194: 40109.25 | K194: 2019-03-07 | L194: 15 | M194: INE224M01013
A195: BGRENERGY | B195: EQ | C195: 61.4 | D195: 64.75 | E195: 61.1 | F195: 62.55 | G195: 62.3 | H195: 60.95 | I195: 254475 | J195: 16032747.1 | K195: 2019-03-07 | L195: 2419 | M195: INE661I01014
A196: BHAGERIA | B196: EQ | C196: 262.85 | D196: 278.7 | E196: 261 | F196: 274.8 | G196: 275 | H196: 258.8 | I196: 33225 | J196: 8957446.05 | K196: 2019-03-07 | L196: 1369 | M196: INE354C01027
A197: BHAGYANGR | B197: EQ | C197: 31.15 | D197: 31.15 | E197: 30.4 | F197: 30.55 | G197: 30.4 | H197: 31.1 | I197: 3000 | J197: 92244.55 | K197: 2019-03-07 | L197: 42 | M197: INE458B01036
A198: BHAGYAPROP | B198: EQ | C198: 30.35 | D198: 30.35 | E198: 29.5 | F198: 30 | G198: 30 | H198: 28.4 | I198: 13509 | J198: 404078.85 | K198: 2019-03-07 | L198: 46 | M198: INE363W01018
A199: BHANDARI | B199: EQ | C199: 2.1 | D199: 2.15 | E199: 2.05 | F199: 2.05 | G199: 2.05 | H199: 2.1 | I199: 125065 | J199: 261903.7 | K199: 2019-03-07 | L199: 78 | M199: INE474E01029
A200: BHARATFIN | B200: EQ | C200: 964.05 | D200: 971.7 | E200: 957.4 | F200: 962.1 | G200: 961.5 | H200: 964.05 | I200: 239654 | J200: 231048539.6 | K200: 2019-03-07 | L200: 14129 | M200: INE180K01011
... 1440 more rows

Sheet Sheet1 (hidden)

Sheet Sheet3 (hidden)
